Workbook

Sheet Contents
A1: Свернуть
A7: Gazprom in figures 2019. Factbook.
B8: Preface
B9: Gazprom in Russian and Global Energy Industry
B10: Financial Results
B11: Macroeconomic Data
B12: Market Data
B13: Exploration and Production in Russia
A14: + | B14: Reserves
B15: Hydrocarbon reserves of Gazprom Group in Russia
B16: Hydrocarbon fields and deposits discovered by Gazprom Group in Russia
B17: Replacement ratio of Gazprom Group’s hydrocarbon reserves, Russian classification of reserves
B18: Years of Gazprom Group’s hydrocarbon reserves, Russian classification of reserves
B19: Natural gas reserves of Gazprom Group in Russia, PRMS standards
B20: Gas condensate reserves of Gazprom Group in Russia, PRMS standards
B21: Oil reserves of Gazprom Group in Russia, PRMS standards
B22: Hydrocarbon reserves (Russian classification of reserves) of Gazprom Group in Russia
B23: Hydrocarbon reserves (Russian classification of reserves) of the associated and jointly controlled companies in Russia
B24: Change in Gazprom Group’s hydrocarbon reserves (Russian classification of reserves) in Russia
B25: Hydrocarbon fields discovered by Gazprom Group in Russia
A26: + | B26: Licenses
B27: License areas in Russian Federation
B28: License areas set out by federal districts of the Russian Federation
B29: Licenses for the main hydrocarbon fields in Russia
A30: + | B30: Production
B31: Hydrocarbon production of Gazprom Group in Russia
B32: Daily average hydrocarbon production of Gazprom Group in Russia
B33: Gazprom Group’s hydrocarbon production in Russia
B34: Hydrocarbon production of Gazprom Group in Russia set out by Federal Districts
B35: Useful life of APG by Gazprom Group in Russia
B36: Actual maximum daily natural and associated gas production in the autumn-winter period
B37: Hydrocarbon production of the associated and jointly controlled companies in Russia
A38: + | B38: Geological Exploration, Production Drilling and Production Capacity
B39: Key figures of Gazprom Group’s geological exploration activities
B40: Key figures of geological exploration activities of entities, investments in which are classified as joint operations
B41: Gazprom Group’s production drilling
B42: Production drilling of entities, investments in which are classified as joint operations
B43: Gazprom Group’s production capacity
B44: Production capacity of entities, investments in which are classified as joint operations
A45: + | B45: Promising Fields
B46: Fields under development operated by Gazprom Group
B47: Fields in exploration and prospective licence blocks of Gazprom Group
B48: Fields of joint ventures of Gazprom Group
A49: + | B49: Geological Exploration and Production Abroad
B50: Key figures of Gazprom’s hydrocarbon geological exploration abroad
B51: Gazprom Group’s hydrocarbon production capacity abroad
B52: Gazprom Group oil and gas exploration drilling abroad
B53: Gazprom Group hydrocarbon production abroad
B54: Hydrocarbon production abroad, major projects with Gazprom Group’s participation
B55: Hydrocarbon production of Associates and Joint Ventures in hydrocarbon prospecting, exploration and production abroad
B56: Exploration and production projects of Gazprom Group abroad at the prospecting and exploration stage
B57: Exploration and production projects of Gazprom Group abroad at the development and production stage
B58: Prospecting, exploration and production projects of Associates and Joint Ventures abroad
A59: - | B59: Gas Transportation and Underground Storage
A60: + | B60: Gas Transportation
B61: Development and overhaul of the GTS in Russia
B62: Diagnostics of the GTS in Russia
B63: Major technical characteristics of Gazprom Group’s gas transportation assets in Russia
B64: Breakdown of Gazprom Group’s trunk pipelines and pipeline branches by operating life
B65: Gas received into and distributed from Gazprom’s GTS in Russia
B66: Gas transportation volumes of Nord Stream, Blue Stream and Power of Siberia gas pipelines
B67: Gas transportation services provided to PJSC Gazprom in neighbouring countries
B68: Major technical characteristics of gas transportation assets of Gazprom Group’s subsidiaries abroad
B69: Main existing PJSC Gazprom’s export gas transportation routes
B70: Gazprom Group’s major gas transportation projects
A71: + | B71: Underground Gas Storage
B72: Gazprom’s UGSFs in Russia
B73: Gas storage in Russia
B74: Gazprom’s gas injection into and withdrawal from UGSFs abroad
B75: Major projects for the development of underground gas storage in Russia
B76: UGSFs with Gazprom Group participation abroad
B77: European UGSF capacity leased by OOO Gazprom export by the start of the 2019/2020 withdrawal season
B78: Promising UGSFs with Gazprom Group’s participation abroad
A79: + | B79: Hydrocarbon Refining and Processing, Gas Chemical and Petrochemical Business
B80: Volumes of Gazprom Group’s hydrocarbon processing
B81: Liquid hydrocarbon primary processing by Gazprom’s major subsidiaries
B82: Processing of natural and associated gas supplied by non-Group companies at key subsidiaries of PJSC Gazprom
B83: Major types of Gazprom Group’s refined and processed products, and gas chemical and petrochemical products
B84: Areas at utilization of some types of refined oil and gas products produced by Gazprom Group
B85: Refined products produced by major Gazprom Group’s subsidiaries
B86: Hydrocarbon refining/processing, gas chemical and petrochemical plants
B87: Major Gazprom Group’s new hydrocarbon refining and processing, gas chemical and petrochemical projects
B88: Prospective hydrocarbon refining and processing, gas chemical and petrochemical projects where Gazprom Group participates
B89: Gazprom Group’s projects for transportation of liquid hydrocarbons from the Nadym-Pur-Taz region
B90: Gazprom Group’s capacities to transport liquid hydrocarbons from the Nadym-Pur-Taz region
A91: + | B91: Power and Heat Generation
B92: Electric power and heat generating capacity of Gazprom Group
B93: Electric power and heat generated by Gazprom Group
B94: Investment Projects in Power and Heat
B95: Major projects to create new capacity
B96: Major upgrade and modernization projects
A97: - | B97: Marketing
A98: + | B98: Gas sales
B99: Natural gas sales volumes
B100: Average natural gas price
B101: Gazprom Group’s natural gas sales volumes
B102: Gazprom Group’s natural gas sales volumes to foreign countries
B103: Gazprom’s share in domestic gas demand in Russia
B104: Regulated weighted average wholesale prices for natural gas in Russia
B105: Gazprom Group subsidiaries’ gas sales volumes to end-consumers in far abroad countries
B106: Gazprom Group’s large scale LNG sales volumes to foreign countries
B107: Gazprom Group’s LNG receiving, storage and regasification capacities
B108: Promising large scale LNG projects with Gazprom Group’s participation
B109: Promising small and medium scale LNG projects
B110: Gas distribution and gasification in Russia
B111: Gazprom Group’s gas distribution operations abroad
A112: + | B112: Sales of Crude Oil, Gas Condensate and Refined Products
B113: Oil and gas condensate sales revenue
B114: Gazprom Group’s oil and gas condensate sales volumes
B115: Refined products sales revenue
B116: Gazprom Group’s refined products sales volumes
B117: Gazprom Group’s sales volumes of refined products and petrochemical products
B118: Gazprom Group’s helium sales volumes
A119: + | B119: Sales of Electricity, Heat Energy and Gas Transportation Services
B120: Electricity and heat energy sales revenue
B121: Gas transportation sales revenue
B122: Sales volumes of gas transportation services to companies other than Gazprom Group’s companies
A123: + | B123: Environmental Protection and Energy Saving
B124: Gazprom Group’s environmental performance in Russia
B125: Gazprom Group’s environmental protection costs in Russia
B126: Energy saving of PJSC Gazprom and its major subsidiaries
A127: + | B127: Occupational Safety
B128: Occupational safety at Gazprom Group entities covered by the UOHSMS
B129: Occupational safety at Gazprom Group entities outside the UOHSMS
A130: + | B130: Patent management, R&D
B131: Number of patents held by PJSC Gazprom and its subsidiaries
B132: Total spending on R&D projects commissioned by Gazprom Group
A133: - | B133: Personnel
A134: + | B134: Reference information
B135: Conventions
B136: Conversion Table
B137: Calculation of Adjusted Financial Statement Measures and Financial Ratios
B138: Glossary
A139: +

Sheet Preface
A1: Preface
A2: This reference material is based on Gazprom in Figures 2015–2019 Factbook and compiled in a spreadsheet format.
A3: Gazprom in Figures 2015–2019 Factbook contains information and statistics prepared for the annual General Shareholders Meeting of PJSC Gazprom in 2020. The Factbook is based on PJSC Gazprom's corporate reports and information derived from Russian and foreign information publications.
A4: Figures in Gazprom Group’s consolidated financial statements prepared in accordance with IFRS (“IFRS consolidated financial statements”) are supplemented with data for 2010–2014, while production and other performance data are supplemented with comparable data from PJSC Gazprom’s Factbooks, Annual Reports, and Management Reports for 2014 and previous periods.
A5: The terms “PJSC Gazprom” and the Company as used in this Factbook refer to the parent company of Gazprom Group, i.e. to Public Joint Stock Company Gazprom (until 17 June 2015 — Open Joint Stock Company Gazprom, JSC Gazprom).
A6: Gazprom Group, the Group and Gazprom should be understood as a set of companies, consisting of PJSC Gazprom and its subsidiaries. For the purposes of this Handbook list of subsidiaries, list of entities, investments in which are classified as joint operations, list of associates and list of joint ventures of Gazprom Group are presented on the basis of the principles of PJSC Gazprom’s consolidated financial reporting statements information disclosure, prepared in accordance with the international financial reporting standards (IFRS).
A7: Similarly, the terms “Gazprom Neft Group” and “Gazprom Neft” refer to PAO Gazprom Neft and its subsidiaries, “Gazprom energoholding” refers to OOO Gazprom energoholding and its subsidiaries, “Gazprom neftekhim Salavat” refers to OOO Gazprom neftekhim Salavat and its subsidiaries.
A8: Gazprom's overall results as stated in the Factbook are presented in compliance with the principles for preparing Gazprom Group's consolidated financial statements prepared under IFRS (hereafter, the “IFRS consolidated financial statements”) and/or for the whole of Gazprom Group companies for the purposes of Gazprom Group's IFRS consolidated financial statements. In accordance with IFRS 11 Joint Arrangements, the volumes of hydrocarbon reserves, production and processing of hydrocarbons presented in the Factbook include share in the results of entities where Gazprom has investments classified as joint operations.
A9: Some figures of PJSC Gazprom and its subsidiaries were derived from management accounts. Figures calculated using these methods may not be comparable due to differences in methodologies for preparing consolidated financial statements and maintaining management accounts.
A10: The Group maintains its management accounts in metric units. Figures representing barrels of oil equivalent (boe) were calculated using the specified conversion ratios.
A11: The Group's financial results are derived from Gazprom Group’s IFRS consolidated financial statements. Gazprom Group’s accounting (financial) statements are expressed in Russian rubles. Equivalent amounts in USD and EUR were calculated at the specified exchange rates and do not represent the Group's financial statements data.
A13: Back to Contents

Sheet Gazprom globally
A1: Gazprom in Russian and Global Energy Industry
B2: As at and for the year ended 31 December
B3: 2005 | C3: 2006 | D3: 2007 | E3: 2008 | F3: 2009 | G3: 2010 | H3: 2011 | I3: 2012 | J3: 2013 | K3: 2014 | L3: 2015 | M3: 2016 | N3: 2017 | O3: 2018 | P3: 2019
A4: Share in the world natural gas industry
A5: Reserves*,*** | B5: 0.166 | C5: 0.168 | D5: 0.165 | E5: 0.18 | F5: 0.18 | G5: 0.176 | H5: 0.183 | I5: 0.183 | J5: 0.166 | K5: 0.168 | L5: 0.169 | M5: 0.171 | N5: 0.167 | O5: 0.162 | P5: 0.163
A6: Production*,*** | B6: =0.185 -> 0.185 | C6: =0.181 -> 0.181 | D6: =0.174 -> 0.174 | E6: 0.167 | F6: 0.145 | G6: 0.148 | H6: 0.145 | I6: 0.136 | J6: 0.135 | K6: 0.121 | L6: 0.112 | M6: 0.112 | N6: 0.12 | O6: 0.121 | P6: 0.117
A7: Share in the Russian fuel and energy complex
A8: Russian natural gas reserves*** | B8: 0.609 | C8: 0.624 | D8: 0.621 | E8: 0.689 | F8: 0.698 | G8: 0.687 | H8: 0.718 | I8: 0.72 | J8: 0.723 | K8: 0.723 | L8: 0.716 | M8: 0.717 | N8: 0.717 | O8: 0.711 | P8: 0.711
A9: Gas production**,*** | B9: 0.866 | C9: 0.847 | D9: 0.839 | E9: 0.827 | F9: 0.792 | G9: 0.781 | H9: 0.765 | I9: 0.746 | J9: 0.731 | K9: 0.693 | L9: 0.66 | M9: 0.656 | N9: 0.683 | O9: 0.687 | P9: 0.679
A10: Crude oil and gas condensate production**,*** | B10: 0.045 | C10: 0.094 | D10: 0.092 | E10: 0.088 | F10: 0.084 | G10: 0.086 | H10: 0.087 | I10: 0.106 | J10: 0.109 | K10: 0.11 | L10: 0.111 | M10: 0.115 | N10: 0.118 | O10: 0.116 | P10: 0.115
A11: Primary processing of oil and stable gas condensate**,*** | B11: 0.049 | C11: 0.14 | D11: 0.141 | E11: 0.145 | F11: 0.155 | G11: 0.165 | H11: 0.172 | I11: 0.188 | J11: 0.194 | K11: 0.189 | L11: 0.185 | M11: 0.184 | N11: 0.177 | O11: 0.182 | P11: 0.182
A12: Electric power energy production**,*** | B12: – | C12: – | D12: 0.031 | E12: 0.105 | F12: 0.139 | G12: 0.169 | H12: 0.169 | I12: 0.162 | J12: 0.153 | K12: 0.146 | L12: 0.143 | M12: 0.146 | N12: 0.148 | O12: 0.141 | P12: 0.137
A13: Total length of trunk pipelines and pipeline branches operated by gas transportation subsidiaries of Gazprom Group in Russia****, thousand km | B13: 155 | C13: 156.9 | D13: 158.2 | E13: 159.5 | F13: 160.4 | G13: 161.7 | H13: 164.7 | I13: 168.3 | J13: 168.9 | K13: 170.7 | L13: 171.2 | M13: 171.8 | N13: 172.1 | O13: 172.6 | P13: 175.2
A14: * Based on International Natural Gas Center CEDIGAZ and PJSC Gazprom figures. Statistics on international production and trade are adjusted to Russian standard terms and conditions using 1.07 ratio.
A15: ** Based on Federal State Statistics Service, Ministry of Energy of Russia, UES System Operator and PJSC Gazprom figures.
A16: *** Starting from 1 January 2012, the volumes include share in the results of entities where Gazprom has investments classified as joint operations.
A17: **** Starting from 1 January 2013, total length of trunk pipelines includes length of technological branches.
A19: Back to Contents

Sheet Financial results
A1: Financial Results
A2: Major financial results and ratios of Gazprom Group
B3: As at and for the year ended 31 December
B4: 2010 | C4: 2011 | D4: 2012 | E4: 2013 | F4: 2014 | G4: 2015 | H4: 2016 | I4: 2017 | J4: 2018 | K4: 2019
A5: Statement of comprehensive income figures
A6: Sales, RUB mm | B6: 3597054 | C6: 4637090 | D6: 4766495 | E6: 5249965 | F6: 5589811 | G6: 6073318 | H6: 6111051 | I6: 6546143 | J6: 8224177 | K6: 7659623
A7: Operating expenses, RUB mm | B7: 2440777 | C7: 2942181 | D7: 3421847 | E7: 3600908 | F7: 4128330 | G7: 4762444 | H7: 5280876 | I7: 5697056 | J7: 6181191 | K7: 6387071
A8: Operating profit, RUB mm | B8: 1113822 | C8: 1656843 | D8: 1350677 | E8: 1587209 | F8: 1309509 | G8: 1237422 | H8: 726639 | I8: 871405 | J8: 1930030 | K8: 1119857
A9: Adjusted EBITDA, RUB mm | B9: 1363778 | C9: 1930533 | D9: 1645921 | E9: 2009475 | F9: 1961643 | G9: 1883847 | H9: 1323258 | I9: 1467692 | J9: 2599284 | K9: 1859679
A10: Profit for the year, RUB mm | B10: 997993 | C10: 1342442 | D10: 1252415 | E10: 1165705 | F10: 157192 | G10: 805199 | H10: 997104 | I10: 766879 | J10: 1528996 | K10: 1269517
A11: Profit for the year attributable to owners of PJSC Gazprom, RUB mm | B11: 968557 | C11: 1307018 | D11: 1224474 | E11: 1139261 | F11: 159004 | G11: 787056 | H11: 951637 | I11: 714302 | J11: 1456270 | K11: 1202887
A12: Basic and diluted earnings per share for profit attributable to the owners of PJSC Gazprom, RUB | B12: 42.2 | C12: 56.95 | D12: 53.35 | E12: 49.64 | F12: 6.93 | G12: 34.29 | H12: 42.19 | I12: 32.32 | J12: 65.89 | K12: 53.47
A13: Balance sheet figures
A14: Total assets, RUB mm | B14: 9235993 | C14: 10900696 | D14: 11956836 | E14: 13436236 | F14: 15177470 | G14: 17052040 | H14: 16918938 | I14: 18238770 | J14: 20810440 | K14: 21882348
A15: Current assets, RUB mm | B15: 1865895 | C15: 2240293 | D15: 2420803 | E15: 2862670 | F15: 3461155 | G15: 3993722 | H15: 3234346 | I15: 3469266 | J15: 4212230 | K15: 3828153
A16: Inventories, RUB mm | B16: 325739 | C16: 407530 | D16: 462746 | E16: 569724 | F16: 671916 | G16: 804364 | H16: 711199 | I16: 772314 | J16: 909677 | K16: 946361
A17: Current liabilities, RUB mm | B17: 1011261 | C17: 1309255 | D17: 1492066 | E17: 1391465 | F17: 1855947 | G17: 2124701 | H17: 1921808 | I17: 2589516 | J17: 2473695 | K17: 2527476
A18: Total debt, RUB mm | B18: 1315447 | C18: 1536819 | D18: 1500592 | E18: 1801928 | F18: 2688824 | G18: 3442215 | H18: 2829623 | I18: 3266518 | J18: 3863822 | K18: 3863904
A19: Net debt, RUB mm | B19: 870993 | C19: 1028176 | D19: 1 071 214 | E19: 1112798 | F19: 1650633 | G19: 2083120 | H19: 1932895 | I19: 2397511 | J19: 3014403 | K19: 3167847
A20: Equity, excluding non-controlling interest, RUB mm | B20: 6249751 | C20: 7463571 | D20: 8170733 | E20: 9319590 | F20: 9816558 | G20: 10589586 | H20: 11094531 | I20: 11629086 | J20: 13300009 | K20: 14104833
A21: Equity, including non-controlling interest, RUB mm | B21: 6536361 | C21: 7760991 | D21: 8479945 | E21: 9634354 | F21: 10120021 | G21: 10914622 | H21: 11441839 | I21: 12015481 | J21: 13776153 | K21: 14615687
A22: Capital expenditures*, RUB mm | B22: 920133 | C22: 1351590 | D22: 1233210 | E22: 1213850 | F22: 1221328 | G22: 1349635 | H22: 1357336 | I22: 1504600 | J22: 1795884 | K22: 1818677
A23: Statement of cash flows figures
A24: Cash flows from operating activities, RUB mm | B24: 1460116 | C24: 1637450 | D24: 1472779 | E24: 1741804 | F24: 1915769 | G24: 2030927 | H24: 1571323 | I24: 1187022 | J24: 1617384 | K24: 1709384
A25: Capital expenditures, RUB mm | B25: -1042642 | C25: -1553118 | D25: -1349114 | E25: -1397195 | F25: -1262140 | G25: -1641024 | H25: -1369052 | I25: -1405780 | J25: -1639474 | K25: -1775923
A26: Cash flows used in investing activities, RUB mm | B26: -1050307 | C26: -1605245 | D26: -1287216 | E26: -1466512 | F26: -1441305 | G26: -1664156 | H26: -1445965 | I26: -1368131 | J26: -1617718 | K26: -1938109
A27: Cash flows (used in) from financing activities, RUB mm | B27: -212384 | C27: 31814 | D27: -253870 | E27: -33262 | F27: -262587 | G27: -138305 | H27: -460479 | I27: 149944 | J27: -96070 | K27: 152375
A28: Cash and cash equivalents as at the end of the reporting year, RUB mm | B28: 440786 | C28: 501344 | D28: 425720 | E28: 689130 | F28: 1038191 | G28: 1359095 | H28: 896728 | I28: 869007 | J28: 849419 | K28: 696057
A29: Self-financing ratio | B29: 1.4 | C29: 1.05 | D29: 1.09 | E29: 1.25 | F29: 1.52 | G29: 1.24 | H29: 1.15 | I29: 0.84 | J29: 0.99 | K29: 0.96
A30: Adjusted financial statement measures**
A31: Profit for the year attributable to owners of PJSC Gazprom (adjusted), RUB mm | G31: 1329369 | H31: 609184 | I31: 651670 | J31: 1678319 | K31: 994309
A32: Net debt (adjusted), RUB mm | G32: 1951528 | H32: 1746630 | I32: 2067983 | J32: 2216831 | K32: 2491425
A33: Return ratios***
A34: Return on operating profit | B34: 0.31 | C34: 0.36 | D34: 0.28 | E34: 0.3 | F34: 0.23 | G34: 0.2 | H34: 0.12 | I34: 0.13 | J34: 0.23 | K34: 0.15
A35: Return on adjusted EBITDA | B35: 0.38 | C35: 0.42 | D35: 0.35 | E35: 0.38 | F35: 0.35 | G35: 0.31 | H35: 0.22 | I35: 0.22 | J35: 0.32 | K35: 0.24
A36: Return on profit for the year | B36: 0.28 | C36: 0.29 | D36: 0.26 | E36: 0.22 | F36: 0.03 | G36: 0.13 | H36: 0.16 | I36: 0.12 | J36: 0.19 | K36: 0.17
A37: Return on assets (ROA) | B37: 0.1133791712 | C37: 0.13 | D37: 0.11 | E37: 0.09 | F37: 0.01 | G37: 0.05 | H37: 0.06 | I37: 0.04 | J37: 0.08 | K37: 0.06
A38: Return on equity (ROE) | B38: 0.1637976438 | C38: 0.19 | D38: 0.15 | E38: 0.13 | F38: 0.02 | G38: 0.08 | H38: 0.09 | I38: 0.07 | J38: 0.12 | K38: 0.09
A39: Ratios of total and net debt
A40: Total debt / equity and non-controlling interest | B40: 0.2 | C40: 0.2 | D40: 0.18 | E40: 0.19 | F40: 0.27 | G40: 0.32 | H40: 0.25 | I40: 0.27 | J40: 0.28 | K40: 0.26
A41: Total debt / total debt, equity and non-controlling interest | B41: 0.17 | C41: 0.17 | D41: 0.15 | E41: 0.16 | F41: 0.21 | G41: 0.24 | H41: 0.2 | I41: 0.21 | J41: 0.22 | K41: 0.21
A42: Total debt / total assets | B42: 0.14 | C42: 0.14 | D42: 0.13 | E42: 0.13 | F42: 0.18 | G42: 0.2 | H42: 0.17 | I42: 0.18 | J42: 0.19 | K42: 0.18
A43: Total debt / adjusted EBITDA | B43: 0.96 | C43: 0.8 | D43: 0.91 | E43: 0.9 | F43: 1.37 | G43: 1.83 | H43: 2.14 | I43: 2.23 | J43: 1.49 | K43: 2.08
A44: Net debt / adjusted EBITDA | B44: 0.64 | C44: 0.54 | D44: 0.65 | E44: 0.55 | F44: 0.84 | G44: 1.11 | H44: 1.46 | I44: 1.63 | J44: 1.16 | K44: 1.7
A45: Net debt (adjusted) / adjusted EBITDA | K45: 1.34
A46: Liquidity ratios***
A47: Current liquidity ratio | B47: 1.85 | C47: 1.71 | D47: 1.62 | E47: 2.06 | F47: 1.86 | G47: 1.88 | H47: 1.68 | I47: 1.34 | J47: 1.7 | K47: 1.51
A48: Quick liquidity ratio | B48: 1.523005436 | C48: 1.4 | D48: 1.31 | E48: 1.65 | F48: 1.5 | G48: 1.5 | H48: 1.31 | I48: 1.04 | J48: 1.34 | K48: 1.14
A49: Other ratios***
A50: EV / EBITDA | B50: 3.999667518 | C50: 2.6 | D50: 2.7 | E50: 2.2 | F50: 2.4 | G50: 2.8 | H50: 4.2 | I50: 3.7 | J50: 2.6 | K50: 5
A51: P / E | B51: 4.588151659 | C51: 3 | D51: 2.7 | E51: 2.8 | F51: 18.8 | G51: 4 | H51: 3.6 | I51: 4 | J51: 2.3 | K51: 4.8
A52: P / S | B52: 1.274283224 | C52: 0.9 | D52: 0.7 | E52: 0.6 | F52: 0.6 | G52: 0.5 | H52: 0.6 | I52: 0.5 | J52: 0.4 | K52: 0.8
A53: * Capital expenditures are derived from Segment Information in PJSC Gazprom’s IFRS consolidated financial statements.
A54: ** These measures do not appear in the financial statements. Calculated in accordance with the Dividend Policy of PJSC Gazprom approved by PJSC Gazprom’s Board of Directors in 2019 (Resolution of PJSC Gazprom’s Board of Directors No. 3363 dated 24 December 2019). For calculation formulas, see the Calculation of Adjusted Financial Statement Measures and Financial Ratios section.
A55: *** Calculation is provided in the Calculation of Financial Ratios section.
A57: Back to Contents

Sheet Macroeconomic data
A1: Macroeconomic Data
A2: Indicator* | B2: Measure | C2: As at and for the year ended 31 December
C3: 2005 | D3: 2006 | E3: 2007 | F3: 2008 | G3: 2009 | H3: 2010 | I3: 2011 | J3: 2012 | K3: 2013 | L3: 2014 | M3: 2015 | N3: 2016 | O3: 2017 | P3: 2018 | Q3: 2019
A4: Consumer price index | B4: % | C4: 0.109 | D4: 0.09 | E4: 0.119 | F4: 0.133 | G4: 0.088 | H4: 0.088 | I4: 0.061 | J4: 0.066 | K4: 0.065 | L4: 0.114 | M4: 0.129 | N4: 0.054 | O4: 0.025 | P4: 0.043 | Q4: 0.03
A5: Producer price index | B5: % | C5: 0.134 | D5: 0.104 | E5: 0.251 | F5: -0.07 | G5: 0.139 | H5: 0.167 | I5: 0.12 | J5: 0.051 | K5: 0.037 | L5: 0.059 | M5: 0.107 | N5: 0.074 | O5: 0.084 | P5: 0.117 | Q5: -0.043
A6: Average RUB/USD currency exchange rate for the period | B6: RUB/USD | C6: 28.32 | D6: 27.14 | E6: 25.55 | F6: 24.87 | G6: 31.75 | H6: 30.38 | I6: 29.39 | J6: 31.08 | K6: 31.9 | L6: 38.6 | M6: 61.32 | N6: 66.83 | O6: 58.31 | P6: 62.9 | Q6: 64.64
A7: RUB/USD currency exchange rate at the end of the period | B7: RUB/USD | C7: 28.78 | D7: 26.33 | E7: 24.55 | F7: 29.38 | G7: 30.24 | H7: 30.36 | I7: 32.2 | J7: 30.37 | K7: 32, 73 | L7: 56.26 | M7: 72.88 | N7: 60.66 | O7: 57.6 | P7: 69.47 | Q7: 61.91
A8: Average RUB/EUR currency exchange rate for the period | B8: RUB/EUR | C8: 35.15 | D8: 34.11 | E8: 35.03 | F8: 36.45 | G8: 44.19 | H8: 40.21 | I8: 40.9 | J8: 39.92 | K8: 42.39 | L8: 50.99 | M8: 67.99 | N8: 73.99 | O8: 66.02 | P8: 74.11 | Q8: 72.35
A9: RUB/EUR currency exchange rate at the end of the period | B9: RUB/EUR | C9: 34.19 | D9: 34.7 | E9: 35.93 | F9: 41.44 | G9: 43.39 | H9: 39.9 | I9: 41.67 | J9: 40.23 | K9: 44.97 | L9: 68.34 | M9: 79.7 | N9: 63.81 | O9: 68.87 | P9: 79.46 | Q9: 69.34
A10: Brent oil price (Dated)** | B10: USD/barrel | C10: 58.21 | D10: 58.93 | E10: 96.02 | F10: 36.55 | G10: 77.67 | H10: 92.54 | I10: 106.51 | J10: 109.99 | K10: 110.28 | L10: 55,98 | M10: 35.74 | N10: 54.94 | O10: 66.54 | P10: 50.21 | Q10: 66.77
A11: Urals oil price (average CIF MED/RDAM)** | B11: USD/barrel | C11: 53.61 | D11: 55.26 | E11: 93.09 | F11: 35.89 | G11: 77 | H11: 90.27 | I11: 104.29 | J11: 108.09 | K11: 109.1 | L11: 53,40 | M11: 33.11 | N11: 53.27 | O11: 66.19 | P11: 51.18 | Q11: 62.38
A12: Brent average annual oil price (Dated)** | B12: USD/barrel | C12: 54.52 | D12: 65.14 | E12: 72.39 | F12: 97.28 | G12: 61.67 | H12: 79.5 | I12: 111.26 | J12: 111.67 | K12: 108.66 | L12: 98,95 | M12: 52.39 | N12: 43.73 | O12: 54.19 | P12: 71.31 | Q12: 64.21
A13: Urals (average CIF MED/RDAM) average annual oil price** | B13: USD/barrel | C13: 50.59 | D13: 61.28 | E13: 69.28 | F13: 94.82 | G13: 61.18 | H13: 78.28 | I13: 109.1 | J13: 110.37 | K13: 107.71 | L13: 96,94 | M13: 51.42 | N13: 42.1 | O13: 53.06 | P13: 70.05 | Q13: 63.37
A14: * Economic indicators and exchange rates based on the data provided by Central Bank of Russia and the Federal State Statistics Service. The average exchange rates calculated based on the working days exchange rates provided by Central Bank of Russia.
A15: ** Source: Platts.
A17: Back to Contents

Sheet Market data
A1: Market Data
A2: Indicator | B2: Measure | C2: As at and for the year ended 31 December
C3: 2005 | D3: 2006 | E3: 2007 | F3: 2008 | G3: 2009 | H3: 2010 | I3: 2011 | J3: 2012 | K3: 2013 | L3: 2014 | M3: 2015 | N3: 2016 | O3: 2017 | P3: 2018 | Q3: 2019
A4: Price per share on Moscow Exchange
A5: as at the end of the year | B5: RUB | C5: 194.3 | D5: 302.89 | E5: 342.88 | F5: 108.6 | G5: 183.21 | H5: 193.62 | I5: 171.37 | J5: 143.91 | K5: 138.75 | L5: 130,31 | M5: 136.09 | N5: 154.55 | O5: 130.5 | P5: 153.5 | Q5: 256.4
A6: minimum | B6: RUB | C6: 69.6 | D6: 216 | E6: 227.99 | F6: 86.6 | G6: 101.91 | H6: 142.84 | I6: 143.03 | J6: 137.18 | K6: 107.17 | L6: 117,87 | M6: 130.9 | N6: 124.6 | O6: 115.35 | P6: 132.2 | Q6: 149.49
A7: maximum | B7: RUB | C7: 195 | D7: 350.25 | E7: 357.2 | F7: 367.4 | G7: 200.16 | H7: 197.34 | I7: 243.93 | J7: 199.69 | K7: 158 | L7: 153,25 | M7: 163 | N7: 168.47 | O7: 157.97 | P7: 172.11 | Q7: 270.74
A8: Price per ADR* on London Stock Exchange
A9: as at the end of the year | B9: USD | C9: 28.68 | D9: 46 | E9: 56.7 | F9: 14.25 | G9: 25.5 | H9: 25.25 | I9: 10.66 | J9: 9.46 | K9: 8.55 | L9: 4,65 | M9: 3.69 | N9: 5.05 | O9: 4.41 | P9: 4.43 | Q9: 8.23
A10: minimum | B10: USD | C10: 11.92 | D10: 29.48 | E10: 35.4 | F10: 11.91 | G10: 12.26 | H10: 18.06 | I10: 8.74 | J10: 8.7 | K10: 6.48 | L10: 3,73 | M10: 3.62 | N10: 3.02 | O10: 3.85 | P10: 4.14 | Q10: 4.47
A11: maximum | B11: USD | C11: 31.4 | D11: 52.64 | E11: 58.5 | F11: 62.5 | G11: 27.3 | H11: 26.64 | I11: 17.4 | J11: 13.53 | K11: 9.82 | L11: 9,06 | M11: 6.24 | N11: 5.27 | O11: 5.27 | P11: 5.31 | Q11: 8.35
A12: Number of PJSC Gazprom’s ordinary shares issued, as at the end of the year | B12: mm shares | C12: 23674 | D12: 23674 | E12: 23674 | F12: 23674 | G12: 23674 | H12: 23674 | I12: 23674 | J12: 23674 | K12: 23674 | L12: 23 674 | M12: 23 674 | N12: 23673.5129 | O12: 23673.5129 | P12: 23673.5129 | Q12: 23674
A13: Number of ordinary shares held by the subsidiaries of PJSC Gazprom, as at the end of the year | B13: mm shares | C13: 848 | D13: 749 | E13: 66 | F13: 30 | G13: 724 | H13: 723 | I13: 726 | J13: 724 | K13: 723 | L13: 723 | M13: 723 | N13: 1573 | O13: 1573 | P13: 1573 | Q13: 29
A14: Number of ordinary shares issued less shares held by the subsidiaries of PJSC Gazprom, as at the end of the year** | B14: mm shares | C14: =C12-C13 -> 22826 | D14: 22925 | E14: 23608 | F14: 23644 | G14: 22950 | H14: 22951 | I14: 22948 | J14: 22950 | K14: 22 951 | L14: 22 951 | M14: 22 951 | N14: 22101 | O14: 22101 | P14: 22101 | Q14: 23645
A15: Market capitalization as at the end of the year*** | B15: USD bn | C15: 160.3 | D15: 272 | E15: 330.9 | F15: 86 | G15: 144.5 | H15: 150.9 | I15: 122.6 | J15: 111.6 | K15: 99.9 | L15: 54,8 | M15: 44.2 | N15: 60.3 | O15: 53.6 | P15: 52.3 | Q15: 98
A16: change (y-o-y) | B16: % | C16: 1.418 | D16: =ROUND((D15-C15)/C15,3) -> 0.697 | E16: 0.217 | F16: -0.74 | G16: 0.68 | H16: 0.044 | I16: -0.188 | J16: -0.09 | K16: -0.105 | L16: -0.451 | M16: -0.193 | N16: 0.364 | O16: -0.111 | P16: -0.024 | Q16: 0.875
A17: MOEX Russia index | B17: points | C17: 1011 | D17: 1693 | E17: 1889 | F17: 620 | G17: 1370 | H17: 1688 | I17: 1402 | J17: 1475 | K17: 1504 | L17: 1 397 | M17: 1761 | N17: 2233 | O17: 2110 | P17: 2369 | Q17: 3046
A18: change (y-o-y) | B18: % | C18: 0.832 | D18: =ROUND((D17-C17)/C17,3) -> 0.675 | E18: 0.116 | F18: -0.672 | G18: 1.21 | H18: 0.232 | I18: -0.169 | J18: 0.052 | K18: 0.02 | L18: -0.071 | M18: 0.261 | N18: 0.268 | O18: -0.055 | P18: 0.123 | Q18: 0.286
A19: RTS index | B19: points | C19: 1126 | D19: 1922 | E19: 2291 | F19: 632 | G19: 1445 | H19: 1770 | I19: 1382 | J19: 1527 | K19: 1443 | L19: 791 | M19: 757 | N19: 1152 | O19: 1154 | P19: 1069 | Q19: 1549
A20: change (y-o-y) | B20: % | C20: 0.858 | D20: =ROUND((D19-C19)/C19,3) -> 0.707 | E20: 0.192 | F20: -0.724 | G20: 1.286 | H20: 0.225 | I20: -0.219 | J20: 0.105 | K20: -0.055 | L20: -0.452 | M20: -0.043 | N20: 0.522 | O20: 0.002 | P20: -0.074 | Q20: 0.449
A21: Daily average trading volume, Moscow Exchange | B21: mm shares | C21: 20.8 | D21: 49.2 | E21: 47.8 | F21: 67.2 | G21: 85.2 | H21: 56.4 | I21: 74.6 | J21: 39.4 | K21: 43.9 | L21: 52,5 | M21: 32.5 | N21: 29.9 | O21: 28.9 | P21: 26.3 | Q21: 37
A22: Daily average trading volume, London Stock Exchange | B22: mm ADRs | C22: 1.7 | D22: 4.4 | E22: 7.2 | F22: 16.9 | G22: 12.6 | H22: 13.7 | I22: 43.2 | J22: 32.1 | K22: 25 | L22: 27,6 | M22: 16.4 | N22: 15.9 | O22: 12 | P22: 9.2 | Q22: 8.1
A23: Dividend per share**** | B23: RUB | C23: 1.5 | D23: 2.54 | E23: 2.66 | F23: 0.36 | G23: 2.39 | H23: 3.85 | I23: 8.97 | J23: 5.99 | K23: 7.2 | L23: 7,20 | M23: 7.89 | N23: 8.0397 | O23: 8.04 | P23: 16.61 | Q23: 15.24
A24: Share capital structure
A25: Shareholding controlled by the Russian Federation
A26: Federal Agency for State Property Management | B26: % | C26: 0.38373 | D26: 0.38373 | E26: 0.38373 | F26: 0.38373 | G26: 0.38373 | H26: 0.38373 | I26: 0.3837 | J26: 0.3837 | K26: 0.3837 | L26: 0.3837 | M26: 0.3837 | N26: 0.3837 | O26: 0.3837 | P26: 0.3837 | Q26: 0.3837
A27: AO ROSNEFTEGAZ | B27: % | C27: 0.1074 | D27: 0.1074 | E27: 0.1074 | F27: 0.1074 | G27: 0.1074 | H27: 0.1074 | I27: 0.1074 | J27: 0.1074 | K27: 0.1097 | L27: 0.1097 | M27: 0.1097 | N27: 0.1097 | O27: 0.1097 | P27: 0.1097 | Q27: 0.1097
A28: AO Rosgazifikatsiya | B28: % | C28: 0.00889 | D28: 0.00889 | E28: 0.00889 | F28: 0.00889 | G28: 0.00889 | H28: 0.00889 | I28: 0.0089 | J28: 0.0089 | K28: 0.0089 | L28: 0.0089 | M28: 0.0089 | N28: 0.0089 | O28: 0.0089 | P28: 0.0089 | Q28: 0.0089
A29: ADR holders***** | B29: % | C29: 0.04422 | D29: 0.132 | E29: 0.2102 | F29: 0.2215 | G29: 0.2435 | H29: 0.2757 | I29: 0.2835 | J29: 0.2696 | K29: 0.2578 | L29: 0.2805 | M29: 0.2783 | N29: 0.2686 | O29: 0.252 | P29: 0.2413 | Q29: 0.197
A30: Other registered holders | B30: % | C30: 0.45576 | D30: 0.36798 | E30: 0.28978 | F30: 0.27848 | G30: 0.25648 | H30: 0.22428 | I30: 0.2165 | J30: 0.2304 | K30: 0.2399 | L30: 0.2172 | M30: 0.2194 | N30: 0.2291 | O30: 0.2457 | P30: 0.2564 | Q30: 0.3007
A31: Total | B31: % | C31: =SUM(C26:C30) -> 1 | D31: 1 | E31: 1 | F31: 1 | G31: 1 | H31: 1 | I31: 1 | J31: 1 | K31: 1 | L31: 1 | M31: 1 | N31: 1 | O31: 1 | P31: 1 | Q31: 1
A32: * Before April 2011 1 ADR provided a right for 4 ordinary shares of OAO Gazprom. Since April 2011 onwards 1 ADR provides a right for 2 ordinary shares of OAO Gazprom (after 17 July 2015 — PJSC Gazprom).
A33: ** As at 31 December of the respective year, there were no ordinary shares of PJSC Gazprom which belong to the Company.
A34: *** Market capitalization based on Moscow Exchange share price converted into USD.
A35: **** For 2019 — recommended dividends.
A36: ***** The Bank of New York Mellon issued ADRs on PJSC Gazprom’s shares.
A38: Back to Contents

Sheet Reserves
A1: Exploration and Production in Russia
A2: Reserves
A3: Hydrocarbon reserves of Gazprom Group in Russia
A4: (including share in the reserves of entities, investments in which are classified as joint operations)
A5: Metric units
B6: As at 31 December
B7: 2005* | C7: 2006* | D7: 2007* | E7: 2008* | F7: 2009* | G7: 2010* | H7: 2011* | I7: 2012 | J7: 2013 | K7: 2014 | L7: 2015 | M7: 2016 | N7: 2017 | O7: 2018 | P7: 2019
A8: Natural gas, bcm
A9: Reserves, Russian classification | B9: 29130.7 | C9: 29854.2 | D9: 29785.4 | E9: 33123.2 | F9: 33578.4 | G9: 33052.3 | H9: 35046.9 | I9: 35169.8 | J9: 35696.6 | K9: 36101.4 | L9: 36147.3 | M9: 36443.9 | N9: 35355.4 | O9: 35195.3 | P9: 34899
A10: share audited under PRMS standards | B10: 0.95 | C10: 0.93 | D10: 0.95 | E10: 0.88 | F10: 0.89 | G10: 0.93 | H10: 0.9 | I10: 0.94 | J10: 0.93 | K10: 0.94 | L10: 0.94 | M10: 0.95 | N10: 0.94 | O10: 0.93 | P10: 0.93
A11: Proved | B11: 16052.1 | C11: 18187.6 | D11: 18286.5 | E11: 18187.8 | F11: 18609.9 | G11: 18991.3 | H11: 19212.6 | I11: 19133 | J11: 18939.3 | K11: 18894.7 | L11: 18791.2 | M11: 18596.5 | N11: 18253.4 | O11: 17890.4 | P11: 17715.1
A12: Probable | B12: 4757.2 | C12: 2580 | D12: 2551.5 | E12: 3088.2 | F12: 3338.1 | G12: 3529 | H12: 3631.5 | I12: 4254.1 | J12: 4325.2 | K12: 4616 | L12: 4913.8 | M12: 5258.6 | N12: 5893.2 | O12: 6364.7 | P12: 6680.4
A13: Proved + probable | B13: 20809.3 | C13: 20767.6 | D13: 20838 | E13: 21276 | F13: 21948 | G13: 22520.3 | H13: 22844.1 | I13: 23387.1 | J13: 23264.5 | K13: 23510.7 | L13: 23705 | M13: 23855.1 | N13: 24146.6 | O13: 24255.1 | P13: 24395.5
A14: Gas condensate, mm tonnes
A15: Reserves, Russian classification | B15: 1216.3 | C15: 1217 | D15: 1212.5 | E15: 1287.1 | F15: 1325.1 | G15: 1284.8 | H15: 1395.5 | I15: 1386.1 | J15: 1384.4 | K15: 1447 | L15: 1499.5 | M15: 1534.9 | N15: 1595.6 | O15: 1604.4 | P15: 1569.7
A16: share audited under PRMS standards | B16: 0.9 | C16: 0.9 | D16: 0.9 | E16: 0.85 | F16: 0.82 | G16: 0.86 | H16: 0.83 | I16: 0.89 | J16: 0.89 | K16: 0.92 | L16: 0.92 | M16: 0.94 | N16: 0.93 | O16: 0.94 | P16: 0.95
A17: Proved | B17: 507.9 | C17: 528.9 | D17: 568.9 | E17: 587.9 | F17: 586 | G17: 572.1 | H17: 605.2 | I17: 633.8 | J17: 638.8 | K17: 642.3 | L17: 699.5 | M17: 759.2 | N17: 797.7 | O17: 759.7 | P17: 730.2
A18: Probable | B18: 184.7 | C18: 130.1 | D18: 117.2 | E18: 141.9 | F18: 141.2 | G18: 147.2 | H18: 152.6 | I18: 174.9 | J18: 193.6 | K18: 206.3 | L18: 233.8 | M18: 259.7 | N18: 308 | O18: 330.5 | P18: 333
A19: Proved + probable | B19: 692.6 | C19: 659 | D19: 686.1 | E19: 729.8 | F19: 727.2 | G19: 719.3 | H19: 757.8 | I19: 808.7 | J19: 832.4 | K19: 848.6 | L19: 933.3 | M19: 1018.9 | N19: 1105.7 | O19: 1090.2 | P19: 1063.2
A20: Crude oil, mm tonnes
A21: Reserves, Russian classification | B21: 1357.5 | C21: 1386.9 | D21: 1509.9 | E21: 1601.7 | F21: 1785 | G21: 1732.9 | H21: 1767.3 | I21: 1992.2 | J21: 2019 | K21: 2053.1 | L21: 2082 | M21: 2078.5 | N21: 2045.3 | O21: 2015.7 | P21: 2005.7
A22: share audited under PRMS standards | B22: 0.93 | C22: 0.93 | D22: 0.93 | E22: 0.92 | F22: 0.85 | G22: 0.9 | H22: 0.89 | I22: 0.89 | J22: 0.89 | K22: 0.91 | L22: 0.92 | M22: 0.93 | N22: 0.94 | O22: 0.94 | P22: 0.96
A23: Proved | B23: 528.8 | C23: 688.9 | D23: 727 | E23: 713.2 | F23: 718.5 | G23: 717.4 | H23: 723.9 | I23: 819.5 | J23: 834.8 | K23: 830.5 | L23: 792.7 | M23: 789.5 | N23: 736.8 | O23: 712.3 | P23: 707.5
A24: Probable | B24: 702.9 | C24: 377.6 | D24: 405.5 | E24: 565 | F24: 435.5 | G24: 464.5 | H24: 492.2 | I24: 588.8 | J24: 572.4 | K24: 543.9 | L24: 562.7 | M24: 589.2 | N24: 623.2 | O24: 623.1 | P24: 667.3
A25: Proved + probable | B25: 1231.7 | C25: 1066.5 | D25: 1132.5 | E25: 1278.2 | F25: 1154 | G25: 1181.9 | H25: 1216.1 | I25: 1408.3 | J25: 1407.2 | K25: 1374.4 | L25: 1355.4 | M25: 1378.7 | N25: 1360 | O25: 1335.4 | P25: 1374.8
A26: * Excluding share of Gazprom Group in the reserves of entities, investments in which are classified as joint operations.
A28: Oil equivalent
B29: As at 31 December
B30: 2005* | C30: 2006* | D30: 2007* | E30: 2008* | F30: 2009* | G30: 2010* | H30: 2011* | I30: 2012 | J30: 2013 | K30: 2014 | L30: 2015 | M30: 2016 | N30: 2017 | O30: 2018 | P30: 2019
A31: Natural gas, mm boe
A32: Reserves, Russian classification | B32: =B9*6.49 -> 189058.243 | C32: 193753.758 | D32: 193307.246 | E32: 214969.568 | F32: 217923.816 | G32: 214509.427 | H32: 227454.381 | I32: 228252 | J32: 231670.9 | K32: 234298.1 | L32: 234596 | M32: 236520.9 | N32: 229456.5 | O32: 228417.5 | P32: 226494.5
A33: Proved | B33: 104178.2 | C33: =C11*6.49 -> 118037.524 | D33: 118679.385 | E33: 118038.822 | F33: 120778.2 | G33: 123253.537 | H33: 124689.774 | I33: 124173.2 | J33: 122916.1 | K33: 122626.6 | L33: 121954.9 | M33: 120691.3 | N33: 118464.5 | O33: 116108.7 | P33: 114971
A34: Probable | B34: =B12*6.49 -> 30874.228 | C34: 16744.2 | D34: 16559.235 | E34: 20042.418 | F34: 21664.269 | G34: 22903.21 | H34: 23568.435 | I34: 27609.1 | J34: 28070.5 | K34: 29957.8 | L34: 31890.6 | M34: 34128.3 | N34: 38246.9 | O34: 41306.9 | P34: 43355.8
A35: Proved + probable | B35: =B13*6.49 -> 135052.357 | C35: =C13*6.49 -> 134781.724 | D35: 135238.62 | E35: 138081.24 | F35: 142442.52 | G35: 146156.747 | H35: 148258.209 | I35: 151782.3 | J35: 150986.6 | K35: 152584.4 | L35: 153845.5 | M35: 154819.6 | N35: 156711.4 | O35: 157415.6 | P35: 158326.8
A36: Gas condensate, mm boe
A37: Reserves, Russian classification | B37: 9949.3 | C37: 9955.1 | D37: 9918.3 | E37: 10528.5 | F37: 10839.3 | G37: 10509.7 | H37: 11415.2 | I37: 11338.3 | J37: 11324.4 | K37: 11836.5 | L37: 12265.9 | M37: 12555.5 | N37: 13052 | O37: 13124 | P37: 12840.1
A38: Proved | B38: 4154.6 | C38: 4326.4 | D38: 4653.6 | E38: 4809 | F38: 4793.5 | G38: 4679.8 | H38: 4950.5 | I38: 5184.5 | J38: 5225.4 | K38: 5254 | L38: 5721.9 | M38: 6210.3 | N38: 6525.2 | O38: 6214.3 | P38: 5973
A39: Probable | B39: 1510.9 | C39: 1064.2 | D39: 958.7 | E39: 1160.8 | F39: 1155 | G39: 1204.1 | H39: 1248.3 | I39: 1430.7 | J39: 1583.6 | K39: 1687.5 | L39: 1912.5 | M39: 2124.3 | N39: 2519.4 | O39: 2703.5 | P39: 2723.9
A40: Proved + probable | B40: 5665.5 | C40: 5390.6 | D40: 5612.3 | E40: 5969.8 | F40: 5948.5 | G40: 5883.9 | H40: 6198.8 | I40: 6615.2 | J40: 6809 | K40: 6941.5 | L40: 7634.4 | M40: 8334.6 | N40: 9044.6 | O40: 8917.8 | P40: 8696.9
A41: Crude oil, mm boe
A42: Reserves, Russian classification | B42: 9950.5 | C42: 10166 | D42: 11067.6 | E42: 11740.5 | F42: 13084.1 | G42: 12702.2 | H42: 12954.3 | I42: 14602.8 | J42: 14799.3 | K42: 15049.2 | L42: 15261.1 | M42: 15235.4 | N42: 14992.1 | O42: 14775.1 | P42: 14701.8
A43: Proved | B43: 3876.1 | C43: 5049.6 | D43: 5328.9 | E43: 5227.8 | F43: 5266.6 | G43: 5258.5 | H43: 5306.2 | I43: 6006.9 | J43: 6119.1 | K43: 6087.6 | L43: 5810.5 | M43: 5787 | N43: 5400.7 | O43: 5221.2 | P43: 5186
A44: Probable | B44: 5152.3 | C44: 2767.8 | D44: 2972.3 | E44: 4141.4 | F44: 3192.2 | G44: 3404.8 | H44: 3607.8 | I44: 4315.9 | J44: 4195.7 | K44: 3986.8 | L44: 4124.6 | M44: 4318.8 | N44: 4568.1 | O44: 4567.3 | P44: 4891.3
A45: Proved + probable | B45: 9028.4 | C45: 7817.4 | D45: 8301.2 | E45: 9369.2 | F45: 8458.8 | G45: 8663.3 | H45: 8914 | I45: 10322.8 | J45: 10314.8 | K45: 10074.4 | L45: 9935.1 | M45: 10105.9 | N45: 9968.8 | O45: 9788.5 | P45: 10077.3
A46: Total, mm boe
A47: Reserves, Russian classification | B47: =B32+B37+B42 -> 208958.043 | C47: 213874.858 | D47: 214293.146 | E47: 237238.568 | F47: 241847.216 | G47: 237721.327 | H47: 251823.881 | I47: 254193.1 | J47: 257794.6 | K47: 261183.8 | L47: 262123 | M47: 264311.8 | N47: 257 500,6 | O47: 256316.6 | P47: 254036.4
A48: Proved | B48: =B33+B38+B43 -> 112208.9 | C48: 127413.524 | D48: 128661.885 | E48: 128075.622 | F48: 130838.3 | G48: 133191.837 | H48: 134946.474 | I48: 135364.6 | J48: 134260.6 | K48: 133968.2 | L48: 133487.3 | M48: 132688.6 | N48: 130 390,4 | O48: 127544.2 | P48: 126130
A49: Probable | B49: =B34+B39+B44 -> 37537.428 | C49: 20576.2 | D49: 20490.235 | E49: 25344.618 | F49: 26011.469 | G49: 27512.11 | H49: 28424.535 | I49: 33355.7 | J49: 33849.8 | K49: 35632.1 | L49: 37927.7 | M49: 40571.5 | N49: 45 334,4 | O49: 48577.7 | P49: 50971
A50: Proved + probable | B50: =B35+B40+B45 -> 149746.257 | C50: 147989.724 | D50: 149152.12 | E50: 153420.24 | F50: 156849.82 | G50: 160703.947 | H50: 163371.009 | I50: 168720.3 | J50: 168110.4 | K50: 169600.3 | L50: 171415 | M50: 173260.1 | N50: 175 724,8 | O50: 176121.9 | P50: 177101
A51: * Excluding share of Gazprom Group in the reserves of entities, investments in which are classified as joint operations.
A52: Note. For management accounting purposes, Gazprom Group measures hydrocarbon reserves and production in metric units. In this Factbook, gas reserves are converted from metric units to barrels of oil equivalent at a ratio of 1,000 cubic metres to 6.49 boe.
A54: Hydrocarbon fields and deposits discovered by Gazprom Group in Russia
B55: For the year ended 31 December
B56: 2005* | C56: 2006 | D56: 2007 | E56: 2008 | F56: 2009 | G56: 2010 | H56: 2011 | I56: 2012 | J56: 2013 | K56: 2014 | L56: 2015 | M56: 2016 | N56: 2017 | O56: 2018 | P56: 2019
A57: Gazprom Group
A58: Fields | B58: 3 | C58: 4 | D58: 3 | E58: 3 | F58: 7 | G58: 3 | H58: 5 | I58: 5 | J58: 2 | K58: 1 | L58: 2 | M58: 2 | N58: 4 | O58: 3 | P58: 4
A59: Deposits in previously discovered fields | B59: 14 | C59: 30 | D59: 24 | E59: 22 | F59: 14 | G59: 26 | H59: 28 | I59: 49 | J59: 27 | K59: 37 | L59: 22 | M59: 15 | N59: 47 | O59: 12 | P59: 25
A60: Entities in which Gazprom has investments classified as joint operations
A61: Fields | B61: x | C61: x | D61: x | E61: x | F61: x | G61: x | H61: x | I61: – | J61: – | K61: – | L61: – | M61: – | N61: 1 | O61: 1 | P61: 1
A62: Deposits in previously discovered fields | B62: x | C62: x | D62: x | E62: x | F62: x | G62: x | H62: x | I62: 2 | J62: 1 | K62: 2 | L62: 6 | M62: 3 | N62: 5 | O62: 3 | P62: 2
A63: * Excluding Gazprom Neft Group.
A65: Replacement ratio of Gazprom Group’s hydrocarbon reserves, Russian classification of reserves
A66: (including share in the reserves of entities, investments in which are classified as joint operations)
B67: For the year ended 31 December
B68: 2005* | C68: 2006* | D68: 2007* | E68: 2008* | F68: 2009* | G68: 2010* | H68: 2011* | I68: 2012* | J68: 2013 | K68: 2014 | L68: 2015 | M68: 2016 | N68: 2017 | O68: 2018 | P68: 2019
A69: Natural gas | B69: 1 | C69: 1.1 | D69: 1.1 | E69: 1.1 | F69: 1 | G69: 1.1 | H69: 1.4 | I69: 1.18 | J69: 1.33 | K69: 1.86 | L69: 1.27 | M69: 1.1 | N69: 1.82 | O69: 1.6 | P69: 1.11
A70: Gas condensate | B70: 1.82 | C70: 1.42 | D70: 1.18 | E70: 0.86 | F70: 5.28 | G70: 3.99 | H70: 4.41 | I70: 2.31 | J70: 0.52 | K70: 10.88 | L70: 6.12 | M70: 3.25 | N70: 7.97 | O70: 1.74 | P70: 0.88
A71: Crude oil | B71: 0.51 | C71: 1.38 | D71: 0.59 | E71: 1.69 | F71: 1.83 | G71: 2.6 | H71: 1.78 | I71: 1.67 | J71: 1.14 | K71: 0.57 | L71: 0.47 | M71: 0.41 | N71: 0.07 | O71: 0.41 | P71: 0.61
A72: Total | B72: 1.02 | C72: 1.09 | D72: 1.04 | E72: 1.1 | F72: 1.15 | G72: 1.24 | H72: 1.49 | I72: 1.24 | J72: 1.29 | K72: 1.95 | L72: 1.32 | M72: 1.08 | N72: 1.81 | O72: 1.49 | P72: 1.06
A73: * Excluding share of Gazprom Group in the reserves of entities, investments in which are classified as joint operations.
A75: Years of Gazprom Group’s hydrocarbon reserves, Russian classification of reserves
A76: (including share in the reserves of entities, investments in which are classified as joint operations)
H77: As at 31 December
H78: 2011* | I78: 2012* | J78: 2013 | K78: 2014 | L78: 2015 | M78: 2016 | N78: 2017 | O78: 2018 | P78: 2019
A79: Natural gas | H79: 69 | I79: 73 | J79: 73 | K79: 82 | L79: 87 | M79: 87 | N79: 75 | O79: 71 | P79: 70
A80: Crude oil | H80: 54 | I80: 54 | J80: 48 | K80: 47 | L80: 47 | M80: 44 | N80: 43 | O80: 43 | P80: 42
A81: * Excluding share of Gazprom Group in the reserves of entities, investments in which are classified as joint operations.
A83: Natural gas reserves of Gazprom Group in Russia, PRMS standards, bcm
A84: (including share in the reserves of entities, investments in which are classified as joint operations)
B85: As at 31 December
B86: 2005* | C86: 2006* | D86: 2007* | E86: 2008* | F86: 2009* | G86: 2010* | H86: 2011* | I86: 2012 | J86: 2013 | K86: 2014 | L86: 2015 | M86: 2016 | N86: 2017 | O86: 2018 | P86: 2019
A87: PJSC Gazprom and its major subsidiaries
A88: Proved | B88: 15714.7 | C88: 17902.5 | D88: 17319.5 | E88: 17196.8 | F88: 17645.5 | G88: 18029.4 | H88: 18208.1 | I88: 18133.7 | J88: 18036.7 | K88: 18023.7 | L88: 17942.5 | M88: 17780.9 | N88: 17 429,6 | O88: 17075.8 | P88: 16831.4
A89: Probable | B89: =IF(4672<>B90-B88,B90-B88,4672) -> 4671.9 | C89: 2572.4 | D89: 2539.4 | E89: 2908.8 | F89: 3255.2 | G89: 3420.6 | H89: 3505.7 | I89: 4068.2 | J89: 4072.4 | K89: 4303.7 | L89: 4587.6 | M89: 4930.2 | N89: 5 536,8 | O89: 6007.5 | P89: 6290.7
A90: Proved + probable | B90: 20386.6 | C90: 20474.9 | D90: 19858.9 | E90: 20105.6 | F90: 20900.7 | G90: 21450 | H90: 21713.8 | I90: 22201.9 | J90: 22109.1 | K90: 22327.4 | L90: 22530.1 | M90: 22711.1 | N90: 22 966,4 | O90: 23083.3 | P90: 23122.1
A91: PAO Gazprom Neft and its subsidiaries
A92: Proved | B92: 66.8 | C92: 29.5 | D92: 20.6 | E92: 73.2 | F92: 80.7 | G92: 118.9 | H92: 147.2 | I92: 193.8 | J92: 216.7 | K92: 223.5 | L92: 239.5 | M92: 243 | N92: 288.2 | O92: 322.3 | P92: 389.1
A93: Probable | B93: 81.3 | C93: 3.6 | D93: 1.8 | E93: 169.1 | F93: 72.6 | G93: 98.1 | H93: 106.4 | I93: 133.1 | J93: 111.3 | K93: 168.3 | L93: 182.1 | M93: 183 | N93: 210.5 | O93: 212.2 | P93: 259.5
A94: Proved + probable | B94: 148.1 | C94: 33.1 | D94: 22.4 | E94: 242.3 | F94: 153.3 | G94: 217 | H94: 253.6 | I94: 326.9 | J94: 328 | K94: 391.8 | L94: 421.6 | M94: 426 | N94: 498.7 | O94: 534.5 | P94: 648.6
A95: ZAO Purgaz
A96: Proved | B96: 270.6 | C96: 255.6 | D96: 233.1 | E96: 217.9 | F96: 206.4 | G96: 191.3 | H96: 188 | I96: 172.9 | J96: 158.3 | K96: 145 | L96: 132.3 | M96: 120.6 | N96: 109.7 | O96: 92 | P96: 83.2
A97: Probable | B97: 4 | C97: 4 | D97: 3.9 | E97: 3.9 | F97: 3.9 | G97: 3.9 | H97: 12.8 | I97: 12.9 | J97: 12.9 | K97: 12.9 | L97: 12.9 | M97: 12.9 | N97: 12.9 | O97: 12.7 | P97: 12.8
A98: Proved + probable | B98: 274.6 | C98: 259.6 | D98: 237 | E98: 221.8 | F98: 210.3 | G98: 195.2 | H98: 200.8 | I98: 185.8 | J98: 171.2 | K98: 157.9 | L98: 145.2 | M98: 133.5 | N98: 122.6 | O98: 104.7 | P98: 96
A99: OAO Severneftegazprom
A100: Proved | B100: x | C100: x | D100: 713.3 | E100: 699.9 | F100: 677.3 | G100: 651.7 | H100: 669.3 | I100: 613.7 | J100: 510 | K100: 484.9 | L100: 459.8 | M100: 434.6 | N100: 409.9 | O100: 384.8 | P100: 397.1
A101: Probable | B101: x | C101: x | D101: 6.4 | E101: 6.4 | F101: 6.4 | G101: 6.4 | H101: 6.6 | I101: 36.8 | J101: 125.7 | K101: 125.7 | L101: 125.7 | M101: 125.7 | N101: 125.5 | O101: 125.4 | P101: 110.5
A102: Proved + probable | B102: x | C102: x | D102: 719.7 | E102: 706.3 | F102: 683.7 | G102: 658.1 | H102: 675.9 | I102: 650.5 | J102: 635.7 | K102: 610.6 | L102: 585.5 | M102: 560.3 | N102: 535.4 | O102: 510.2 | P102: 507.6
A103: Total (excluding share in the reserves of entities, investments in which are classified as joint operations)
A104: Proved | B104: 16052.1 | C104: 18187.6 | D104: 18286.5 | E104: 18187.8 | F104: 18609.9 | G104: 18991.3 | H104: 19212.6 | I104: 19114.1 | J104: 18921.7 | K104: 18877.1 | L104: 18774.1 | M104: 18579.1 | N104: 18 237,4 | O104: 17874.9 | P104: 17700.8
A105: Probable | B105: 4757.2 | C105: 2580 | D105: 2551.5 | E105: 3088.2 | F105: 3338.1 | G105: 3529 | H105: 3631.5 | I105: 4251 | J105: 4322.3 | K105: 4610.6 | L105: 4908.3 | M105: 5251.8 | N105: 5 885,7 | O105: 6357.8 | P105: 6673.5
A106: Proved + probable | B106: 20809.3 | C106: 20767.6 | D106: 20838 | E106: 21276 | F106: 21948 | G106: 22520.3 | H106: 22844.1 | I106: 23365.1 | J106: 23244 | K106: 23487.7 | L106: 23682.4 | M106: 23830.9 | N106: 24123.1 | O106: 24232.7 | P106: 24374.3
A107: Entities, investments in which are classified as joint operations (attributable to the share of Gazprom Group)
A108: Proved | B108: x | C108: x | D108: x | E108: x | F108: x | G108: x | H108: x | I108: 18.9 | J108: 17.6 | K108: 17.6 | L108: 17.1 | M108: 17.4 | N108: 16 | O108: 15.5 | P108: 14.3
A109: Probable | B109: x | C109: x | D109: x | E109: x | F109: x | G109: x | H109: x | I109: 3.1 | J109: 2.9 | K109: 5.4 | L109: 5.5 | M109: 6.8 | N109: 7.5 | O109: 6.9 | P109: 6.9
A110: Proved + probable | B110: x | C110: x | D110: x | E110: x | F110: x | G110: x | H110: x | I110: 22 | J110: 20.5 | K110: 23 | L110: 22.6 | M110: 24.2 | N110: 23.5 | O110: 22.4 | P110: 21.2
A111: Total (including share in the reserves of entities, investments in which are classified as joint operations)
A112: Proved | B112: x | C112: x | D112: x | E112: x | F112: x | G112: x | H112: x | I112: 19133 | J112: 18939.3 | K112: 18894.7 | L112: 18791.2 | M112: 18596.5 | N112: 18 253,4 | O112: 17890.4 | P112: 17715.1
A113: Probable | B113: x | C113: x | D113: x | E113: x | F113: x | G113: x | H113: x | I113: 4254.1 | J113: 4325.2 | K113: 4616 | L113: 4913.8 | M113: 5258.6 | N113: 5 893,2 | O113: 6364.7 | P113: 6680.4
A114: Proved + probable | B114: x | C114: x | D114: x | E114: x | F114: x | G114: x | H114: x | I114: 23387.1 | J114: 23264.5 | K114: 23510.7 | L114: 23705 | M114: 23855.1 | N114: 24 146,6 | O114: 24255.1 | P114: 24395.5
A115: * Excluding share of Gazprom Group in the reserves of entities, investments in which are classified as joint operations.
A117: Gas condensate reserves of Gazprom Group in Russia, PRMS standards, mm tonnes
A118: (including share in the reserves of entities, investments in which are classified as joint operations)
B119: As at 31 December
B120: 2005* | C120: 2006* | D120: 2007* | E120: 2008* | F120: 2009* | G120: 2010* | H120: 2011* | I120: 2012 | J120: 2013 | K120: 2014 | L120: 2015 | M120: 2016 | N120: 2017 | O120: 2018 | P120: 2019
A121: PJSC Gazprom and its major subsidiaries
A122: Proved | B122: 507.9 | C122: 528.9 | D122: 568.9 | E122: 587.9 | F122: 586 | G122: 572.1 | H122: 605.2 | I122: 633.8 | J122: 634.4 | K122: 637.3 | L122: 691.9 | M122: 751.7 | N122: 788.9 | O122: 748.5 | P122: 719.1
A123: Probable | B123: 184.7 | C123: 130.1 | D123: 117.2 | E123: 141.9 | F123: 141.2 | G123: 147.2 | H123: 152.6 | I123: 174.9 | J123: 190.3 | K123: 202.8 | L123: 230.2 | M123: 257 | N123: 303.5 | O123: 327.2 | P123: 329.7
A124: Proved + probable | B124: 692.6 | C124: 659 | D124: 686.1 | E124: 729.8 | F124: 727.2 | G124: 719.3 | H124: 757.8 | I124: 808.7 | J124: 824.7 | K124: 840.1 | L124: 922.1 | M124: 1008.7 | N124: 1 092,4 | O124: 1075.7 | P124: 1048.8
A125: PAO Gazprom Neft and its subsidiaries
A126: Proved** | B126: x | C126: x | D126: x | E126: x | F126: x | G126: x | H126: x | I126: x | J126: 4.4 | K126: 5 | L126: 7.6 | M126: 7.5 | N126: 8.8 | O126: 11.2 | P126: 11.1
A127: Probable** | B127: x | C127: x | D127: x | E127: x | F127: x | G127: x | H127: x | I127: x | J127: 3.3 | K127: 3.5 | L127: 3.6 | M127: 2.7 | N127: 4.5 | O127: 3.3 | P127: 3.3
A128: Proved + probable** | B128: x | C128: x | D128: x | E128: x | F128: x | G128: x | H128: x | I128: x | J128: 7.7 | K128: 8.5 | L128: 11.2 | M128: 10.2 | N128: 13.3 | O128: 14.5 | P128: 14.4
A129: Total
A130: Proved | B130: 507.9 | C130: 528.9 | D130: 568.9 | E130: 587.9 | F130: 586 | G130: 572.1 | H130: 605.2 | I130: 633.8 | J130: 638.8 | K130: 642.3 | L130: 699.5 | M130: 759.2 | N130: 797.7 | O130: 759.7 | P130: 730.2
A131: Probable | B131: 184.7 | C131: 130.1 | D131: 117.2 | E131: 141.9 | F131: 141.2 | G131: 147.2 | H131: 152.6 | I131: 174.9 | J131: 193.6 | K131: 206.3 | L131: 233.8 | M131: 259.7 | N131: 308 | O131: 330.5 | P131: 333
A132: Proved + probable | B132: 692.6 | C132: 659 | D132: 686.1 | E132: 729.8 | F132: 727.2 | G132: 719.3 | H132: 757.8 | I132: 808.7 | J132: 832.4 | K132: 848.6 | L132: 933.3 | M132: 1 018,9 | N132: 1 105,7 | O132: 1090.2 | P132: 1063.2
A133: * Excluding share of Gazprom Group in the reserves of entities, investments in which are classified as joint operations.
A134: ** For reserves prior to 31 December 2013, gas condensate reserves of Gazprom Neft Group were included in oil reserves.
A136: Oil reserves of Gazprom Group in Russia, PRMS standards, mm tonnes
A137: (including share in the reserves of entities, investments in which are classified as joint operations)
B138: As at 31 December
B139: 2005* | C139: 2006* | D139: 2007* | E139: 2008* | F139: 2009* | G139: 2010* | H139: 2011* | I139: 2012 | J139: 2013 | K139: 2014 | L139: 2015 | M139: 2016 | N139: 2017 | O139: 2018 | P139: 2019
A140: PJSC Gazprom and its major subsidiaries
A141: Proved | B141: 67.3 | C141: 87.1 | D141: 76.9 | E141: 97.6 | F141: 93 | G141: 82.9 | H141: 57.3 | I141: 58.9 | J141: 55.5 | K141: 55.6 | L141: 44.7 | M141: 44.6 | N141: 16.5 | O141: 17.2 | P141: 22
A142: Probable | B142: 232.2 | C142: 203.8 | D142: 210 | E142: 185.7 | F142: 159.8 | G142: 179.1 | H142: 171.2 | I142: 105 | J142: 121 | K142: 45.9 | L142: 35 | M142: 35 | N142: 46.5 | O142: 46.7 | P142: 58.1
A143: Proved + probable | B143: 299.5 | C143: 290.9 | D143: 286.9 | E143: 283.3 | F143: 252.8 | G143: 262 | H143: 228.5 | I143: 163.9 | J143: 176.5 | K143: 101.5 | L143: 79.7 | M143: 79.6 | N143: 63 | O143: 63.9 | P143: 80.1
A144: PAO Gazprom Neft and its subsidiaries
A145: Proved | B145: 461.5 | C145: 601.8 | D145: 650.1 | E145: 615.6 | F145: 625.5 | G145: 634.5 | H145: 666.6 | I145: 654.9 | J145: 683.9 | K145: 675.9 | L145: 655.6 | M145: 652.8 | N145: 630.8 | O145: 611.1 | P145: 605
A146: Probable | B146: 470.7 | C146: 173.8 | D146: 195.5 | E146: 379.3 | F146: 275.7 | G146: 285.4 | H146: 321 | I146: 418.8 | J146: 393.8 | K146: 432.8 | L146: 458.7 | M146: 486.1 | N146: 507.4 | O146: 507.7 | P146: 535.8
A147: Proved + probable | B147: 932.2 | C147: 775.6 | D147: 845.6 | E147: 994.9 | F147: 901.2 | G147: 919.9 | H147: 987.6 | I147: 1073.7 | J147: 1077.7 | K147: 1108.7 | L147: 1114.3 | M147: 1138.9 | N147: 1 138,2 | O147: 118.8 | P147: 1140.8
A148: Total (excluding share in the reserves of entities, investments in which are classified as joint operations)
A149: Proved | B149: 528.8 | C149: 688.9 | D149: 727 | E149: 713.2 | F149: 718.5 | G149: 717.4 | H149: 723.9 | I149: 713.8 | J149: 739.4 | K149: 731.5 | L149: 700.3 | M149: 697.4 | N149: 647.3 | O149: 628.3 | P149: 627
A150: Probable | B150: 702.9 | C150: 377.6 | D150: 405.5 | E150: 565 | F150: 435.5 | G150: 464.5 | H150: 492.2 | I150: 523.8 | J150: 514.8 | K150: 478.7 | L150: 493.7 | M150: 521.1 | N150: 553.9 | O150: 554.4 | P150: 593.9
A151: Proved + probable | B151: 1231.7 | C151: 1066.5 | D151: 1132.5 | E151: 1278.2 | F151: 1154 | G151: 1181.9 | H151: 1216.1 | I151: 1237.6 | J151: 1254.2 | K151: 1210.2 | L151: 1194 | M151: 1218.5 | N151: 1 201,2 | O151: 1182.7 | P151: 1220.9
A152: Entities, investments in which are classified as joint operations (attributable to the share of Gazprom Group)
A153: Proved | B153: x | C153: x | D153: x | E153: x | F153: x | G153: x | H153: x | I153: 105.7 | J153: 95.4 | K153: 99.1 | L153: 92.4 | M153: 92.1 | N153: 89.5 | O153: 84 | P153: 80.5
A154: Probable | B154: x | C154: x | D154: x | E154: x | F154: x | G154: x | H154: x | I154: 65 | J154: 57.6 | K154: 65.1 | L154: 69 | M154: 68.1 | N154: 69.3 | O154: 68.7 | P154: 73.4
A155: Proved + probable | B155: х | C155: х | D155: х | E155: х | F155: х | G155: х | H155: х | I155: 170.7 | J155: 153 | K155: 164.2 | L155: 161.4 | M155: 160.2 | N155: 158.8 | O155: 152.7 | P155: 153.9
A156: Total (including share in the reserves of entities, investments in which are classified as joint operations)
A157: Proved | B157: x | C157: x | D157: x | E157: x | F157: x | G157: x | H157: x | I157: 819.5 | J157: 834.8 | K157: 830.5 | L157: 792.7 | M157: 789.5 | N157: 736.8 | O157: 712.3 | P157: 707.5
A158: Probable | B158: x | C158: x | D158: x | E158: x | F158: x | G158: x | H158: x | I158: 588.8 | J158: 572.4 | K158: 543.9 | L158: 562.7 | M158: 589.2 | N158: 623.2 | O158: 623.1 | P158: 667.3
A159: Proved + probable | B159: x | C159: x | D159: x | E159: x | F159: x | G159: x | H159: x | I159: 1408.3 | J159: 1407.2 | K159: 1374.4 | L159: 1355.4 | M159: 1378.7 | N159: 1 360,0 | O159: 1355.4 | P159: 1374.8
A160: * Excluding share of Gazprom Group in the reserves of entities, investments in which are classified as joint operations.
A162: Hydrocarbon reserves (Russian classification of reserves) of Gazprom Group in Russia
A163: (including share in the reserves of entities, investments in which are classified as joint operations)
B164: As at 31 December
B165: 2005* | C165: 2006* | D165: 2007* | E165: 2008* | F165: 2009* | G165: 2010* | H165: 2011* | I165: 2012 | J165: 2013 | K165: 2014 | L165: 2015 | M165: 2016 | N165: 2017 | O165: 2018 | P165: 2019
A166: Natural gas, bcm
A167: Ural Federal District | B167: 22341.2 | C167: 21937.3 | D167: 21514.1 | E167: 24265.2 | F167: 24390.6 | G167: 23566.8 | H167: 23401.1 | I167: 23144.2 | J167: 22456.6 | K167: 22032.2 | L167: 21613.5 | M167: 21309 | N167: 20 302,6 | O167: 19735.7 | P167: 19257.7
A168: Northwest Federal District | B168: 94.2 | C168: 93.2 | D168: 93.3 | E168: 92.2 | F168: 90.4 | G168: 89.3 | H168: 88.2 | I168: 87.4 | J168: 86.9 | K168: 85.8 | L168: 85.1 | M168: 307.3 | N168: 319.3 | O168: 318.6 | P168: 315.1
A169: South Federal District and North Caucasian Federal District | B169: 2616.6 | C169: 2594.8 | D169: 2581.8 | E169: 2569 | F169: 2560.7 | G169: 2545.4 | H169: 2523.1 | I169: 2510.5 | J169: 2498.9 | K169: 2997.4 | L169: 2985.3 | M169: 2973.1 | N169: 2 961,1 | O169: 2948.2 | P169: 2924.6
A170: Volga Federal District | B170: 830.4 | C170: 810.6 | D170: 792.8 | E170: 774.7 | F170: 758.5 | G170: 751.3 | H170: 735.4 | I170: 717.8 | J170: 696.2 | K170: 684.1 | L170: 663.5 | M170: 648.9 | N170: 640.7 | O170: 626.9 | P170: 666.6
A171: Siberian Federal District | B171: 303.9 | C171: 295 | D171: 275.5 | E171: 291.7 | F171: 284.7 | G171: 308.3 | H171: 1668.1 | I171: 1737.5 | J171: 1755.1 | K171: 1936.7 | L171: 1971.6 | M171: 2103.3 | N171: 2 102,1 | O171: 2094.2 | P171: 2080.5
A172: Far Eastern Federal District | B172: 8.8 | C172: 8.8 | D172: 22 | E172: 401.7 | F172: 402.2 | G172: 456.6 | H172: 1106.2 | I172: 1181 | J172: 1197.2 | K172: 1197.2 | L172: 1402.1 | M172: 1488.3 | N172: 1 420,1 | O172: 1415.8 | P172: 1425.4
A173: Continental shelf of the Russian Federation | B173: 2935.6 | C173: 4114.5 | D173: 4505.9 | E173: 4728.7 | F173: 5091.3 | G173: 5334.6 | H173: 5524.8 | I173: 5791.4 | J173: 7005.7 | K173: 7168 | L173: 7426.2 | M173: 7614 | N173: 7 609,5 | O173: 8055.9 | P173: 8229.1
A174: Total | B174: 29130.7 | C174: 29854.2 | D174: 29785.4 | E174: =SUM(E167:E173) -> 33123.2 | F174: =SUM(F167:F173) -> 33578.4 | G174: =SUM(G167:G173) -> 33052.3 | H174: 35046.9 | I174: 35169.8 | J174: 35696.6 | K174: 36101.4 | L174: 36147.3 | M174: 36443.9 | N174: 35 355,4 | O174: 35195.3 | P174: 34899
A175: Gas condensate, mm tonnes
A176: Ural Federal District | B176: 688.4 | C176: 689.7 | D176: 690.2 | E176: 760.4 | F176: 770.9 | G176: 724 | H176: 730.5 | I176: 713.8 | J176: 712.4 | K176: 675.7 | L176: 695.2 | M176: 690.6 | N176: 750 | O176: 744.1 | P176: 739.2
A177: Northwest Federal District | B177: 21.5 | C177: 21.3 | D177: 21.3 | E177: 21.2 | F177: 20.9 | G177: 20.8 | H177: 20.7 | I177: 20.6 | J177: 20.6 | K177: 20.5 | L177: 20.5 | M177: 31.3 | N177: 33.1 | O177: 33 | P177: 32.3
A178: South Federal District and North Caucasian Federal District | B178: 395.8 | C178: 392.4 | D178: 389.2 | E178: 386 | F178: 383.5 | G178: 380.6 | H178: 377.4 | I178: 374.3 | J178: 371.5 | K178: 447.5 | L178: 444.7 | M178: 441.9 | N178: 439 | O178: 436 | P178: 432.4
A179: Volga Federal District | B179: 59.2 | C179: 58.7 | D179: 58 | E179: 57.5 | F179: 57.2 | G179: 57.4 | H179: 57.1 | I179: 57.4 | J179: 56.9 | K179: 56.5 | L179: 56 | M179: 55.7 | N179: 55.6 | O179: 55.3 | P179: 55
A180: Siberian Federal District | B180: 26.9 | C180: 26.3 | D180: 21.8 | E180: 22.6 | F180: 21.1 | G180: 21.2 | H180: 89.9 | I180: 92.8 | J180: 91.4 | K180: 92.6 | L180: 92.3 | M180: 97 | N180: 96.9 | O180: 96 | P180: 94.6
A181: Far Eastern Federal District | B181: 0.1 | C181: 0.1 | D181: 0.1 | E181: 5.8 | F181: 6 | G181: 6.9 | H181: 25.2 | I181: 26.4 | J181: 27.3 | K181: 27.3 | L181: 29.6 | M181: 30.5 | N181: 29.4 | O181: 29.3 | P181: 31.6
A182: Continental shelf of the Russian Federation | B182: 24.4 | C182: 28.5 | D182: 31.9 | E182: 33.6 | F182: 65.5 | G182: 73.9 | H182: 94.7 | I182: 100.8 | J182: 104.3 | K182: 126.9 | L182: 161.2 | M182: 187.9 | N182: 191.6 | O182: 210.7 | P182: 184.6
A183: Total | B183: 1216.3 | C183: 1217 | D183: 1212.5 | E183: =SUM(E176:E182) -> 1287.1 | F183: =SUM(F176:F182) -> 1325.1 | G183: =SUM(G176:G182) -> 1284.8 | H183: 1395.5 | I183: 1386.1 | J183: 1384.4 | K183: 1447 | L183: 1499.5 | M183: 1534.9 | N183: 1 595,6 | O183: 1604.4 | P183: 1569.7
A184: Crude oil, mm tonnes
A185: Ural Federal District | B185: 1152 | C185: 1146 | D185: 1261.1 | E185: 1303.1 | F185: 1461.6 | G185: 1400.1 | H185: 1400.3 | I185: 1532.9 | J185: 1550.9 | K185: 1560.1 | L185: 1541.6 | M185: 1531.3 | N185: 1 494,3 | O185: 1471.2 | P185: 1466.8
A186: Northwest Federal District | B186: 2.1 | C186: 13.5 | D186: 14.2 | E186: 15.7 | F186: 16.9 | G186: 17.3 | H186: 17.3 | I186: 4.8 | J186: 4.8 | K186: 4.8 | L186: 5.6 | M186: 19.8 | N186: 20.3 | O186: 20.3 | P186: 19.5
A187: South Federal District and North Caucasian Federal District | B187: 3.5 | C187: 4.5 | D187: 5.4 | E187: 8.8 | F187: 9.7 | G187: 10.6 | H187: 7.4 | I187: 7.3 | J187: 8 | K187: 7.9 | L187: 8 | M187: 7.9 | N187: 7.8 | O187: 7.7 | P187: 7.8
A188: Volga Federal District | B188: 118.6 | C188: 134.3 | D188: 133.9 | E188: 133.3 | F188: 145.1 | G188: 144.5 | H188: 153.8 | I188: 156.2 | J188: 159 | K188: 159.9 | L188: 200.2 | M188: 202.5 | N188: 228.1 | O188: 227.7 | P188: 224.9
A189: Siberian Federal District | B189: 31.3 | C189: 38.5 | D189: 44.6 | E189: 47.6 | F189: 58.3 | G189: 61.9 | H189: 86 | I189: 188.5 | J189: 191.4 | K189: 198.9 | L189: 205 | M189: 201.3 | N189: 199.6 | O189: 187.4 | P189: 188.4
A190: Far Eastern Federal District | B190: 2.7 | C190: 2.7 | D190: 3.3 | E190: 45.8 | F190: 46 | G190: 51.1 | H190: 55.1 | I190: 55.1 | J190: 57.5 | K190: 57.6 | L190: 58.4 | M190: 54.6 | N190: 36.8 | O190: 36.8 | P190: 36.9
A191: Continental shelf of the Russian Federation | B191: 47.3 | C191: 47.4 | D191: 47.4 | E191: 47.4 | F191: 47.4 | G191: 47.4 | H191: 47.4 | I191: 47.4 | J191: 47.4 | K191: 63.9 | L191: 63.2 | M191: 61.1 | N191: 58.4 | O191: 64.6 | P191: 61.4
A192: Total | B192: 1357.5 | C192: 1386.9 | D192: 1509.9 | E192: =SUM(E185:E191) -> 1601.7 | F192: =SUM(F185:F191) -> 1785 | G192: =SUM(G185:G191) -> 1732.9 | H192: 1767.3 | I192: 1992.2 | J192: 2019 | K192: 2053.1 | L192: 2082 | M192: 2078.5 | N192: 2 045,3 | O192: 2015.7 | P192: 2005.7
A193: * Excluding share of Gazprom Group in the reserves of entities, investments in which are classified as joint operations.
A194: Note. Until 2016 hydrocarbon reserves are given under A+B+C1 classification, since 1 January 2016 — under A+B1+C1 classification. Under the Oil and Flammable Gases Classification approved by the Ministry of Natural Resources of Russia (Decree No. 477 dated 1 November 2013, effective from 1 January 2016), grades A+B1+C1 are explored reserves of high geological certainty and correspond to previously used A+B+C1.
A196: Back to Contents

Sheet Reserves of assoc. and JV
A1: Hydrocarbon reserves (Russian classification of reserves) of the associated and jointly controlled companies in Russia attributable to the share of Gazprom Group
A2: Metric units
B3: As at 31 December
B4: 2010* | C4: 2011* | D4: 2012 | E4: 2013 | F4: 2014 | G4: 2015 | H4: 2016 | I4: 2017 | J4: 2018 | K4: 2019
A5: Natural gas, bcm | B5: 645.4 | C5: 717.4 | D5: 732.2 | E5: 851.5 | F5: 971.7 | G5: 1035.5 | H5: 999.1 | I5: 1 003,8 | J5: 1146.7 | K5: 1064
A6: Gas condensate, mm tonnes | B6: 57.8 | C6: 60.1 | D6: 62 | E6: 80.1 | F6: 97 | G6: 112.1 | H6: 104.5 | I6: 100.8 | J6: 110.1 | K6: 111.1
A7: Crude oil, mm tonnes | B7: 611.8 | C7: 728.6 | D7: 518.3 | E7: 542 | F7: 575.4 | G7: 566.9 | H7: 571.5 | I7: 578.3 | J7: 592 | K7: 588.6
A8: * Including share of Gazprom Group in the reserves of entities, investments in which are classified as joint operations.
A10: Oil equivalent
B11: As at 31 December
B12: 2010* | C12: 2011* | D12: 2012 | E12: 2013 | F12: 2014 | G12: 2015 | H12: 2016 | I12: 2017 | J12: 2018 | K12: 2019
A13: Natural gas, mm boe | B13: =B5*6.49 -> 4188.646 | C13: 4655.926 | D13: 4751.978 | E13: 5526.235 | F13: 6306.333 | G13: 6720.395 | H13: =H5*6.49 -> 6484.159 | I13: 6 514,7 | J13: 7442.1 | K13: 6905.4
A14: Gas condensate, mm boe | B14: =B6*8.18 -> 472.804 | C14: 491.618 | D14: 507.16 | E14: 655.218 | F14: 793.46 | G14: 916.978 | H14: =H6*8.18 -> 854.81 | I14: 824.5 | J14: 900.6 | K14: 908.8
A15: Crude oil, mm boe | B15: 4484.5 | C15: 5340.6 | D15: 3799.1 | E15: 3972.9 | F15: 4217.7 | G15: 4155.4 | H15: =H7*7.33 -> 4189.095 | I15: 4 238,9 | J15: 4339.4 | K15: 4314.4
A16: Total, mm boe | B16: =B13+B14+B15 -> 9145.95 | C16: 10488.144 | D16: 9058.238 | E16: 10154.353 | F16: 11317.493 | G16: 11792.773 | H16: =H13+H14+H15 -> 11528.064 | I16: 11 578,1 | J16: 12682.1 | K16: 12128.6
A17: * Including share of Gazprom Group in the reserves of entities, investments in which are classified as joint operations.
A18: Note. For management accounting purposes, Gazprom Group measures hydrocarbon reserves and production in metric units. In this Factbook, gas reserves are converted from metric units to barrels of oil equivalent at a ratio of 1,000 cubic metres to 6.49 boe.
A20: Back to Contents

Sheet Change in reserves
A1: Change in Gazprom Group’s hydrocarbon reserves (Russian classification of reserves) in Russia, 2013–2019
A2: (including share in the reserves of entities, investments in which are classified as joint operations)
B3: Natural gas | C3: Gas condensate* | D3: Crude oil
B4: bcm | C4: mm tonnes | D4: mm tonnes
A5: Reserves as at 31 December 2012 | B5: 35169.8 | C5: 1386.1 | D5: 1992.2
A6: Additions to reserves as a result of exploration | B6: 647.8 | C6: 5.4 | D6: 48.2
A7: Transfer of reserves discovered in 2013 to the Undistributed Subsoil Fund of Russia** and to other companies, acquisition from other companies | B7: -137.2 | C7: -1.9 | D7: -1.4
A8: Receipt of licenses, including | B8: 484.1 | C8: 3.6 | D8: –
A9: due to new fields discovery*** | B9: 0.9 | C9: 0.1 | D9: –
A10: due to resolution of the Russian government, without tendering process | B10: 483.2 | C10: 3.5 | D10: –
A11: Return of licenses | B11: – | C11: – | D11: –
A12: Acquisition of assets | B12: 13.7 | C12: 0.5 | D12: –
A13: Disposal of assets | B13: – | C13: – | D13: –
A14: Revaluation | B14: 5.6 | C14: 1.2 | D14: 22.3
A15: Production (including losses) | B15: -487.2**** | C15: -10.5 | D15: -42.3
A16: Reserves as at 31 December 2013 | B16: 35696.6 | C16: 1384.4 | D16: 2019
A17: Additions to reserves as a result of exploration | B17: 822.5 | C17: 114.2 | D17: 24.7
A18: Transfer of reserves discovered in 2014 to the Undistributed Subsoil Fund of Russia** and to other companies, acquisition from other companies | B18: -91.1 | C18: -6.9 | D18: 2.3
A19: Receipt of licenses, including | B19: 182.3 | C19: 2.8 | D19: 5.8
A20: due to new fields discovery*** | B20: – | C20: – | D20: –
A21: due to resolution of the Russian government, without tendering process | B21: – | C21: – | D21: –
A22: Return of licenses | B22: – | C22: – | D22: -0.1
A23: Acquisition of assets | B23: – | C23: – | D23: –
A24: Disposal of assets | B24: – | C24: – | D24: –
A25: Revaluation | B25: -66 | C25: -37 | D25: 44.7
A26: Production (including losses) | B26: -442.9**** | C26: -10.5 | D26: -43.3
A27: Reserves as at 31 December 2014 | B27: 36101.4 | C27: 1447 | D27: 2053.1
A28: Additions to reserves as a result of exploration | B28: 531.1 | C28: 68.5 | D28: 20.6
A29: Transfer of reserves discovered in 2015 to the Undistributed Subsoil Fund of Russia** and to other companies, acquisition from other companies | B29: -62.9 | C29: -4.7 | D29: 0.9
A30: Receipt of licenses, including | B30: – | C30: – | D30: 4.2
A31: due to new fields discovery*** | B31: – | C31: – | D31: –
A32: due to resolution of the Russian government, without tendering process | B32: – | C32: – | D32: –
A33: Return of licenses | B33: – | C33: – | D33: –
A34: Acquisition of assets | B34: – | C34: – | D34: –
A35: Disposal of assets | B35: – | C35: – | D35: –
A36: Revaluation | B36: -5 | C36: -0.1 | D36: 47.1
A37: Production (including losses) | B37: -417.3**** | C37: -11.2 | D37: -43.9
A38: Reserves as at 31 December 2015 | B38: 36147.3 | C38: 1499.5 | D38: 2082
A39: Additions to reserves as a result of exploration | B39: 457.4 | C39: 38 | D39: 19.3
A40: Transfer of reserves discovered in 2016 to the Undistributed Subsoil Fund of Russia** and to other companies, acquisition from other companies | B40: -2.4 | C40: -1.7 | D40: -2
A41: Receipt of licenses, including | B41: 257.5 | C41: 10.9 | D41: 15
A42: due to new fields discovery*** | B42: − | C42: − | D42: −
A43: due to resolution of the Russian government, without tendering process | B43: − | C43: − | D43: −
A44: Return of licenses | B44: -0.6 | C44: − | D44: −
A45: Acquisition of assets | B45: − | C45: − | D45: −
A46: Disposal of assets | B46: − | C46: − | D46: −
A47: Revaluation | B47: 2 | C47: -0.1 | D47: 11.1
A48: Production (including losses) | B48: -417.3**** | C48: -11.7 | D48: -46.9
A49: Reserves as at 31 December 2016 | B49: 36443.9 | C49: 1534.9 | D49: 2078.5
A50: Additions to reserves as a result of exploration | B50: 852.9 | C50: 95.6 | D50: 3.3
A51: Transfer of reserves discovered in 2017 to the Undistributed Subsoil Fund of Russia** and to other companies, acquisition from other companies | B51: -46.4 | C51: − | D51: 1.2
A52: Receipt of licenses, including | B52: 12.8 | C52: 1.9 | D52: −
A53: due to new fields discovery*** | B53: − | C53: − | D53: −
A54: due to resolution of the Russian government, without tendering process | B54: − | C54: − | D54: −
A55: Return of licenses | B55: -0.1 | C55: − | D55: −
A56: Acquisition of assets | B56: − | C56: − | D56: −
A57: Disposal of assets | B57: − | C57: − | D57: -9.4
A58: Revaluation | B58: -1437.8 | C58: -24.8 | D58: 19.8
A59: Production (including losses) | B59: -469.9**** | C59: -12 | D59: -48.1
A60: Reserves as at 31 December 2017 | B60: 35355.4 | C60: 1595.6 | D60: 2045.3
A61: Additions to reserves as a result of exploration | B61: 796.6 | C61: 21.8 | D61: 19.4
A62: Transfer of reserves discovered in 2018 to the Undistributed Subsoil Fund of Russia** and to other companies, acquisition from other companies | B62: -409.3 | C62: -0.6 | D62: -5.7
A63: Receipt of licenses, including | B63: − | C63: − | D63: 0.8
A64: due to new fields discovery*** | B64: − | C64: − | D64: 0.8
A65: due to resolution of the Russian government, without tendering process | B65: − | C65: − | D65: −
A66: Return of licenses | B66: − | C66: − | D66: −
A67: Acquisition of assets | B67: − | C67: − | D67: 0.1
A68: Disposal of assets | B68: − | C68: − | D68: −
A69: Revaluation | B69: -49.6 | C69: 0.1 | D69: 3.1
A70: Production (including losses) | B70: -497.8**** | C70: -12.5 | D70: -47.3
A71: Reserves as at 31 December 2018 | B71: 35195.3 | C71: 1604.4 | D71: 2015.7
A72: Additions to reserves as a result of exploration | B72: 556.7 | C72: 11.7 | D72: 29
A73: Transfer of reserves discovered in 2019 to the Undistributed Subsoil Fund of Russia** and to other companies, acquisition from other companies | B73: -0.4 | C73: – | D73: -0.2
A74: Receipt of licenses, including | B74: 2.7 | C74: – | D74: 7.4
A75: due to new fields discovery*** | B75: 2.7 | C75: – | D75: –
A76: due to resolution of the Russian government, without tendering process | B76: – | C76: – | D76: –
A77: Return of licenses | B77: -0.8 | C77: – | D77: -0.1
A78: Acquisition of assets | B78: 100.6 | C78: 6.3 | D78: –
A79: Disposal of assets | B79: – | C79: – | D79: –
A80: Revaluation | B80: -455.4 | C80: -39.4 | D80: 1.4
A81: Production (including losses) | B81: -499,7**** | C81: -13.3 | D81: -47.5
A82: Reserves as at 31 December 2019 | B82: 34899 | C82: 1569.7 | D82: 2005.7
A83: * Any changes in gas condensate reserves due to production are recognized as converted into stable gas condensate (C5+). The production volume of unstable gas condensate of Gazprom Group see in Production section.
A84: ** Under the law of the Russian Federation, the subsoil user does not have any vested right to develop reserves discovered in areas covered by exploration licenses or beyond the licensed areas. Such reserves shall be transferred to the Undistributed Subsoil Fund of the Russian Federation. Subsequently the subsoil user has a preference right to receive a license for their development.
A85: *** Including licenses received by Gazprom Group in previous years.
A86: **** Excluding dissolved gas.
A88: Back to Contents

Sheet Discovered fields
A1: Hydrocarbon fields discovered by Gazprom Group in Russia, 2013–2019
A2: (excluding fields discovered by entities in which Gazprom has investments classified as joint operations)
A3: Discovered field name | B3: Year of discovery | C3: Discovered field type* | D3: Region of the Russian Federation
A4: Mangazeev | B4: 2013 | C4: O | D4: Tomsk Region
A5: Vostochno-Myginskoye | C5: O | D5: Tomsk Region
A6: Vostochno-Imbinskoye | B6: 2014 | C6: G | D6: Krasnoyarsk Territory
A7: Padinskoye | B7: 2015 | C7: GC | D7: Yamal-Nenets Autonomous Area
A8: Naryksko-Ostashkinskoye | C8: Coalbed metane | D8: Kemerovo Region
A9: Zapadno-Chatylkinskoye | B9: 2016 | C9: O | D9: Yamal-Nenets Autonomous Area
A10: Novosamarskoye | C10: O | D10: Orenburg Region
A11: Yuzhno-Lunskoye | B11: 2017 | C11: GC | D11: The Sea of Okhotsk continental shelf of Russia
A12: Salairskoye | C12: GC | D12: Krasnoyarsk Territory
A13: Alexander Zhagrin | C13: O | D13: Khanty-Mansi Autonomous Area – Yugra
A14: Novozarinskoye | C14: O | D14: Orenburg Region
A15: Neptune | B15: 2018 | C15: O | D15: The Sea of Okhotsk continental shelf of Russia
A16: Triton | C16: O | D16: The Sea of Okhotsk continental shelf of Russia
A17: Blizhneportovskoye | C17: G | D17: Yamal-Nenets Autonomous Area
A18: Dinkov field | B18: 2019 | C18: GC | D18: The Kara Sea continental shelf of Russia
A19: Nyarmeyskoye | C19: G | D19: The Kara Sea continental shelf of Russia
A20: Yagodnoye | C20: O | D20: Orenburg Region
A21: Roshchinskoe | C21: O | D21: Orenburg Region
A22: * As per the current Russian classification of Reserves and Resources of Oil and Flammable Gases: OGC — oil and gas condensate field; OG — oil and gas field; GC — gas and condensate field; G — gas field; O — oil field.
A24: Back to Contents

Sheet License areas
A1: Licences
A2: License areas in Russian Federation
B3: As at 31 December
B4: 2013 | C4: 2014 | D4: 2015 | E4: 2016 | F4: 2017 | G4: 2018 | H4: 2019
A5: Gazprom Group
A6: Number of subsoil licences for geological surveying, for prospecting and exploration and for production of hydrocarbons | B6: 258 | C6: 261 | D6: 267 | E6: 267 | F6: 265 | G6: 274 | H6: 302
A7: Total area of license areas, thousand square km | B7: 614.2 | C7: 546.3 | D7: 546.9 | E7: 545.6 | F7: 547.5 | G7: 559.3 | H7: 573.2
A8: Entities investments in which are classified as joint operations
A9: Number of subsoil licences for geological surveying, for prospecting and exploration and for production of hydrocarbons | B9: 36 | C9: 35 | D9: 35 | E9: 36 | F9: 36 | G9: 36 | H9: 37
A10: Total area of license areas, thousand square km | B10: 21.7 | C10: 21.6 | D10: 22.9 | E10: 23.1 | F10: 23.1 | G10: 23.1 | H10: 23.9
A12: License areas set out by federal districts of the Russian Federation, as at 31 December 2019, thousand square km
A13: License category* | B13: Ural Federal District | C13: Northwest Federal District | D13: South and North Caucasian Federal Districts | E13: Volga Federal District | F13: Siberian Federal Discrict | G13: Far Eastern Federal District | H13: Continental shelf of the Russian Federation
A14: Gazprom Group
A15: Licenses for prospecting, exploration and production of hydrocarbons (SEPL) | B15: 29.9 | C15: – | D15: 2.8 | E15: 4.8 | F15: 51.4 | G15: – | H15: 325.6
A16: Licenses for exploration and production of hydrocarbons (EPL) | B16: 67.8 | C16: 1.5 | D16: 5.4 | E16: 3 | F16: 20.7 | G16: 12.6 | H16: 11.8
A17: Licenses for geological survey (SL) | B17: 20.5 | C17: – | D17: 0.3 | E17: 2.4 | F17: 11 | G17: 1.7 | H17: –
A18: Total | B18: 118.2 | C18: 1.5 | D18: 8.5 | E18: 10.2 | F18: 83.1 | G18: 14.3 | H18: 337.4
A19: Entities investments in which are classified as joint operations
A20: Licenses for prospecting, exploration and production of hydrocarbons (SEPL) | B20: 0.8 | C20: – | D20: – | E20: – | F20: – | G20: – | H20: –
A21: Licenses for exploration and production of hydrocarbons (EPL) | B21: 4.1 | C21: – | D21: – | E21: – | F21: 18.9 | G21: – | H21: –
A22: Licenses for geological survey (SL) | B22: 0.1 | C22: – | D22: – | E22: – | F22: – | G22: – | H22: –
A23: Total | B23: 5 | C23: – | D23: – | E23: – | F23: 18.9 | G23: – | H23: –
A24: * License categories in accordance with Russian legislation.
A26: Back to Contents

Sheet Core licenses
A1: Licenses for the main hydrocarbon fields in Russia, as at 31 December 2019
A2: Field name | B2: Year of production start | C2: Subsidiary — license holder | D2: Gazprom Group share*, % | E2: Field type** | F2: License category*** | G2: License expiration year****
A3: Gazprom Group
A4: Western Siberia (Ural Federal Dustrict)
A5: Urengoyskoye | B5: 1978 | C5: OOO Gazprom Dobycha Urengoy | D5: 1 | E5: OGC | F5: EPL | G5: 2038
A6: Severo-Urengoyskoye | B6: 1987 | E6: OGC | F6: EPL | G6: 2030
A7: Yen-Yakhinskoye | B7: 1985 | E7: OGC | F7: EPL | G7: 2038
A8: Pestsovoye | B8: 2004 | E8: OGC | F8: EPL | G8: 2041
A9: Yamburgskoye | B9: 1991 | C9: OOO Gazprom Dobycha Yamburg | D9: 1 | E9: OGC | F9: EPL | G9: 2054
A10: Zapolyarnoye | B10: 2001 | E10: OGC | F10: EPL | G10: 2114
A11: Medvezhye | B11: 1972 | C11: OOO Gazprom Dobycha Nadym | D11: 1 | E11: OGC | F11: EPL | G11: 2086
A12: Yamsoveiskoye | B12: 1997 | E12: OGC | F12: EPL | G12: 2039
A13: Ubileynoye | B13: 1992 | E13: OGC | F13: EPL | G13: 2063
A14: Kharasaveiskoye | B14: – | E14: GC | F14: EPL | G14: 2033
A15: Bovanenkovskoye | B15: 2012 | E15: OGC | F15: EPL | G15: 2042
A16: Novoportovskoye | B16: 2016 | C16: OOO Gazpromneft-Yamal | D16: 1 | E16: OGC | F16: EPL | G16: 2150
A17: Komsomolskoye | B17: 1993 | C17: OOO Gazprom Dobycha Noyabrsk | D17: 1 | E17: OGC | F17: EPL | G17: 2049
A18: Yety-Purovskoye | B18: 2004 | E18: OGC | F18: EPL | G18: 2038
A19: Zapadno-Tarkosalynskoye | B19: 1996 | E19: OGC | F19: SEPL | G19: 2116
A20: Gubkinskoye | B20: 1999 | C20: ZAO Purgaz | D20: 0.51 | E20: OGC | F20: EPL | G20: 2040
A21: Uzhno-Russkoye | B21: 2007 | C21: OAO Severneftegazprom | D21: 50.001% (of ordinary shares) | E21: OGC | F21: EPL | G21: 2043
A22: Tambeyskoye (including Zapadno-Tambeysky, Severo-Tambeysky, Tasiysky license blocks) | B22: – | C22: PJSC Gazprom | E22: OGC | F22: EPL | G22: 2028
A23: Kruzenshternskoye | B23: – | E23: GC | F23: EPL | G23: 2028
A24: Malyginskoye | B24: – | E24: GC | F24: EPL | G24: 2028
A25: Antypajutinskoye | B25: – | E25: G | F25: EPL | G25: 2028
A26: Tota-Yakhinskoe | B26: – | E26: G | F26: EPL | G26: 2028
A27: Tazovskoye | B27: – | C27: OOO Meretoyahaneftegaz | D27: 1 | E27: OGC | F27: SEPL | G27: 2025
A28: Sugmutskoye | B28: 1995 | C28: AO Gazpromneft- Noyabrskneftegaz | D28: 1 | E28: O | F28: EPL | G28: 2089
A29: Sutorminskoye | B29: 1982 | E29: OGC | F29: EPL | G29: 2110
A30: Muravlenkovskoye | B30: 1982 | E30: OG | F30: EPL | G30: 2072
A31: Sporyshevskoye | B31: 1996 | E31: O | F31: EPL | G31: 2083
A32: Vyngapurovskoye (Khanty- Mansi Autonomous Area — Yugra) | B32: 1982 | E32: OGC | F32: EPL | G32: 2090
A33: Vyngapurovskoye (Yamal- Nenets Autonomous Area) | B33: 1982 | E33: OGC | F33: EPL | G33: 2113
A34: Southern part of Priobskoye | B34: 1999 | C34: OOO Gazpromneft-Khantos | D34: 1 | E34: O | F34: EPL | G34: 2038
A35: Vyngapurovskoye (Khanty-Mansi Autonomous Area) | B35: 1982 | C35: OOO Zapolyarneft***** | D35: 1 | E35: OGC | F35: EPL | G35: 2090
A36: Vyngapurovskoye (Yamal-Nenets Autonomous Area) | B36: 1982 | D36: 1 | E36: OGC | F36: EPL | G36: 2113
A37: Southern Russia (South Federal District)
A38: Astrakhanskoye | B38: 1986 | C38: OOO Gazprom Dobycha Astrakhan | D38: 1 | E38: GC | F38: EPL | G38: 2222
A39: Zapadno-Astrakhanskoye | B39: – | E39: GC | F39: SEPL | G39: 2029
A40: South Ural region (Volga Federal District)
A41: Orenburgskoye | B41: 1974 | C41: OOO Gazprom Dobycha Orenburg | D41: 1 | E41: OGC | F41: EPL | G41: 2038
A42: Estern section of Orenburgskoye OGC field | B42: 1994 | C42: OOO Gazpromneft-Orenburg | D42: 1 | E42: OGC | F42: EPL | G42: 2138
A43: Eastern Siberia and the Far East (Siberian and Far Eastern Federal Districts)
A44: Chayandinskoye | B44: 2019 | C44: PJSC Gazprom | E44: OGC | F44: EPL | G44: 2028
A45: Kovyktinskoye (including Khandinkaya square) | B45: – | E45: GC | F45: EPL | G45: 2037
A46: Tas-Yuryakhskoye | B46: – | E46: OGC | F46: EPL | G46: 2031
A47: Sobolokh-Nedzhelinskoye | B47: – | E47: GC | F47: EPL | G47: 2031
A48: Part of Srednetyungskoye | B48: – | E48: GC | F48: EPL | G48: 2031
A49: Verkhnevilyuchanskoye | B49: – | E49: OGC | F49: EPL | G49: 2031
A50: Chikanskoye | B50: – | E50: GC | F50: EPL | G50: 2028
A51: Sobinskoye | B51: – | C51: OOO Gazprom dobycha Krasnodar | D51: 1 | E51: OGC | F51: SEPL | G51: 2028
A52: Continental shelf of the Russian Federation
A53: Shtokmanovskoye (including western part) | B53: – | C53: PJSC Gazprom | E53: GC | F53: EPL | G53: 2043
A54: Kirinskoye | B54: 2013 | E54: GC | F54: EPL | G54: 2028
A55: Yuzhno-Kirinskoye | B55: – | E55: GC | F55: SEPL | G55: 2039
A56: Yuzhno-Lunskoye | B56: – | E56: GC | F56: SEPL | G56: 2039
A57: Mynginskoe | B57: – | E57: GC | F57: SEPL | G57: 2039
A58: Ledovoye | B58: – | E58: GC | F58: EPL | G58: 2033
A59: Rusanovskoye | B59: – | E59: GC | F59: SEPL | G59: 2043
A60: Ludlovskoye | B60: – | E60: G | F60: SEPL | G60: 2043
A61: Leningradskoye | B61: – | E61: GC | F61: SEPL | G61: 2043
A62: Kamennomysskoye-more | B62: – | C62: OOO Gazprom Dobycha Yamburg | D62: 1 | E62: G | F62: EPL | G62: 2057
A63: Severo-Kamennomysskoye | B63: – | E63: GC | F63: EPL | G63: 2076
A64: Prirazlomnoye | B64: 2013 | C64: OOO Gazprom Neft shelf | D64: 1 | E64: O | F64: EPL | G64: 2043
A65: Dolginskoye | B65: – | E65: O | F65: EPL | G65: 2035
A66: Companies, investments in which are classified as joint operations
A67: Western Siberia (Ural Federal District)
A68: Zapadno-Salymskoye | B68: 2004 | C68: Salym Petroleum Development N.V. | D68: 0.5 | E68: O | F68: EPL | G68: 2130
A69: Sovetskoye (Khanty- Mansi Autonomous Area) | B69: 1966 | C69: AO Tomskneft VNC | D69: 0.5 | E69: O | F69: EPL | G69: 2145
A70: Eastern Siberia and the Far East (Siberian and Far Eastern Federal Districts)
A71: Krapivinskoye | B71: 1984 | C71: AO Tomskneft VNC | D71: 0.5 | E71: O | F71: EPL | G71: 2159
A72: Sovetskoye (the Tomsk Region) | B72: 1966 | E72: O | F72: EPL | G72: 2145
A73: Pervomayskoye (the Tomsk Region) | B73: 1981 | E73: O | F73: EPL | G73: 2105
A74: Luginetskoye | B74: 1982 | E74: OGC | F74: EPL | G74: 2098
A75: Associated and jointly controlled companies
A76: Western Siberia (Ural Federal District)
A77: Vostochno-Messoyakhskoe | B77: 2016 | C77: AO Messoyakhaneftegaz | D77: 0.5 | E77: OGC | F77: SEPL | G77: 2140
A78: Zapadno-Messoyakhskoe | B78: – | E78: OG | F78: SEPL | G78: 2027
A79: Severo-Parusovoye | B79: – | C79: OOO RusGasAlliance***** | D79: 0.5 | E79: OGC | F79: EPL | G79: 2027
A80: Eastern Siberia and the Far East (Siberian and Far Eastern Federal Districts)
A81: Kuymbinskoye | B81: 2018 | C81: OOO Slavneft-Krasnoyarskneftegaz | D81: 0.5 | E81: OGC | F81: SEPL | G81: 2171
A82: Piltun-Astokhskoe | B82: 1999 | C82: Sakhalin Energy Investment Company Ltd. | D82: 50% + 1 share | E82: OGC | F82: SEPL | G82: 2021
A83: Lunskoe | B83: 2009 | E83: OGC | F83: SEPL | G83: 2021
A84: * The aggregate share of the Group in the authorized capital of the investment objects, as reflected in the consolidated financial statements of Gazprom Group under IFRS.
A85: ** As per the current Russian classification of Reserves and Resources of Oil and Flammable Gases: OGC — oil and gas condensate field; OG — oil and gas field; GC — gas and condensate field; G — gas field; O — oil field.
A86: *** Russian legislation provides for several types of licenses applicable to the study, exploration and production of natural resources, including: licenses for geological survey (SL); licenses for exploration and production of hydrocarbons (EPL); and licenses for geological survey, exploration and production of hydrocarbons (SEPL). Abbreviations are stated according to the classification determined by the Russian legislation.
A87: **** While license holders of Gazprom Group meet the main terms and conditions of license agreements, they have a right to prolong current licenses to complete exploration and development of fields. Gazprom plans to prolong licenses for the period till the completion of profitable development of fields.
A88: ***** The financial results of this entity are not included in the IFRS consolidated financial statements for 2019 due to insignificance.
A90: Back to Contents

Sheet Production
A1: Production
A2: Hydrocarbon production of Gazprom Group in Russia
A3: (including share in the production of entities, investments in which are classified as joint operations)
A4: Metric units
B5: For the year ended 31 December
B6: 2005* | C6: 2006* | D6: 2007* | E6: 2008* | F6: 2009* | G6: 2010* | H6: 2011* | I6: 2012 | J6: 2013 | K6: 2014 | L6: 2015 | M6: 2016 | N6: 2017 | O6: 2018 | P6: 2019
A7: Natural and associated gas, bcm | B7: 555 | C7: 555.95 | D7: 548.55 | E7: 549.73 | F7: 461.52 | G7: 508.59 | H7: 513.17 | I7: 487.99 | J7: 488.39 | K7: 444.9 | L7: 419.52 | M7: 420.13 | N7: 472.05 | O7: 498.68 | P7: 501.22
A8: Gas condensate, mm tonnnes | B8: 11.5 | C8: 11.37 | D8: 11.27 | E8: 10.93 | F8: 10.07 | G8: 11.29 | H8: 12.07 | I8: 12.85 | J8: 14.66 | K8: 14.49 | L8: 15.34 | M8: 15.85 | N8: 15.94 | O8: 15.93 | P8: 16.71
A9: Crude oil, mm tonnes | B9: 9.49 | C9: 34.02 | D9: 33.98 | E9: 32.05 | F9: 31.62 | G9: 32.01 | H9: 32.28 | I9: 42.26 | J9: 42.41 | K9: 43.53 | L9: 44.04 | M9: 47.15 | N9: 48.63 | O9: 48.28 | P9: 47.96
A10: * Excluding share of Gazprom Group in the production of entities, investments in which are classified as joint operations.
A12: Oil equivalent
B13: For the year ended 31 December
B14: 2005* | C14: 2006* | D14: 2007* | E14: 2008* | F14: 2009* | G14: 2010* | H14: 2011* | I14: 2012 | J14: 2013 | K14: 2014 | L14: 2015 | M14: 2016 | N14: 2017 | O14: 2018 | P14: 2019
A15: Natural and associated gas, mm boe | B15: =B7*6.49 -> 3601.95 | C15: 3608.1155 | D15: 3560.0895 | E15: 3567.7477 | F15: 2995.2648 | G15: 3300.7491 | H15: 3330.4733 | I15: 3167.06 | J15: 3169.65 | K15: 2887.4 | L15: 2722.68 | M15: 2726.64 | N15: 3063.6 | O15: 3236.43 | P15: 3252.92
A16: Gas condensate, mm boe | B16: 94.07 | C16: 93.01 | D16: 92.19 | E16: 89.41 | F16: 82.37 | G16: 92.35 | H16: 98.73 | I16: 105.11 | J16: 119.92 | K16: 118.53 | L16: 125.48 | M16: 129.65 | N16: 130.39 | O16: 130.31 | P16: 136.69
A17: Crude oil, mm boe | B17: 69.56 | C17: 249.37 | D17: 249.07 | E17: 234.93 | F17: 231.77 | G17: 234.63 | H17: 236.61 | I17: 309.77 | J17: 310.87 | K17: 319.07 | L17: 322.81 | M17: 345.61 | N17: 356.46 | O17: 353.89 | P17: 351.55
A18: Total, mm boe | B18: =B15+B16+B17 -> 3765.58 | C18: 3950.4955 | D18: 3901.3495 | E18: 3892.0877 | F18: 3309.4048 | G18: 3627.7291 | H18: 3665.8133 | I18: 3581.94 | J18: 3600.44 | K18: 3325 | L18: 3170.97 | M18: 3201.91 | N18: 3550.45 | O18: 3720.63 | P18: 3741.16
A19: * Excluding share of Gazprom Group in the production of entities, investments in which are classified as joint operations.
A20: Note. For management accounting purposes, Gazprom Group measures hydrocarbon reserves and production in metric units. In this Factbook, gas production is converted from metric units to barrels of oil equivalent at a ratio of 1,000 cubic metres to 6.49 boe.
A22: Daily average hydrocarbon production of Gazprom Group in Russia
A23: (including share in the production of entities, investments in which are classified as joint operations)
B24: For the year ended 31 December
B25: 2005* | C25: 2006* | D25: 2007* | E25: 2008* | F25: 2009* | G25: 2010* | H25: 2011* | I25: 2012 | J25: 2013 | K25: 2014 | L25: 2015 | M25: 2016 | N25: 2017 | O25: 2018 | P25: 2019
A26: Natural and associated gas, mmcm / day | B26: 1520.55 | C26: 1523.15 | D26: 1502.88 | E26: 1501.99 | F26: 1264.4 | G26: 1393.4 | H26: 1405.9 | I26: 1333.3 | J26: 1338 | K26: 1218.9 | L26: 1149.4 | M26: 1147.9 | N26: 1293.3 | O26: 1366.2 | P26: 1373.2
A27: Gas condensate, thousand tonnes / day | B27: 31.51 | C27: 31.15 | D27: 30.88 | E27: 29.86 | F27: 27.6 | G27: 30.9 | H27: 33.1 | I27: 35.1 | J27: 40.2 | K27: 39.7 | L27: 42 | M27: 43.3 | N27: 43.7 | O27: 43.7 | P27: 45.8
A28: Crude oil, thousand tonnes / day | B28: 26 | C28: 93.21 | D28: 93.1 | E28: 87.57 | F28: 86.6 | G28: 87.7 | H28: 88.4 | I28: 115.5 | J28: 116.2 | K28: 119.3 | L28: 120.7 | M28: 128.8 | N28: 133.2 | O28: 132.3 | P28: 131.4
A29: * Excluding share of Gazprom Group in the production of entities, investments in which are classified as joint operations.
A31: Gazprom Group’s hydrocarbon production in Russia
A32: (including share in the production of entities, investments in which are classified as joint operations)
B33: For the year ended 31 December
B34: 2005* | C34: 2006* | D34: 2007* | E34: 2008* | F34: 2009* | G34: 2010* | H34: 2011* | I34: 2012 | J34: 2013 | K34: 2014 | L34: 2015 | M34: 2016 | N34: 2017 | O34: 2018 | P34: 2019
A35: Natural and associated gas, bcm
A36: PJSC Gazprom and its major subsidiaries** | B36: 539.35 | C36: 538.84 | D36: 530.51 | E36: 517.63 | F36: 425.02 | G36: 465.14 | H36: 464.81 | I36: 437.9 | J36: 436.29 | K36: 393.73 | L36: 368.2 | M36: 368.6 | N36: 419.72 | O36: 444.99 | P36: 445.09
A37: PAO Gazprom Neft and its subsidiaries | B37: 0.55 | C37: 2.07 | D37: 1.77 | E37: 2.16 | F37: 2.08 | G37: 2.95 | H37: 7.33 | I37: 8.73 | J37: 11.36 | K37: 11.86 | L37: 12.53 | M37: 13.64 | N37: 15.4 | O37: 17.84 | P37: 21.26
A38: ZAO Purgaz | B38: 15.1 | C38: 15.04 | D38: 15.02 | E38: 14.87 | F38: 11.84 | G38: 15.14 | H38: 15.37 | I38: 15.04 | J38: 14.62 | K38: 13.25 | L38: 12.7 | M38: 11.74 | N38: 10.82 | O38: 9.64 | P38: 8.72
A39: OAO Severneftegazprom | B39: – | C39: – | D39: 1.25 | E39: 15.07 | F39: 22.58 | G39: 25.36 | H39: 25.66 | I39: 25.35 | J39: 25.12 | K39: 25.04 | L39: 25.05 | M39: 25.12 | N39: 25.04 | O39: 25.13 | P39: 25.07
A40: Total (excluding share in the production of entities, investments in which are classified as joint operations) | B40: 555 | C40: 555.95 | D40: 548.55 | E40: 549.73 | F40: 461.52 | G40: 508.59 | H40: 513.17 | I40: 487.02 | J40: 487.39 | K40: 443.88 | L40: 418.48 | M40: 419.1 | N40: 470.98 | O40: 497.6 | P40: 500.14
A41: Entities, investments in which are classified as joint operations (attributable to the share of Gazprom Group) | B41: x | C41: x | D41: x | E41: x | F41: x | G41: x | H41: x | I41: 0.97 | J41: 1 | K41: 1.02 | L41: 1.04 | M41: 1.03 | N41: 1.07 | O41: 1.08 | P41: 1.08
A42: Total (including share in the production of entities, investments in which are classified as joint operations) | B42: x | C42: x | D42: x | E42: x | F42: x | G42: x | H42: x | I42: 487.99 | J42: 488.39 | K42: 444.9 | L42: 419.52 | M42: 420.13 | N42: 472.05 | O42: 498.68 | P42: 501.22
A43: Gas condensate, mm tonnes
A44: PJSC Gazprom and its major subsidiaries** | B44: 11.5 | C44: 11.37 | D44: 11.27 | E44: 10.93 | F44: 10.07 | G44: 11.29 | H44: 12.07 | I44: 12.84 | J44: 14.65 | K44: 14.47 | L44: 15.31 | M44: 15.83 | N44: 15.92 | O44: 15.9 | P44: 16.67
A45: PAO Gazprom Neft and its subsidiaries | B45: – | C45: – | D45: – | E45: – | F45: – | G45: – | H45: – | I45: 0.01 | J45: 0.01 | K45: 0.02 | L45: 0.03 | M45: 0.02 | N45: 0.02 | O45: 0.03 | P45: 0.04
A46: Total | B46: 11.5 | C46: 11.37 | D46: 11.27 | E46: 10.93 | F46: 10.07 | G46: 11.29 | H46: 12.07 | I46: 12.85 | J46: 14.66 | K46: 14.49 | L46: 15.34 | M46: 15.85 | N46: 15.94 | O46: 15.93 | P46: 16.71
A47: Crude oil, mm tonnes
A48: PJSC Gazprom and its major subsidiaries** | B48: 1.29 | C48: 1.3 | D48: 1.32 | E48: 1.27 | F48: 1.55 | G48: 1.85 | H48: 1.9 | I48: 1.7 | J48: 1.69 | K48: 1.73 | L48: 1.74 | M48: 1.55 | N48: 1.5 | O48: 1.45 | P48: 1.67
A49: PAO Gazprom Neft and its subsidiaries | B49: 8.2 | C49: 32.72 | D49: 32.66 | E49: 30.78 | F49: 30.07 | G49: 30.16 | H49: 30.38 | I49: 31.63 | J49: 32.15 | K49: 33.56 | L49: 34.3 | M49: 37.74 | N49: 39.48 | O49: 39.46 | P49: 39.11
A50: Total (excluding share in the production of entities, investments in which are classified as joint operations) | B50: 9.49 | C50: 34.02 | D50: 33.98 | E50: 32.05 | F50: 31.62 | G50: 32.01 | H50: 32.28 | I50: 33.33 | J50: 33.84 | K50: 35.29 | L50: 36.04 | M50: 39.29 | N50: 40.98 | O50: 40.91 | P50: 40.78
A51: Entities, investments in which are classified as joint operations (attributable to the share of Gazprom Group) | B51: x | C51: x | D51: x | E51: x | F51: x | G51: x | H51: x | I51: 8.93 | J51: 8.57 | K51: 8.24 | L51: 8 | M51: 7.86 | N51: 7.65 | O51: 7.37 | P51: 7.18
A52: Total (including share in the production of entities, investments in which are classified as joint operations) | B52: x | C52: x | D52: x | E52: x | F52: x | G52: x | H52: x | I52: 42.26 | J52: 42.41 | K52: 43.53 | L52: 44.04 | M52: 47.15 | N52: 48.63 | O52: 48.28 | P52: 47.96
A53: * Excluding share of Gazprom Group in the production of entities, investments in which are classified as joint operations.
A54: ** Taking into account the production volumes of OOO Gazprom dobycha shelf Yuzhno-Sakhalinsk, AO Tomskgazprom. Also taking into account the production volumes of AO Gazprom Gazoraspredeleniye Elista, OOO Gazprom dobycha Irkutsk, and OOO Servisneftegaz; the financial results of these entities are not included in Gazprom Group’s IFRS consolidated financial statements due to insignificance.
A56: Hydrocarbon production of Gazprom Group in Russia set out by Federal Districts
A57: (including share in the production of entities, investments in which are classified as joint operations)
B58: For the year ended 31 December
B59: 2005* | C59: 2006* | D59: 2007* | E59: 2008* | F59: 2009* | G59: 2010* | H59: 2011* | I59: 2012 | J59: 2013 | K59: 2014 | L59: 2015 | M59: 2016 | N59: 2017 | O59: 2018 | P59: 2019
A60: Natural and associated gas, bcm
A61: Ural FD | B61: 516.39 | C61: 517.88 | D61: 510.57 | E61: 512.17 | F61: 427.44 | G61: 471.68 | H61: 476.53 | I61: 450.96 | J61: 452.34 | K61: 409.96 | L61: 385.18 | M61: 385.46 | N61: 437.56 | O61: 464.36 | P61: 465.76
A62: North-Western FD | B62: 2.82 | C62: 2.75 | D62: 2.75 | E62: 2.64 | F62: 2.54 | G62: 2.52 | H62: 2.4 | I62: 2.33 | J62: 2.38 | K62: 2.25 | L62: 2.14 | M62: 2.06 | N62: 2.02 | O62: 1.89 | P62: 1.99
A63: South FD and Nortern Caucasian FD | B63: 13.55 | C63: 13.36 | D63: 13.37 | E63: 13.23 | F63: 10.76 | G63: 13.01 | H63: 13.21 | I63: 12.89 | J63: 11.86 | K63: 11.24 | L63: 11.15 | M63: 11.28 | N63: 11.58 | O63: 11.94 | P63: 12.22
A64: Volga FD | B64: 18.72 | C64: 18.64 | D64: 18.7 | E64: 18.71 | F64: 17.85 | G64: 18.59 | H64: 17.94 | I64: 17.52 | J64: 17.27 | K64: 16.73 | L64: 16.22 | M64: 15.65 | N64: 14.95 | O64: 14.4 | P64: 14.42
A65: Siberian FD | B65: 3.52 | C65: 3.32 | D65: 3.16 | E65: 2.98 | F65: 2.93 | G65: 2.79 | H65: 3.09 | I65: 4.29 | J65: 4.43 | K65: 4.23 | L65: 3.82 | M65: 4.55 | N65: 4.88 | O65: 4.91 | P65: 4.86
A66: Far Eastern FD | B66: – | C66: – | D66: – | E66: – | F66: – | G66: – | H66: – | I66: – | J66: 0.2 | K66: 0.39 | L66: 0.4 | M66: 0.41 | N66: 0.43 | O66: 0.45 | P66: 1.21
A67: Continental shelf of the Russian Federation | B67: – | C67: – | D67: – | E67: – | F67: – | G67: – | H67: – | I67: – | J67: 0.01 | K67: 0.1 | L67: 0.61 | M67: 0.72 | N67: 0.63 | O67: 0.73 | P67: 0.76
A68: Total | B68: 555 | C68: 555.95 | D68: 548.55 | E68: 549.73 | F68: 461.52 | G68: 508.59 | H68: 513.17 | I68: 487.99 | J68: 488.39 | K68: 444.9 | L68: 419.52 | M68: 420.13 | N68: 472.05 | O68: 498.68 | P68: 501.22
A69: Gas condensate, mm tonnes
A70: Ural FD | B70: 6.38 | C70: 6.29 | D70: 6.22 | E70: 5.95 | F70: 6.04 | G70: 6.34 | H70: 7.1 | I70: 8.04 | J70: 10.18 | K70: 10.3 | L70: 11.14 | M70: 11.59 | N70: 11.51 | O70: 11.38 | P70: 12.1
A71: North-Western FD | B71: 0.25 | C71: 0.23 | D71: 0.21 | E71: 0.19 | F71: 0.17 | G71: 0.15 | H71: 0.14 | I71: 0.13 | J71: 0.14 | K71: 0.13 | L71: 0.12 | M71: 0.12 | N71: 0.12 | O71: 0.12 | P71: 0.11
A72: South FD and Nortern Caucasian FD | B72: 4.24 | C72: 4.25 | D72: 4.27 | E72: 4.26 | F72: 3.35 | G72: 4.14 | H72: 4.22 | I72: 4.13 | J72: 3.78 | K72: 3.56 | L72: 3.51 | M72: 3.56 | N72: 3.68 | O72: 3.81 | P72: 3.9
A73: Volga FD | B73: 0.27 | C73: 0.27 | D73: 0.28 | E73: 0.27 | F73: 0.26 | G73: 0.27 | H73: 0.25 | I73: 0.22 | J73: 0.19 | K73: 0.16 | L73: 0.15 | M73: 0.14 | N73: 0.12 | O73: 0.12 | P73: 0.13
A74: Siberian FD | B74: 0.36 | C74: 0.33 | D74: 0.29 | E74: 0.26 | F74: 0.25 | G74: 0.39 | H74: 0.36 | I74: 0.33 | J74: 0.37 | K74: 0.31 | L74: 0.31 | M74: 0.31 | N74: 0.39 | O74: 0.37 | P74: 0.32
A75: Far Eastern FD | B75: – | C75: – | D75: – | E75: – | F75: – | G75: – | H75: – | I75: – | J75: 0 | K75: 0.01 | L75: 0.01 | M75: 0.01 | N75: 0.01 | O75: 0.02 | P75: 0.02
A76: Continental shelf of the Russian Federation | B76: – | C76: – | D76: – | E76: – | F76: – | G76: – | H76: – | I76: – | J76: – | K76: 0.02 | L76: 0.1 | M76: 0.12 | N76: 0.11 | O76: 0.11 | P76: 0.13
A77: Total | B77: 11.5 | C77: 11.37 | D77: 11.27 | E77: 10.93 | F77: 10.07 | G77: 11.29 | H77: 12.07 | I77: 12.85 | J77: 14.66 | K77: 14.49 | L77: 15.34 | M77: 15.85 | N77: 15.94 | O77: 15.93 | P77: 16.71
A78: Crude oil, mm tonnes
A79: Ural FD | B79: 8.43 | C79: 31.92 | D79: 31.74 | E79: 29.6 | F79: 28.91 | G79: 28.73 | H79: 28.66 | I79: 32.95 | J79: 32.7 | K79: 32.83 | L79: 32.39 | M79: 34.45 | N79: 35.71 | O79: 36.82 | P79: 36.34
A80: North-Western FD | B80: 0.09 | C80: 0.07 | D80: 0.08 | E80: 0.07 | F80: 0.06 | G80: 0.06 | H80: 0.05 | I80: 0.04 | J80: 0.05 | K80: 0.03 | L80: 0.04 | M80: 0.03 | N80: 0.02 | O80: 0.02 | P80: 0.02
A81: South FD and Nortern Caucasian FD | B81: 0.12 | C81: 0.11 | D81: 0.08 | E81: 0.08 | F81: 0.12 | G81: 0.16 | H81: 0.16 | I81: 0.16 | J81: 0.14 | K81: 0.11 | L81: 0.09 | M81: 0.09 | N81: 0.09 | O81: 0.08 | P81: 0.12
A82: Volga FD | B82: 0.56 | C82: 0.6 | D82: 0.64 | E82: 0.68 | F82: 0.7 | G82: 0.69 | H82: 0.75 | I82: 1.23 | J82: 1.77 | K82: 2.46 | L82: 2.76 | M82: 2.85 | N82: 2.85 | O82: 2.79 | P82: 3.1
A83: Siberian FD | B83: 0.29 | C83: 1.32 | D83: 1.44 | E83: 1.62 | F83: 1.83 | G83: 2.37 | H83: 2.66 | I83: 7.88 | J83: 7.75 | K83: 7.84 | L83: 7.87 | M83: 7.58 | N83: 7.32 | O83: 5.38 | P83: 5.24
A84: Far Eastern FD | B84: – | C84: – | D84: – | E84: – | F84: – | G84: – | H84: – | I84: – | J84: – | K84: – | L84: 0 | M84: – | N84: 0 | O84: 0 | P84: 0
A85: Continental shelf of the Russian Federation | B85: – | C85: – | D85: – | E85: – | F85: – | G85: – | H85: – | I85: – | J85: – | K85: 0.26 | L85: 0.89 | M85: 2.15 | N85: 2.64 | O85: 3.19 | P85: 3.14
A86: Total | B86: 9.49 | C86: 34.02 | D86: 33.98 | E86: 32.05 | F86: 31.62 | G86: 32.01 | H86: 32.28 | I86: 42.26 | J86: 42.41 | K86: 43.53 | L86: 44.04 | M86: 47.15 | N86: 48.63 | O86: 48.28 | P86: 47.96
A87: * Excluding share of Gazprom Group in the production of entities, investments in which are classified as joint operations.
A89: Useful life of APG by Gazprom Group in Russia
A90: (including share in the production of entities, investments in which are classified as joint operations)
B91: For the year ended 31 December
C92: 2006* | D92: 2007* | E92: 2008* | F92: 2009* | G92: 2010* | H92: 2011* | I92: 2012* | J92: 2013 | K92: 2014 | L92: 2015 | M92: 2016 | N92: 2017 | O92: 2018 | P92: 2019
A93: APG usage, bcm
A94: PJSC Gazprom and its major subsidiaries** | C94: 1.73 | D94: 1.69 | E94: 1.62 | F94: 1.68 | G94: 1.83 | H94: 2.05 | I94: 1.48 | J94: 1.27 | K94: 1.42 | L94: 1.87 | M94: 1.79 | N94: 1.64 | O94: 1.57 | P94: 1.66
A95: PAO Gazprom Neft and its subsidiaries | C95: 2.04 | D95: 1.75 | E95: 2.14 | F95: 2.06 | G95: 2.45 | H95: 2.66 | I95: 4.18 | J95: 5.39 | K95: 6.13 | L95: 6.51 | M95: 7.63 | N95: 8.71 | O95: 11.29 | P95: 14.81
A96: Total (excluding share in the production volumes of entities in which Gazprom has investments classified as joint operations) | C96: 3.77 | D96: 3.44 | E96: 3.76 | F96: 3.74 | G96: 4.28 | H96: 4.71 | I96: 5.66 | J96: 6.66 | K96: 7.55 | L96: 8.38 | M96: 9.42 | N96: 10.35 | O96: 12.86 | P96: 16.47
A97: Entities in which Gazprom has investments classified as joint operations (attributable to the share of Gazprom Group) | J97: 0.99 | K97: 1.02 | L97: 1.05 | M97: 1.03 | N97: 1.07 | O97: 1.08 | P97: 1.08
A98: Total (including share in the production volumes of entities in which Gazprom has investments classified as joint operations) | J98: 7.65 | K98: 8.58 | L98: 9.43 | M98: 10.45 | N98: 11.42 | O98: 13.94 | P98: 17.55
A99: Level of useful life of APG, %
A100: PJSC Gazprom and its major subsidiaries** | C100: 81.2 | D100: 82.8 | E100: 83.3 | F100: 81.8 | G100: 81.6 | H100: 87 | I100: 83.2 | J100: 90.9 | K100: 93.5 | L100: 95.6 | M100: 97.8 | N100: 98.4 | O100: 98.1 | P100: 98.5
A101: PAO Gazprom Neft and its subsidiaries | C101: 45 | D101: 35.7 | E101: 46.8 | F101: 48.1 | G101: 55.3 | H101: 58.8 | I101: 65.7 | J101: 79.5 | K101: 80.5 | L101: 79.6 | M101: 79.2 | N101: 76.2 | O101: 78.4 | P101: 89
A102: Total (excluding share in the production volumes of entities in which Gazprom has investments classified as joint operations) | C102: 56.6 | D102: 49.7 | E102: 57.7 | F102: 59.1 | G102: 64.1 | H102: 68.4 | I102: 69.2 | J102: 81.4 | K102: 82.7 | L102: 82.7 | M102: 82.2 | N102: 79 | O102: 80.4 | P102: 89.9
A103: Entities in which Gazprom has investments classified as joint operations (attributable to the share of Gazprom Group) | J103: 87.3 | K103: 90 | L103: 89.9 | M103: 87.2 | N103: 88.9 | O103: 91.6 | P103: 91.8
A104: Total (including share in the production volumes of entities in which Gazprom has investments classified as joint operations) | J104: 82.2 | K104: 83.5 | L104: 83.5 | M104: 82.7 | N104: 79.8 | O104: 81.8 | P104: 90.1
A105: * Excluding share of Gazprom Group in the production of entities, investments in which are classified as joint operations.
A106: ** Taking into account the production volumes of AO Tomskgazprom. Also taking into account the production volumes of OOO Servisneftegaz; the financial results of this entity are not included in Gazprom Group’s IFRS consolidated financial statements due to insignificance.
A108: Back to Contents

Sheet Max daily gas production
A1: Actual maximum daily natural and associated gas production in the autumn-winter period
A2: (excluding entities, investments in which are classified as joint operations)
B3: Autumn-winter perion
B4: 2014/2015 | C4: 2015/2016 | D4: 2016/2017 | E4: 2017/2018 | F4: 2018/2019
A5: Date | B5: 2014-12-10 | C5: 2015-10-22 | D5: 2016-12-02 | E5: 2018-02-23 | F5: 2019-01-19
A6: Production, mmcm | B6: 1456.9 | C6: 1555.7 | D6: 1535.6 | E6: 1512.6 | F6: 1538.6
A7: incluging production in UGSS | B7: 1318.1 | C7: 1320.2 | D7: 1 529,0 | E7: 1 494,3 | F7: 1 510,5
A9: Back to Contents

Sheet Production of the assoc. and JV
A1: Hydrocarbon production of the associated and jointly controlled companies in Russia attributable to the share of Gazprom Group
A2: Metric units
B3: For the year ended 31 December
B4: 2007* | C4: 2008* | D4: 2009* | E4: 2010* | F4: 2011* | G4: 2012 | H4: 2013 | I4: 2014 | J4: 2015 | K4: 2016 | L4: 2017 | M4: 2018 | N4: 2019
A5: Natural and associated gas, bcm | B5: 8.53 | C5: 10.99 | D5: 13.58 | E5: 17.63 | F5: 11.3302 | G5: 11.88 | H5: 13.04 | I5: 18.18 | J5: 25.55 | K5: 27.21 | L5: 27.04 | M5: 26.92 | N5: 26.86
A6: Gas condensate, mm tonnnes | B6: 0.73 | C6: 0.73 | D6: 1.21 | E6: 1.59 | F6: 0.99 | G6: 1.13 | H6: 1.26 | I6: 2.32 | J6: 4.7 | K6: 5.17 | L6: 4.96 | M6: 4.87 | N6: 4.74
A7: Crude oil, mm tonnes | B7: 11.33 | C7: 16.26 | D7: 19.17 | E7: 20.74 | F7: 20.52 | G7: 10.82 | H7: 10.25 | I7: 9.96 | J7: 9.59 | K7: 9.93 | L7: 10.91 | M7: 11.22 | N7: 11.77
A8: * Including share of Gazprom Group in the production of entities, investments in which are classified as joint operations.
A10: Oil equivalent
B11: For the year ended 31 December
B12: 2007* | C12: 2008* | D12: 2009* | E12: 2010* | F12: 2011* | G12: 2012 | H12: 2013 | I12: 2014 | J12: 2015 | K12: 2016 | L12: 2017 | M12: 2018 | N12: 2019
A13: Natural and associated gas, mm boe | B13: =ROUND(B5*6.49,2) -> 55.36 | C13: 71.33 | D13: 88.13 | E13: 114.42 | F13: 73.53 | G13: 77.1 | H13: 84.63 | I13: 117.99 | J13: 165.82 | K13: 176.59 | L13: 175.49 | M13: 174.71 | N13: 174.32
A14: Gas condensate, mm boe | B14: =ROUND(B6*8.18,2) -> 5.97 | C14: 5.97 | D14: 9.9 | E14: 13.01 | F14: 8.1 | G14: 9.24 | H14: 10.31 | I14: 18.98 | J14: 38.45 | K14: 42.29 | L14: 40.57 | M14: 39.84 | N14: 38.77
A15: Crude oil, mm boe | B15: =ROUND(B7*7.33,2) -> 83.05 | C15: 119.19 | D15: 140.52 | E15: 152.02 | F15: 150.41 | G15: 79.31 | H15: 75.13 | I15: 73.01 | J15: 70.29 | K15: 72.79 | L15: 79.97 | M15: 82.24 | N15: 86.27
A16: Total, mm boe | B16: =B13+B14+B15 -> 144.38 | C16: 196.49 | D16: 238.55 | E16: 279.45 | F16: 232.04 | G16: 165.65 | H16: 170.07 | I16: 209.98 | J16: 274.56 | K16: 291.67 | L16: 296.03 | M16: 296.79 | N16: 299.36
A17: * Including share of Gazprom Group in the production of entities, investments in which are classified as joint operations.
A18: Note. For management accounting purposes, Gazprom Group measures hydrocarbon reserves and production in metric units. In this Factbook, gas production is converted from metric units to barrels of oil equivalent at a ratio of 1,000 cubic metres to 6.49 boe.
A20: Back to Contents

Sheet Explor. and drill. in Russia
A1: Geological Exploration, Production Drilling and Production Capacity
A2: Key figures of Gazprom Group’s geological exploration activities
A3: (excluding entities, investments in which are classified as joint operations)
B4: For the year ended 31 December
B5: 2005 | C5: 2006 | D5: 2007 | E5: 2008 | F5: 2009 | G5: 2010 | H5: 2011 | I5: 2012 | J5: 2013 | K5: 2014 | L5: 2015 | M5: 2016 | N5: 2017 | O5: 2018 | P5: 2019
A6: Exploration drilling, thousand m | B6: 136.3 | C6: 177.7 | D6: 207.6 | E6: 284.9 | F6: 163.7 | G6: 204.9 | H6: 157.7 | I6: 126.4 | J6: 146.4 | K6: 165.4 | L6: 143.6 | M6: 111.6 | N6: 85.9 | O6: 157.6 | P6: 201.7 | R6: 126.4 | S6: 146.4 | T6: 165.4 | U6: 143.6 | V6: 111.6
A7: Completed exploration wells, units | B7: 44 | C7: 62 | D7: 39 | E7: 80 | F7: 75 | G7: 82 | H7: 60 | I7: 54 | J7: 53 | K7: 41 | L7: 43 | M7: 40 | N7: 36 | O7: 25 | P7: 41 | R7: 54 | S7: 53 | T7: 41 | U7: 43 | V7: 40
A8: including producing wells | B8: 35 | C8: 50 | D8: 20 | E8: 50 | F8: 43 | G8: 64 | H8: 45 | I8: 46 | J8: 37 | K8: 31 | L8: 38 | M8: 34 | N8: 31 | O8: 20 | P8: 39 | R8: 46 | S8: 37 | T8: 31 | U8: 38 | V8: 34
A9: Seismic exploration 2D, thousand linear km | B9: 9.8 | C9: 9.2 | D9: 6.4 | E9: 12.4 | F9: 14.7 | G9: 18.5 | H9: 2.8 | I9: 1.9 | J9: 1.4 | K9: 6.6 | L9: 0.3 | M9: 1.1 | N9: – | O9: 5.7 | P9: 15 | R9: 1.9 | S9: 1.4 | T9: 6.6 | U9: 0.3 | V9: 1.1
A10: Seismic exploration 3D, thousand square km | B10: 3.2 | C10: 7.9 | D10: 5.7 | E10: 6.6 | F10: 9.5 | G10: 10.8 | H10: 8.7 | I10: 8.4 | J10: 13.3 | K10: 12.6 | L10: 20 | M10: 20.6 | N10: 18.7 | O10: 9.5 | P10: 7.9 | R10: 8.4 | S10: 13.3 | T10: 12.6 | U10: 20 | V10: 20.6
A11: Reserves growth due to geological exploration, mm boe | B11: 3706.2 | C11: 3961.4 | D11: 3712.7 | E11: 3889.2 | F11: 3498 | G11: 4100 | H11: 4978.8 | I11: 3955.5 | J11: 4183.5 | K11: 5942.2 | L11: 3835.1 | M11: 3404 | N11: 6341.5 | O11: 5440.6 | P11: 3906.6 | R11: 3955.5 | S11: 4183.5 | T11: 5942.2 | U11: 3835.1 | V11: 3404
A12: Drilling efficiency, thousand boe / m | B12: 27.1 | C12: 22.1 | D12: 17.9 | E12: 13.7 | F12: 21.4 | G12: 20 | H12: 31.2 | I12: 31.3 | J12: 28.6 | K12: 35.9 | L12: 26.7 | M12: 30.5 | N12: 73.8 | O12: 34.5 | P12: 19.4 | R12: 31293.5 | S12: 28575.8 | T12: 35926.2 | U12: 26706.8 | V12: 30501.8
A14: Key figures of geological exploration activities of entities, investments in which are classified as joint operations
B15: For the year ended 31 December
B16: 2005 | C16: 2006 | D16: 2007 | E16: 2008 | F16: 2009 | G16: 2010 | H16: 2011 | I16: 2012 | J16: 2013 | K16: 2014 | L16: 2015 | M16: 2016 | N16: 2017 | O16: 2018 | P16: 2019
A17: Exploration drilling, thousand m | B17: x | C17: x | D17: x | E17: x | F17: x | G17: x | H17: x | I17: 14 | J17: 11.6 | K17: 13.1 | L17: 3.2 | M17: 7.4 | N17: 12.8 | O17: 28.7 | P17: 74.7 | R17: 14 | S17: 11.6 | T17: 13.1 | U17: 3.2 | V17: 7.4
A18: Completed exploration wells, units | B18: x | C18: x | D18: x | E18: x | F18: x | G18: x | H18: x | I18: 5 | J18: 5 | K18: 4 | L18: 1 | M18: 2 | N18: 4 | O18: 8 | P18: 18 | R18: 5 | S18: 5 | T18: 4 | U18: 1 | V18: 2
A19: including producing wells | B19: x | C19: x | D19: x | E19: x | F19: x | G19: x | H19: x | I19: 4 | J19: 3 | K19: 3 | L19: 1 | M19: 1 | N19: 4 | O19: 5 | P19: 14 | R19: 4 | S19: 3 | T19: 3 | U19: 1 | V19: 1
A20: Seismic exploration 2D, linear km | B20: x | C20: x | D20: x | E20: x | F20: x | G20: x | H20: x | I20: 481 | J20: – | K20: – | L20: – | M20: − | N20: – | O20: – | P20: – | R20: 481 | S20: – | T20: – | U20: – | V20: −
A21: Seismic exploration 3D, square km | B21: x | C21: x | D21: x | E21: x | F21: x | G21: x | H21: x | I21: 1085 | J21: 858 | K21: 494 | L21: 459 | M21: 130 | N21: 200 | O21: 474 | P21: 935 | R21: 1085 | S21: 858 | T21: 494 | U21: 459 | V21: 130
A23: Gazprom Group’s production drilling
A24: (excluding entities, investments in which are classified as joint operations)
B25: For the year ended 31 December
B26: 2005 | C26: 2006 | D26: 2007 | E26: 2008 | F26: 2009 | G26: 2010 | H26: 2011 | I26: 2012 | J26: 2013 | K26: 2014 | L26: 2015 | M26: 2016 | N26: 2017 | O26: 2018 | P26: 2019
A27: Production wells, completed construction, units
A28: natural gas | B28: 248 | C28: 156 | D28: 204 | E28: 143 | F28: 151 | G28: 118 | H28: 223 | I28: 212 | J28: 93 | K28: 38 | L28: 73 | M28: 64 | N28: 116 | O28: 114 | P28: 176
A29: crude oil | B29: 15 | C29: 441 | D29: 546 | E29: 629 | F29: 702 | G29: 775 | H29: 719 | I29: 724 | J29: 788 | K29: 832 | L29: 802 | M29: 725 | N29: 660 | O29: 545 | P29: 623
A30: at UGSFs | B30: 36 | C30: 41 | D30: 45 | E30: 8 | F30: 14 | G30: 16 | H30: 17 | I30: 17 | J30: 43 | K30: 22 | L30: 27 | M30: 13 | N30: 4 | O30: 9 | P30: 15
A31: Total | B31: 299 | C31: 638 | D31: 795 | E31: 780 | F31: 867 | G31: 909 | H31: 959 | I31: 953 | J31: 924 | K31: 892 | L31: 902 | M31: 802 | N31: 780 | O31: 668 | P31: 814
A32: Production wells drilled, thousand m
A33: natural gas | B33: 327.4 | C33: 267.1 | D33: 314 | E33: 375.7 | F33: 358.2 | G33: 441.5 | H33: 476.8 | I33: 367.7 | J33: 239.7 | K33: 125.6 | L33: 153.2 | M33: 227.2 | N33: 240.8 | O33: 304.4 | P33: 400.8
A34: crude oil | B34: 38.2 | C34: 1468.9 | D34: 1740.7 | E34: 2080.6 | F34: 2286.7 | G34: 2602.2 | H34: 2288.1 | I34: 2566.6 | J34: 3002.1 | K34: 2948.5 | L34: 3163 | M34: 2735.8 | N34: 2 559,5 | O34: 2202.6 | P34: 2811.7
A35: at UGSFs | B35: 31.6 | C35: 30.1 | D35: 37.8 | E35: 17.6 | F35: 11.9 | G35: 20.3 | H35: 22.9 | I35: 24.2 | J35: 36.7 | K35: 27.6 | L35: 47.5 | M35: 23.7 | N35: 13.6 | O35: 19.4 | P35: 14.2
A36: Total | B36: 397.2 | C36: 1766.1 | D36: 2092.5 | E36: 2473.9 | F36: 2656.8 | G36: 3064 | H36: 2787.8 | I36: 2958.5 | J36: 3278.5 | K36: 3101.7 | L36: 3363.7 | M36: 2 986,7 | N36: 2 813,9 | O36: 2526.4 | P36: 3226.7
A38: Production drilling of entities, investments in which are classified as joint operations
B39: For the year ended 31 December
B40: 2005 | C40: 2006 | D40: 2007 | E40: 2008 | F40: 2009 | G40: 2010 | H40: 2011 | I40: 2012 | J40: 2013 | K40: 2014 | L40: 2015 | M40: 2016 | N40: 2017 | O40: 2018 | P40: 2019
A41: Oil production wells, completed construction, units | B41: x | C41: x | D41: x | E41: x | F41: x | G41: x | H41: x | I41: 243 | J41: 211 | K41: 188 | L41: 206 | M41: 231 | N41: 236 | O41: 208 | P41: 206
A42: Oil producing wells drilled, thousand m | B42: x | C42: x | D42: x | E42: x | F42: x | G42: x | H42: x | I42: 827 | J42: 697 | K42: 694 | L42: 789 | M42: 785 | N42: 784 | O42: 749 | P42: 744
A44: Gazprom Group’s production capacity
A45: (excluding entities, investments in which are classified as joint operations)
B46: As at 31 December
B47: 2005 | C47: 2006 | D47: 2007 | E47: 2008 | F47: 2009 | G47: 2010 | H47: 2011 | I47: 2012 | J47: 2013 | K47: 2014 | L47: 2015 | M47: 2016 | N47: 2017 | O47: 2018 | P47: 2019
A48: Fields in operation*, units | B48: 114 | C48: 119 | D48: 122 | E48: 122 | F48: 121 | G48: 120 | H48: 124
A49: Fields in commercial development, units | I49: 118 | J49: 122 | K49: 126 | L49: 135 | M49: 136 | N49: 136 | O49: 138 | P49: 144
A50: Gas production wells, units | B50: 6941 | C50: 7010 | D50: 7154 | E50: 7214 | F50: 7310 | G50: 7403 | H50: 7504 | I50: 7717 | J50: 7744 | K50: 7816 | L50: 7881 | M50: 7916 | N50: 7945 | O50: 7976 | P50: 8061
A51: including those in operation | B51: 6401 | C51: 6513 | D51: 6640 | E51: 6723 | F51: 6775 | G51: 6806 | H51: 6988 | I51: 7226 | J51: 7263 | K51: 7293 | L51: 7358 | M51: 7441 | N51: 7 438 | O51: 7418 | P51: 7438
A52: Oil production wells, units | B52: 5018 | C52: 5486 | D52: 5881 | E52: 5932 | F52: 6158 | G52: 6464 | H52: 6647 | I52: 7296 | J52: 7868 | K52: 8218 | L52: 9058 | M52: 9316 | N52: 7944 | O52: 9106 | P52: 8 393
A53: including those in operation | B53: 4372 | C53: 4948 | D53: 5342 | E53: 5444 | F53: 5663 | G53: 5941 | H53: 6151 | I53: 6738 | J53: 7246 | K53: 7604 | L53: 8461 | M53: 8681 | N53: 7 358 | O53: 8489 | P53: 7752
A54: Comprehensive and preliminary gas treatment units, units | B54: 169 | C54: 170 | D54: 172 | E54: 173 | F54: 174 | G54: 176 | H54: 177 | I54: 179 | J54: 170 | K54: 171 | L54: 170 | M54: 171 | N54: 169 | O54: 170 | P54: 171
A55: Booster compressor stations, units | B55: 44 | C55: 44 | D55: 45 | E55: 45 | F55: 47 | G55: 48 | H55: 49 | I55: 49 | J55: 49 | K55: 52 | L55: 53 | M55: 58 | N55: 60 | O55: 62 | P55: 64
A56: Aggregate installed capacity of booster compressor stations, MW | B56: 4176.1 | C56: 4176.1 | D56: 4300.1 | E56: 4460.1 | F56: 4508.1 | G56: 4572.1 | H56: 4730.1 | I56: 5015.2 | J56: 5046.4 | K56: 5265.4 | L56: 5080.3 | M56: 5 669,8 | N56: 5865.9 | O56: 6135.3 | P56: 6379.3
A57: * For 2005–2011 includes fields that are in pilot production.
A59: Production capacity of entities, investments in which are classified as joint operations
B60: As at 31 December
B61: 2005 | C61: 2006 | D61: 2007 | E61: 2008 | F61: 2009 | G61: 2010 | H61: 2011 | I61: 2012 | J61: 2013 | K61: 2014 | L61: 2015 | M61: 2016 | N61: 2017 | O61: 2018 | P61: 2019
A62: Fields in commercial development, units | B62: x | C62: x | D62: x | E62: x | F62: x | G62: x | H62: x | I62: 34 | J62: 35 | K62: 39 | L62: 41 | M62: 42 | N62: 41 | O62: 38 | P62: 39
A63: Gas production wells, units | B63: x | C63: x | D63: x | E63: x | F63: x | G63: x | H63: x | I63: 9 | J63: 9 | K63: 8 | L63: 7 | M63: 7 | N63: 7 | O63: 4 | P63: 4
A64: including those in operation | B64: x | C64: x | D64: x | E64: x | F64: x | G64: x | H64: x | I64: 2 | J64: – | K64: 1 | L64: 3 | M64: 3 | N64: 1 | O64: 4 | P64: 4
A65: Oil production wells, units | B65: x | C65: x | D65: x | E65: x | F65: x | G65: x | H65: x | I65: 3439 | J65: 3590 | K65: 3635 | L65: 3768 | M65: 3733 | N65: 3810 | O65: 3866 | P65: 3819
A66: including those in operation | B66: x | C66: x | D66: x | E66: x | F66: x | G66: x | H66: x | I66: 2927 | J66: 3017 | K66: 3086 | L66: 3163 | M66: 3379 | N66: 3472 | O66: 3534 | P66: 3516
A68: Back to Contents

Sheet Promising fields
A1: Promising Fields
A2: Fields under development operated by Gazprom Group
A3: Field name | B3: Description | C3: Annual design capacity | D3: Year of launch | E3: Year of achieving design capacity
A4: Nadym-Pur-Taz area (Western Siberia)
A5: Nydinsky block of the Medvezhye field | B5: Located within the Medvezhye field in the Pur District of the Yamal-Nenets Autonomous Area, Tyumen Region. | C5: 2.2 bcm of gas | D5: 2011 | E5: 2022–2024
A6: Urengoyskoye (Achimov deposits) | B6: Located in the Purovsky District of the Yamal-Nenets Autonomous Area. Deposits have been divided into blocks to facilitate phased development.
A7: Block 1 | C7: 9.6 bcm of gas and 2.95 mm tonnes of unstable gas condensate | D7: 2008 | E7: 2020–2023
A8: Block 2 | C8: 12.33 bcm of gas and 3.36 mm tonnes of unstable gas condensate | D8: 2009 | E8: 2021–2024
A9: Blocks 4–5 | C9: 15.5 bcm of gas | D9: 2020 | E9: 2027–2030
A10: Oil rims of the Yen-Yakhinskoye and Pestsovoye fields, oil deposits of Zapadno-Tarkosalynskoye field* | B10: Located in the Purovsky District of the Yamal-Nenets Autonomous Area. | C10: 1.8 mm tonnes of liquid hydrocarbons | D10: 2021 | E10: 2021–2022
A11: Achimov oil deposits of the Yamburgskoye field* | B11: Located in the Taz and Nadym Districts of the Yamal-Nenets Autonomous Area. | C11: 8 mm tonnes of oil | D11: 2027 | E11: 2028
A12: Yamal Peninsula and adjacent offshore areas
A13: Bovanenkovskoye | B13: The largest field on the Yamal Peninsula in terms of explored reserves; the field is located in the central part of the peninsula and is the best explored.
A14: Cenomanian-Aptian deposits | C14: 115 bcm of gas | D14: 2012 | E14: 2021 (completion of well commissioning to achieve design capacity)
A15: Neocomian-Jurassic deposits* | C15: 25 bcm of gas and 2.3 mm tonnes of liquid hydrocarbons | D15: 2025–2027 | E15: 2030–2032
A16: Novoportovskoye | B16: Located in the south-eastern corner of the Yamal Peninsula, where no infrastructure is available. | C16: 8.5 mm tonnes of oil | D16: 2016 | E16: 2020
A17: Volga Area
A18: Astrakhanskoye | B18: Located in the Volga Delta; capable of yielding 50–60 bcm of gas per annum. Production is restricted to 12 bcm per annum for environmental concerns and expensive technology used. | D18: 1986
A19: Volga-Urals Area
A20: Vostochny block of the Orenburg oil and gas condensate field | B20: Located 10-20 km away from Orenburg in a region that benefits from well-developed infrastructure and close vicinity to distribution markets. | C20: 3.3 mm tonnes of oil | D20: 1994 | E20: 2029
A21: Continental shelf in Russia’s Arctic
A22: Prirazlomnoye | B22: Located on the continental shelf of the Russian Federation in the Pechora Sea, 55 km from the settlement of Varandey, 240 km from the river port of Naryan-Mar (Pechora River) and 980 km away from the Murmansk sea port. The sea depth within the field area is only 17–20 metres. | C22: 4.2 mm tonnes of oil | D22: 2013 | E22: 2024
A23: Eastern Siberia and the Russian Far East
A24: Chayandinskoye | B24: Located in the Lensk District of the Republic of Sakha (Yakutia). | C24: 25 bcm of gas | D24: 2019 | E24: 2024
C25: 1.9 mm tonnes of oil | D25: 2014 (launch of pilot production) | E25: 2020
A26: Continental shelf of the Russian Federation in the Okhotsk Sea
A27: Kirinskoye | B27: Located on the continental shelf of the Russian Federation in the Okhotsk Sea, to the northeast of Sakhalin. Field development is part of Sakhalin III Project. | C27: 5.5 bcm of gas | D27: 2014 | E27: 2023–2024
A28: * Operator — OOO Gazprom neft Zapolyar’ye under long-term risk-based operatorship agreements with PJSC Gazprom and its gas production subsidiaries.
A29: Note. As at 31 December 2019. Timelines for commissioning and ramp-up may be adjusted subject to the energy market environment.
A31: Fields in exploration and prospective licence blocks of Gazprom Group
A32: Field (license block) | B32: Description | C32: Annual design capacity | D32: Comissioning year | E32: Design capacity year
A33: Yamal Peninsula and adjacent offshore areas
A34: Kharasaveyskoye | B34: To be put in operation after the Bovanenkovskoye field achieves design capacity.
A35: Cenomanian-Aptian deposits | C35: 32 bcm of gas | D35: 2023 | E35: 2025
A36: Neocomian-Jurassic deposits* | C36: 24.5 bcm of gas 1.9 mm tonnes of liquid hydrocarbons | D36: 2026 | E36: 2029
A37: Kruzenshternskoye | B37: Part of the Bovanenkovo group of fields. | C37: 33 bcm of gas | D37: 2028 | E37: 2032–2033
A38: Continental shelf in Russia’s Arctic
A39: Shtokmanovskoye | B39: Located in the central part of the Barents Sea, northwest of the Novaya Zemlya archipelago and 650 km northeast of the city of Murmansk. Gas supplies are planned both through the Unified Gas Supply System and as LNG to remote markets. | C39: 71.7 bcm of gas expandable to 95 bcm of gas | D39: To be specified based on the Investment Case
A40: Ob and Taz Bays
A41: Kamennomysskoye-more | B41: Located in the offshore area of the Ob Bay in the Yamal-Nenets Autonomous Area (Tyumen Region) and is a priority development area in offshore areas of the Ob and Taz Bays. | C41: 15.1 bcm of gas | D41: 2025–2027 | E41: 2027–2029
A42: Severo-Kamennomysskoye | C42: 14.5 bcm of gas | D42: 2027–2029 | E42: 2032–2033
A43: Khanty-Mansi Autonomous Area — Yugra
A44: Alexander Zhagrin field | B44: Located in the Kondinskiy District of the Khanty-Mansi Autonomous Area — Yugra. | C44: 6.4 mm tonnes of oil | D44: 2020 | E44: 2022
A45: Nadym-Pur-Taz region (Western Siberia)
A46: Yuzhno-Novoportovskiy and Suroviy license blocks | B46: The license blocks are adjacent to the Novoportovskoye field and the Yuzhno-Kamennomysskiy license block. | C46: 2.5 mm tonnes of oil | D46: 2026 | E46: 2032
A47: Tazovskoye | B47: Located in the Tazovsky District of the Yamal-Nenets Autonomous Area. | C47: 2 mm tonnes of oil | D47: 2021 | E47: 2023
A48: Meretoyakhinskoye | B48: Located in the Nadymsky District of the Yamal-Nenets Autonomous Area 135 km south-east of the town of Nadym. | C48: 2.1 mm tonnes of oil | D48: 2025 | E48: 2027
A49: Zapadno-Yubileynoye | B49: Located in the Nadymsky District of the Yamal-Nenets Autonomous Area 100 km north-west of the town of Nadym. | C49: 21 bcm of gas and 5 mm tonnes of oil | D49: 2026 | E49: 2027
A50: Gydan Peninsula
A51: Leskinskiy and Pukhutsyakhsky blocks (Yenisei project) | B51: Licensed blocks are located on the Gydan Peninsula, on the left bank of the Yenisei River. Leskinsky site belongs to the Taimyrskiy Dolgan-Nenetskiy District of the Krasnoyarsk Territory. The Pukhutsyakhskiy block is located in the Taz District of the Yamal-Nenets Autonomous Area. | C51: 19.9 mm tonnes of oil | D51: 2027 | E51: 2037
A52: Eastern Siberia and the Russian Far East
A53: Omorinskoye, Kamovskoye and Salairskoye fields within the Omorinskiy license block | B53: Located within the Baikitskaya oil and gas bearing region of the Leno-Tungusskaya oil and gas bearing province in the Krasnoyarsk Territory. | C53: 2.2 mm tonnes of oil | D53: 2026 | E53: 2032
A54: Kovyktinskoye | B54: Located in the Zhigalovsky and Kazachinsko-Lensky Districts of the Irkutsk Region | C54: 25 bcm of gas | D54: 2022 | E54: 2025
A55: Chonsky cluster (Ignjalinskoye, Vakunayskoye, Severo-Vakunayskoye, Tympuchikanskoye and Verkhnechonskoye fields) | B55: Located in the Katangskiy District of the Irkutsk Region and the Lenskiy District of the Republic of Sakha (Yakutia), 120-140 km east of the district centre, the village of Erbogachen. | C55: 2.2 mm tonnes of oil | D55: 2024 | E55: 2030
A56: Continental shelf of the Russian Federation in the Sea of Okhotsk
A57: Yuzhno-Kirinskoye | B57: Located on the continental shelf of the Russian Federation in the Okhotsk Sea, to the northeast of Sakhalin. Field development is part of Sakhalin III Project. | C57: 21 bcm of gas | D57: 2023–2024 | E57: 2029–2032
A58: * Operator — OOO Gazprom neft Zapolyar’ye under long-term risk-based operatorship agreements with PJSC Gazprom’s gas production subsidiaries.
A59: Note. As at 31 December 2019. Timelines for commissioning and ramp-up may be adjusted subject to the energy market environment.
A61: Fields of joint ventures of Gazprom Group
A62: Field name | B62: Description and partner | C62: Annual design capacity | D62: Year of comissioning | E62: Year of design capacity
A63: Gydan Peninsula
A64: Vostochno-Messoyakhskoye | B64: Located in the northern part of the Western Siberian oil and gas province in the south-west of the Gydan Peninsula; one of the largest fields by explored reserves. Partner: Rosneft. | C64: 6.0 mm tonnes of oil | D64: 2016 | E64: 2022
A65: Khanty-Mansi Autonomous Area — Yugra
A66: Ervier (Ouryinskoye) field | B66: Located on the border of Khanty-Mansi Autonomous Area — Yugra and Sverdlovsk Region Partner: Repsol. | C66: 2.6 mm tonnes of oil | D66: 2024 | E66: 2026
A67: Eastern Siberia and the Russian Far East
A68: Kuyumbinskoye | B68: Located in the Baikitsky Municipality of the Evenk Municipal District in the Krasnoyarsk Territory. Makes part of the Yurubcheno- Tokhomskaya oil and gas pool. The area is hard to access and has no all-season roads. Partner: Rosneft. | C68: 5.0 mm tonnes of oil | D68: 2018 | E68: 2028
A69: Note. As at 31 December 2019. Timelines for commissioning and ramp-up may be adjusted subject to the energy market environment.
A71: Back to Contents

Sheet Explor. and production abroad
A1: Geological Exploration and Production Abroad
A2: Key figures of Gazprom’s hydrocarbon geological exploration abroad
B3: For the year ended 31 December
B4: 2007 | C4: 2008 | D4: 2009 | E4: 2010 | F4: 2011 | G4: 2012 | H4: 2013 | I4: 2014 | J4: 2015 | K4: 2016 | L4: 2017 | M4: 2018 | N4: 2019
A5: Exploration drilling, thousand m | B5: 14.2 | C5: 32.1 | D5: 30.7 | E5: 21.8 | F5: 21.8 | G5: 24 | H5: 18.1 | I5: 17.6 | J5: 28.3 | K5: 9.7 | L5: 18.4 | M5: 21.9 | N5: 18.6
A6: Exploration wells, completed construction, units | B6: – | C6: 4 | D6: 10 | E6: 10 | F6: 6 | G6: 7 | H6: 4 | I6: 5 | J6: 4 | K6: 8 | L6: 8 | M6: 10 | N6: 7
A7: including producing wells | B7: – | C7: – | D7: 2 | E7: 4 | F7: 6 | G7: 1 | H7: 1 | I7: 4 | J7: 2 | K7: 7 | L7: 5 | M7: 9 | N7: 7
A8: Seismic exploration 2D, thousand linear km | B8: 2.4 | C8: 6.3 | D8: 12.5 | E8: 11.4 | F8: 1.3 | G8: 0.7 | H8: 0.4 | I8: – | J8: – | K8: 1.5 | L8: – | M8: – | N8: −
A9: Seismic exploration 3D, thousand square km | B9: 1.3 | C9: 7.4 | D9: 3.6 | E9: 2.6 | F9: 0.7 | G9: 0.4 | H9: 1.4 | I9: 1.7 | J9: 1.4 | K9: 0.8 | L9: 1.2 | M9: 1.1 | N9: 0.7
A10: Note. Consolidated figures of geological exploration in foreign countries include results of the projects where companies of Gazprom Group have control and participate as operators.
A12: Gazprom Group’s hydrocarbon production capacity abroad
B13: As at 31 December
F14: 2011 | G14: 2012 | H14: 2013 | I14: 2014 | J14: 2015 | K14: 2016 | L14: 2017 | M14: 2018 | N14: 2019
A15: Production fields, units | F15: 50 | G15: 50 | H15: 51 | I15: 47 | J15: 53 | K15: 47 | L15: 48 | M15: 47 | N15: 48
A16: Gas production wells, units | F16: 225 | G16: 234 | H16: 289 | I16: 235 | J16: 168 | K16: 172 | L16: 163 | M16: 243 | N16: 249
A17: including those in operation | F17: 104 | G17: 111 | H17: 94 | I17: 96 | J17: 74 | K17: 81 | L17: 81 | M17: 126 | N17: 129
A18: Oil production wells, units | F18: 900 | G18: 903 | H18: 863 | I18: 904 | J18: 963 | K18: 931 | L18: 946 | M18: 887 | N18: 908
A19: including those in operation | F19: 603 | G19: 623 | H19: 543 | I19: 623 | J19: 661 | K19: 681 | L19: 737 | M19: 734 | N19: 757
A20: Note. The data shows Group’s hydrocarbon production capacity in foreign countries for the respective periods provided by NIS (Serbia).
A22: Gazprom Group oil and gas exploration drilling abroad
B23: For the year ended 31 December
G24: 2012 | H24: 2013 | I24: 2014 | J24: 2015 | K24: 2016 | L24: 2017 | M24: 2018 | N24: 2019
A25: Production wells, completed construction, units
A26: natural gas | G26: 2 | H26: 1 | I26: 3 | J26: – | K26: 2 | L26: – | M26: 4 | N26: 2
A27: crude oil | G27: 12 | H27: 27 | I27: 46 | J27: 35 | K27: 38 | L27: 51 | M27: 46 | N27: 38
A28: Total | G28: 14 | H28: 28 | I28: 49 | J28: 35 | K28: 40 | L28: 51 | M28: 50 | N28: 40
A29: Production wells drilled, thousand m
A30: natural gas | G30: 3 | H30: 1.9 | I30: 7.9 | J30: – | K30: 1.6 | L30: 2.1 | M30: 5 | N30: 2.8
A31: crude oil | G31: 18.4 | H31: 63.6 | I31: 86 | J31: 75 | K31: 40.9 | L31: 67.5 | M31: 61.5 | N31: 68.1
A32: Total | G32: 21.4 | H32: 65.5 | I32: 93.9 | J32: 75 | K32: 42.5 | L32: 69.6 | M32: 66.5 | N32: 70.9
A33: Note. The data shows Group’s hydrocarbon production capacity in foreign countries for the respective periods provided by NIS (Serbia).
A35: Gazprom Group hydrocarbon production abroad
B36: For the year ended 31 December
G37: 2012 | H37: 2013 | I37: 2014 | J37: 2015 | K37: 2016 | L37: 2017 | M37: 2018 | N37: 2019
A38: Natural gas*, mmcm | G38: 556 | H38: 551 | I38: 558 | J38: 415 | K38: 428 | L38: 408 | M38: 393 | N38: 364
A39: Associated gas, mmcm | J39: 158 | K39: 133 | L39: 115 | M39: 96 | N39: 101
A40: Gas condensate, thousand tonnes | J40: 31 | K40: 33 | L40: 35 | M40: 6 | N40: 6
A41: Oil**, thousand tonnes | G41: 1223 | H41: 1255 | I41: 1205 | J41: 1 086 | K41: 986 | L41: 933 | M41: 910 | N41: 888
A42: * For 2012–2014, including associated gas production.
A43: ** For 2012–2014, including gas condensate production.
A44: Note. The data shows the Group’s hydrocarbon production volumes in foreign countries for the respective periods provided by NIS (Serbia).
A46: Hydrocarbon production abroad, major projects with Gazprom Group’s participation
A47: Field name | B47: For the year ended 31 December
G48: 2012 | H48: 2013 | I48: 2014 | J48: 2015 | K48: 2016 | L48: 2017 | M48: 2018 | N48: 2019
A49: Natural and associated gas, mmcm
A50: Wingate | G50: 742 | H50: 394 | I50: 622 | J50: 877 | K50: 686 | L50: 436 | M50: 300 | N50: 189
A51: Moc Tinh and Hai Thach | G51: – | H51: 331 | I51: 1786 | J51: 1884 | K51: 2142 | L51: 2099 | M51: 2350 | N51: 2193
A52: Shakhpakthy | G52: 301 | H52: 319 | I52: 334 | J52: 357 | K52: 363 | L52: 312 | M52: 272 | N52: 202
A53: Incahuasi | G53: – | H53: – | I53: – | J53: – | K53: 740 | L53: 2519 | M53: 2579 | N53: 2608
A54: Associated gas, mmcm
A55: Badra | G55: – | H55: – | I55: – | J55: 7 | K55: 14 | L55: 208 | M55: 777 | N55: 724
A56: Gas condensate, thousand tonnes
A57: Wingate | G57: 5 | H57: 2 | I57: 4 | J57: 5 | K57: 3 | L57: 3 | M57: 2 | N57: 2
A58: Moc Tinh and Hai Thach | G58: – | H58: 59 | I58: 366 | J58: 436 | K58: 573 | L58: 469 | M58: 397 | N58: 349
A59: Incahuasi | G59: – | H59: – | I59: – | J59: – | K59: 75 | L59: 270 | M59: 280 | N59: 290
A60: Oil, thousand tonnes
A61: Badra | G61: – | H61: – | I61: 309 | J61: 1383 | K61: 2575 | L61: 3787 | M61: 3980 | N61: 2902
A62: Sarkala | G62: – | H62: – | I62: – | J62: 219 | K62: 193 | L62: 370 | M62: 935 | N62: 1451
A63: Note. Production volumes are given in total for the project, not specifying Gazprom Group’s share.
A65: Hydrocarbon production of Associates and Joint Ventures in hydrocarbon prospecting, exploration and production abroad
B66: For the year ended 31 December
G67: 2012 | H67: 2013 | I67: 2014 | J67: 2015 | K67: 2016 | L67: 2017 | M67: 2018 | N67: 2019
A68: Wintershall AG
A69: Oil, thousand tonnes | G69: 4115 | H69: 2383 | I69: 405.6 | J69: 534 | K69: 504 | L69: 1528 | M69: 2 148 | N69: 2392
A70: Associated gas, mmcm | G70: 611 | H70: 254 | I70: 69.5 | J70: 145 | K70: 137 | L70: 233 | M70: 311 | N70: 415
A71: Wintershall Noordzee B.V.*
A72: Natural gas, mmcm | G72: x | H72: x | I72: x | J72: 259 | K72: 1013 | L72: 776 | M72: 712 | N72: 535
A73: Gas condensate, thousand tonnes | G73: x | H73: x | I73: x | J73: 2 | K73: 5 | L73: 8 | M73: 5 | N73: 4
A74: Oil, thousand tonnes | G74: x | H74: x | I74: x | J74: 7 | K74: 1 | L74: 17 | M74: 52 | N74: 58
A75: * Data since Q4 2015
A76: Note. Production volumes are given in total for the entities, not specifying Gazprom Group’s share.
A78: Back to Contents

Sheet Explor. projects abroad
A1: Exploration and production projects of Gazprom Group abroad at the prospecting and exploration stage
A2: Country | B2: Project name, purpose, and description | C2: Project start | D2: The Group’s operator role | E2: Terms of the Group’s participation
A3: Algeria | B3: Hydrocarbon exploration and development at the El-Assel licence block located in the Berkine geological basin in the east of Algeria in the Sahara Desert | C3: 2009 | D3: ■ | E3: Implemented under an Agreement on joint exploration and production of hydrocarbons; Gazprom Group’s share: 49%. Partner: Algerian state oil and gas company Sonatrach. Customer: Algerian National Agency for the Valorisation of Hydrocarbon Resources (ALNAFT).
A4: Bolivia | B4: Hydrocarbon exploration and development at the Azero licence block | C4: 2013 | D4: – | E4: Implemented under a service contract for oil exploration and production services. Gazprom Group finances 50% of the project costs at the exploration stage. At the development stage, the Group will finance 22.5% of the project costs. Partners: Bolivian state oil and gas company YPFB, 55%; Total E&P Bolivia S.A. (operator), 22.5%.
A5: UK | B5: Exploration at the license blocks P1902 (block 44/23c) and P1903 (blocks 44/23d and 44/24c) on the UK continental shelf. | C5: 2012 | D5: – | E5: Implemented under the Joint Operation Agreement. Gazprom Group finances 20% of the project costs. Partners: Wintershall Noordzee B.V.* (operator) — 49.5%, XTO UK — 15.5%, Gas Union — 15.0%.
A6: Vietnam | B6: Hydrocarbon prospecting and exploration at Block 112 (incl. extension) in the South China Sea. | C6: 2000 | D6: ■ | E6: Implemented on the PSA terms. Gazprom Group finances 100% of the project costs at the exploration stage. At the development stage, the Group will finance 50% of the project costs. Partners: Petrovietnam, Petrovietnam Exploration & Production Corporation Operator: Vietgazprom joint operating company.
B7: Hydrocarbon prospecting and exploration at Blocks 129–132 in the South China Sea. | C7: 2008 | D7: ■ | E7: Implemented on the PSA terms. Gazprom Group finances 100% of the project costs at the exploration stage. At the development stage, the Group will finance 50% of the project costs. Partners: Petrovietnam, Petrovietnam Exploration & Production Corporation Operator: Vietgazprom joint operating company.
A8: Iraq | B8: Hydrocarbon exploration and development at the Shakal block in Kurdistan | C8: 2012 | D8: ■ | E8: Implemented on the PSA terms. Gazprom Group finances 100% of the project costs. At the development stage, the Group will finance 80% of the project costs.
A9: Kazakhstan and Russia | B9: Development of the Tsentralnoye cross-border offshore field in the Caspian Sea (a joint project between the Russian Federation and the Republic of Kazakhstan). The field was discovered in 2008 as part of a prospecting and exploration project at the Tsentralnaya geological structure, which involved the Group | C9: 2013 | D9: – | E9: Implemented in line with the Agreement on the demarcation of the seabed in the northern part of the Caspian Sea for the purpose of exercising sovereign rights to use mineral resources. The project involves OOO TsentrCaspNeftegaz (established by PJSC LUKOIL and PJSC Gazprom on parity terms) from the Russian side, and JSC National Company KazMunayGas from the Kazakhstan side.
A10: Libya | B10: Hydrocarbon exploration and development at Licence Blocks 19 (offshore Mediterranean) and 64 (onshore, in the northern part of the Gadames oil and gas bearing basin). | C10: 2007 | D10: ■ | E10: Implemented under exploration and production sharing agreements. Partner — Libyan National Oil Corporation. Gazprom Group finances 100% of the project costs at the exploration stage.
A11: * As at 31 December 2019, Gazprom Group’s share in the company was 50%.
A13: Exploration and production projects of Gazprom Group abroad at the development and production stage
A14: Country | B14: Project name, purpose, and description | C14: Project start | D14: The Group’s operator role | E14: Exploration results | F14: Partners’ stakes in the project | G14: Year of launch | H14: Annual design capacity
A15: Bolivia | B15: Hydrocarbon exploration and development at the Ipati and Aquio licence blocks under a Farmout Agreement According to the Bolivian laws, all hydrocarbons that will be produced belong to YPFB, and project participants will get due remuneration. Operator: Total EP Bolivie S.A. | C15: 2010 | D15: – | E15: The Incahuasi field at the Ipati and Aquio blocks was discovered in 2011. | F15: Gazprom Group, 20%; Total EP Bolivie S.A., 50%; TecPetrol, 20%; YPFB Chako, 10% | G15: 2016 | H15: 6.8 bcm (Phase 1 of CGTU)
A16: UK and the Netherlands | B16: Construction, production, and followup exploration at the UK’s offshore Wingate gas field (licence blocks P1239 and P1733) under the Joint Operation Agreement. Operator — Wintershall Noordzee B.V.* | C16: 2008 | D16: – | E16: Gazprom Group joined the project after the field had been discovered and was being prepared for the development. | F16: Gazprom Group — 20%, Wintershall Noordzee B.V. — 64.5%, XTO UK — 15.5%. | G16: 2011 | H16: 0.3 bcm of gas
B17: Development and Production at the licence block D12b on the Dutch continental shelf. Operator — Wintershall Noordzee B.V.* | C17: 2011 | D17: – | E17: A prospecting well was drilled at the Sillimanite cross-border prospect in 2015. The Sillimanite cross-border field was discovered. | F17: Implemented under the Joint Operation Agreement. Gazprom Group finances 17.591% of the project costs. Partners: Wintershall Noordzee B.V.* (operator) — 30.129%, EBN B.V. — 40.0%, ONE — 7.037%, GDF SUEZ E&P NEDERLAND B.V. — 5.243%. | G17: 2020 | H17: 0.7 bcm of gas
B18: Development and production at the licence block 44/19a on the UK’s continental shelf. Operator — Wintershall Noordzee B.V.* | C18: 2014 | D18: – | F18: Implemented under the Joint Operation Agreement. Gazprom Group finances 29.319% of the project costs. Partners: Wintershall Noordzee B.V.* (operator) — 50.214%, ONE U.K. — 11.728%, GDF SUEZ E&P UK Ltd. — 8.739%. The participants in development and production projects in license areas D12b and 44/19a signed an agreement on field unitization, Gazprom Group's share is 19.9%.
A19: Vietnam | B19: Hydrocarbon production at the Moc Tinh and Hai Thach fields in the South China Sea under the PSA terms. Operator — Bien Dong operating company | C19: 2012 | D19: – | E19: Gazprom Group joined the project after the fields had been discovered and were being prepared for development. | F19: Gazprom Group, 49%; Petrovietnam, 51% | G19: 2013 | H19: 2.0 bcm of gas
A20: Iraq | B20: Development of the Badrah field under a Service Contract. Operator: Gazprom Neft Badra B.V. The project is expected to span 20 years, with potential extension for another five years. | C20: 2010 | D20: ■ | E20: Gazprom Group joined the project after the field had been discovered and was being prepared for development. | F20: Gazprom Group, 30%; KOGAS, 22.5%; PETRONAS, 15%; TPAO, 7.5%; Iraqi Government (represented by Oil Exploration Company), 25% | G20: 2014 | H20: 5.7 mm tonnes of oil
B21: Hydrocarbon production at the Garmian block on the PSA terms. Operator: Gazprom Neft Middle East B.V. | C21: 2012 | D21: ■ | E21: The Sarkala field has been discovered within the boundaries of the block. | F21: Gazprom Group, 40%; WesternZagros, 40%; Kurdistan Regional Government, 20% | G21: 2015 | H21: 1.45 mm tonnes of oil
A22: Uzbekistan | B22: Refurbishment of the infrastructure at the Shakhpakhty field in the Ustyurt region of the Republic of Uzbekistan, and follow-up development of remaining gas reserves on the PSA terms are underway. The costs are compensated by natural gas supplies. Gas remaining after costs are compensated is distributed pro rata between the parties to the PSA. Operator: OOO Zarubezhneftegaz — GPD Central Asia (established by Gas Project Development Central Asia AG and AO Gazprom Zarubezhneftegaz on a parity basis) | C22: 2004 | D22: ■ | E22: х | F22: A consortium representing Gazprom Group and consisting of its subsidiary AO Gazprom Zarubezhneftegaz (5%) and joint venture Gas Project Development Central Asia AG (95%), 50%; AO Uzbekneftegaz, 50%. | G22: х | H22: х
B23: Hydrocarbon production at the Djel field in the Republic of Uzbekistan under a PSA. Operator — OOO Operating Company Zarubezhneftegaz — Central Asia. | C23: 2018 | D23: ■ | E23: The Djel field at the Shakhpakhty licence block was discovered in 2009 by exploration carried out as part of the Company’s licence obligations. | F23: Gazprom Group — 50%, AO Uzbekneftegaz — 50%. | G23: 2024 | H23: 0.15 bcm of gas (first stage) 0.3 bcm of gas (full development)
A24: * As at 31 December 2019, Gazprom Group’s share in the company was 50%.
A26: Prospecting, exploration and production projects of Associates and Joint Ventures abroad
A27: Company | C27: Countries of operation | E27: Gazprom Group’s interest | F27: Overview and results
A28: Wintershall AG | C28: Libya | E28: 49% equity share acquired by the Group in December 2007 as a result of the asset swap agreement with BASF AG (from 2008 — BASF SE). | F28: The company is a party to the exploration and production sharing agreement for blocks 91 and 107 (previously concessions C96 and C97 respectively). Six fields are in production.
A29: Wintershall Noordzee B.V. | C29: The Netherlands, United Kingdom, Denmark | E29: 50% equity share acquired by the Group in 2015 as a result of the asset swap agreement with BASF SE. | F29: The company owns varied level stakes in 48 licences in the British, Danish, and Dutch sectors of the North Sea. A number of oil and gas fields are discovered within these licence areas. The key producing assets include K18-Golf, Wingate, Q1-C, Q1-D and Sillimanite gas fields. In 2019, industrial production of oil from the Ravn field continued in the Danish sector of the North Sea.
A30: Note. As at 31 December 2019.
A32: Back to Contents

Sheet Transportation
A1: Gas Transportation and Underground Storage
A2: Gas Transportation
A3: Development and overhaul of the GTS in Russia
B4: For the year ended 31 December
B5: 2005 | C5: 2006 | D5: 2007 | E5: 2008 | F5: 2009 | G5: 2010 | H5: 2011 | I5: 2012 | J5: 2013 | K5: 2014 | L5: 2015 | M5: 2016 | N5: 2017 | O5: 2018 | P5: 2019
A6: New gas trunk pipelines and pipeline branches put into operation, km | B6: 1402 | C6: 1526 | D6: 1157 | E6: 1381 | F6: 865 | G6: =ROUND(1338.6,0) -> 1339 | H6: 2470 | I6: 3213 | J6: 703 | K6: 1277 | L6: 933 | M6: 771 | N6: 640 | O6: 529 | P6: 2279
A7: Reconstruction of trunk pipelines, km | C7: 39 | D7: 185 | E7: 102 | F7: 551 | G7: 380 | H7: 131 | I7: 132 | J7: 214 | K7: 200 | L7: 169 | M7: 211 | N7: 100 | O7: 362 | P7: –
A8: Capital repairs, km | B8: 2166.8 | C8: 2809 | D8: 2697 | E8: 2756.3 | F8: 2383.7 | G8: 2427.3 | H8: 2436.6 | I8: 2487 | J8: 1819 | K8: 1581 | L8: 1441 | M8: 823 | N8: 810 | O8: 771 | P8: 782
A9: Number of technical faults per 1 thousand km | B9: 0.14 | C9: 0.12 | D9: 0.11 | E9: 0.13 | F9: 0.09 | G9: 0.04 | H9: 0.07 | I9: 0.09 | J9: 0.05 | K9: 0.03 | L9: 0.05 | M9: 0.03 | N9: 0.02 | O9: 0.05 | P9: 0.02
A11: Diagnostics of the GTS in Russia, thousand km
B12: For the year ended 31 December
B13: 2005 | C13: 2006 | D13: 2007 | E13: 2008 | F13: 2009 | G13: 2010 | H13: 2011 | I13: 2012 | J13: 2013 | K13: 2014 | L13: 2015 | M13: 2016 | N13: 2017 | O13: 2018 | P13: 2019
A14: Inline inspections | B14: 17.3 | C14: 16.9 | D14: 17.2 | E14: 19.8 | F14: 17.7 | G14: 21.9 | H14: 21.7 | I14: 22.2 | J14: 22.6 | K14: 23.5 | L14: 19.9 | M14: 23.9 | N14: 22.1 | O14: 25.1 | P14: 28.9
A15: Corrosion inspections | B15: 23.2 | C15: 29.9 | D15: 20.5 | E15: 25.6 | F15: 17 | G15: 28.1 | H15: 26.1 | I15: 23 | J15: 21.5 | K15: 18.4 | L15: 17.9 | M15: 17.3 | N15: 18 | O15: 14.9 | P15: 21.6
A17: Major technical characteristics of Gazprom Group’s gas transportation assets in Russia
B18: As at 31 December
B19: 2005 | C19: 2006 | D19: 2007 | E19: 2008 | F19: 2009 | G19: 2010 | H19: 2011 | I19: 2012 | J19: 2013 | K19: 2014 | L19: 2015 | M19: 2016 | N19: 2017 | O19: 2018 | P19: 2019
A20: Length of gas trunk pipelines and pipeline branches in single-lane measuring*, thousand km | B20: 155 | C20: 156.9 | D20: 158.2 | E20: 159.5 | F20: 160.4 | G20: 161.7 | H20: 164.7 | I20: 168.3 | J20: 168.9 | K20: 170.7 | L20: 171.2 | M20: 171.8 | N20: 172.1 | O20: 172.6 | P20: 175.2
A21: Linear compressor stations, units | B21: 210 | C21: 217 | D21: 218 | E21: 214 | F21: 215 | G21: 215 | H21: 211 | I21: 222 | J21: 247 | K21: 250 | L21: 250 | M21: 253 | N21: 254 | O21: 254 | P21: 254
A22: Gas pumping units (GPUs), units | B22: 3587 | C22: 3629 | D22: 3641 | E22: 3669 | F22: 3675 | G22: 3659 | H22: 3630 | I22: 3738 | J22: 3820 | K22: 3825 | L22: 3829 | M22: 3852 | N22: 3844 | O22: 3812 | P22: 3 788
A23: GPUs installed capacity, thousand MW | B23: 40.2 | C23: 41 | D23: 41.4 | E23: 41.6 | F23: 42 | G23: 42.1 | H23: 41.7 | I23: 43.9 | J23: 45.9 | K23: 46.1 | L23: 46.2 | M23: 46.7 | N23: 46.7 | O23: 47.1 | P23: 46.8
A24: * Since 2013, total length of trunk pipelines includes length of technological branches.
A26: Breakdown of Gazprom Group’s trunk pipelines and pipeline branches, including technological jumpers, by operating life, thousand km
B27: As at 31 December
G28: 2010 | H28: 2011 | I28: 2012 | J28: 2013 | K28: 2014 | L28: 2015 | M28: 2016 | N28: 2017 | O28: 2018 | P28: 2019
A29: Up to 10 years | G29: 17.2 | H29: 19.6 | I29: 22.2 | J29: 21.1 | K29: 20.6 | L29: 19.9 | M29: 17.3 | N29: 17.3 | O29: 16.7 | P29: 17.5
A30: from 11 to 20 years | G30: 25 | H30: 21.8 | I30: 20.4 | J30: 20 | K30: 20.7 | L30: 19.1 | M30: 15.8 | N30: 16.2 | O30: 15.7 | P30: 15.5
A31: from 21 to 30 years | G31: 70.9 | H31: 64.6 | I31: 61.7 | J31: 56.5 | K31: 50.6 | L31: 47.3 | M31: 40.9 | N31: 40.9 | O31: 34.8 | P31: 35.3
A32: from 31 to 40 years | G32: 23.8 | H32: 31.8 | I32: 36.8 | J32: 41.7 | K32: 46.6 | L32: 49.2 | M32: 55.2 | N32: 55.2 | O32: 59.1 | P32: 60
A33: from 41 to 50 years | G33: 19.3 | H33: 19.6 | I33: 18.8 | J33: 19.7 | K33: 20.6 | L33: 23.3 | M33: 24.9 | N33: 24.8 | O33: 26.3 | P33: 26.7
A34: Over 50 years | G34: 5.5 | H34: 7.3 | I34: 8.4 | J34: 9.9 | K34: 11.6 | L34: 12.4 | M34: 17.7 | N34: 17.7 | O34: 20 | P34: 20.2
A35: Total | G35: 161.7 | H35: 164.7 | I35: 168.3 | J35: 168.9 | K35: 170.7 | L35: 171.2 | M35: 171.8 | N35: 172.1 | O35: 172.6 | P35: 175.2
A36: * Starting from 31 December 2013, length is given including technological jumpers.
A38: Gas received into and distributed from Gazprom’s GTS in Russia, bcm
B39: For the year ended 31 December
B40: 2005 | C40: 2006 | D40: 2007 | E40: 2008 | F40: 2009 | G40: 2010 | H40: 2011 | I40: 2012 | J40: 2013 | K40: 2014 | L40: 2015 | M40: 2016 | N40: 2017 | O40: 2018 | P40: 2019
A41: Injections into GTS
A42: Gas inflow to GTS, including: | B42: 646.9 | C42: 660.9 | D42: 654.8 | E42: 669.2 | F42: 552.4 | G42: 614.1 | H42: 630.9 | I42: 613.7 | J42: 621 | K42: 588.7 | L42: 574.21 | M42: 573.8 | N42: 623.1 | O42: 638.71 | P42: 635.6
A43: Central Asian gas | B43: 54.6 | C43: 57 | D43: 59.9 | E43: 61.4 | F43: 35.7 | G43: 35.3 | H43: 31.8 | I43: 31.7 | J43: 29.3 | K43: 26.4 | L43: 20.04 | M43: 18.04 | N43: 20.77 | O43: 17.68 | P43: 21.87
A44: Azerbaijanian gas | B44: – | C44: – | D44: – | E44: – | F44: – | G44: 0.8 | H44: 1.5 | I44: 1.6 | J44: 1.4 | K44: 0.2 | L44: – | M44: – | N44: – | O44: – | P44: –
A45: Gas withdrawn from UGSFs in Russia and Latvia | B45: 42.8 | C45: 48.2 | D45: 41.7 | E45: 36.1 | F45: 30 | G45: 40.8 | H45: 47.1 | I45: 44.3 | J45: 32.7 | K45: 32.7 | L45: 24.27 | M45: 44.94 | N45: 45.69 | O45: 51.99 | P45: 40.54
A46: Decrease of amount of gas stored in GTS | B46: 10 | C46: 8.7 | D46: 10.2 | E46: 9 | F46: 7.3 | G46: 6.3 | H46: 5.2 | I46: 8.2 | J46: 5.7 | K46: 6.1 | L46: 4.09 | M46: 3.85 | N46: 3.3 | O46: 2.37 | P46: 2.82
A47: Total | B47: 699.7 | C47: 717.8 | D47: 706.7 | E47: 714.3 | F47: 589.7 | G47: 661.2 | H47: 683.2 | I47: 666.2 | J47: 659.4 | K47: 627.5 | L47: 602.57 | M47: 622.59 | N47: 672.09 | O47: 693.07 | P47: 678.96
A48: Distribution from GTS
A49: Supplies inside Russia, including: | B49: 339.8 | C49: 352 | D49: 356.4 | E49: 352.8 | F49: 335.6 | G49: 354.9 | H49: 365.6 | I49: 362.3 | J49: 354.6 | K49: 356.5 | L49: 342.32 | M49: 351.68 | N49: 354 | O49: 364.74 | P49: 357.7
A50: Central Asian gas | B50: 0.1 | C50: 0.1 | D50: 0.1 | E50: 0.1 | F50: 0.1 | G50: 0.1 | H50: 0.1 | I50: 0 | J50: 0 | K50: 0 | L50: 0.03 | M50: 0.03 | N50: 0.03 | O50: 0.02 | P50: –
A51: Supplies outside Russia, including: | B51: 251.2 | C51: 254.7 | D51: 247.3 | E51: 251.1 | F51: 195.6 | G51: 209.3 | H51: 217.7 | I51: 209.3 | J51: 220.2 | K51: 196.2 | L51: 196.75 | M51: 209.44 | N51: 232.37 | O51: 234.75 | P51: 233.87
A52: Central Asian gas | B52: 54.5 | C52: 56.8 | D52: 59.7 | E52: 61.3 | F52: 35.6 | G52: 35.2 | H52: 31.8 | I52: 31.6 | J52: 29.3 | K52: 26.4 | L52: 20.01 | M52: 18.01 | N52: 20.74 | O52: 17.66 | P52: 21.87
A53: Azerbaijanian gas | B53: – | C53: – | D53: – | E53: – | F53: – | G53: 0.8 | H53: 1.5 | I53: 1.6 | J53: 1.4 | K53: 0.2 | L53: – | M53: – | N53: – | O53: – | P53: –
A54: Gas pumped into UGSFs in Russia | B54: 46.3 | C54: 50.3 | D54: 43 | E54: 51.6 | F54: 15.7 | G54: 47.7 | H54: 48.2 | I54: 44.1 | J54: 38.4 | K54: 35.1 | L54: 27.08 | M54: 24.65 | N54: 44.18 | O54: 49.44 | P54: 45.02
A55: Technical needs of GTS and UGSFs | B55: 51.7 | C55: 52 | D55: 49.5 | E55: 49.6 | F55: 36.3 | G55: 43.6 | H55: 45.8 | I55: 40.9 | J55: 40.6 | K55: 33.2 | L55: 32.28 | M55: 32.29 | N55: 37.8 | O55: 40.55 | P55: 38.4
A56: Increase of amount of gas stored in GTS | B56: 10.7 | C56: 8.8 | D56: 10.5 | E56: 9.2 | F56: 6.5 | G56: 5.7 | H56: 5.9 | I56: 9.6 | J56: 5.6 | K56: 6.5 | L56: 4.14 | M56: 4.53 | N56: 3.74 | O56: 3.59 | P56: 3.97
A57: Total | B57: 699.7 | C57: 717.8 | D57: 706.7 | E57: 714.3 | F57: 589.7 | G57: 661.2 | H57: 683.2 | I57: 666.2 | J57: 659.4 | K57: 627.5 | L57: 602.57 | M57: 622.59 | N57: 672.09 | O57: 693.07 | P57: 678.96
A59: Gas transportation volumes of Nord Stream, Blue Stream and Power of Siberia pipelines, bcm
B60: For the year ended 31 December
H61: 2011 | I61: 2012 | J61: 2013 | K61: 2014 | L61: 2015 | M61: 2016 | N61: 2017 | O61: 2018 | P61: 2019
A62: Power of Siberia pipeline | H62: x | I62: x | J62: x | K62: x | L62: x | M62: x | N62: x | O62: x | P62: 0.33
A63: Nord Stream pipeline (through Portovaya CS) | H63: 0.86 | I63: 11.81 | J63: 23.78 | K63: 35.55 | L63: 39.11 | M63: 43.79 | N63: 50.98 | O63: 58.71 | P63: 58.5
A64: Blue Stream pipeline (through Beregovaya CS) | H64: 13.97 | I64: 14.66 | J64: 13.66 | K64: 14.42 | L64: 15.68 | M64: 13.06 | N64: 15.89 | O64: 13.25 | P64: 11.1
A66: Gas transportation services provided to PJSC Gazprom in neighbouring countries, bcm
B67: For the year ended 31 December
L68: 2015 | M68: 2016 | N68: 2017 | O68: 2018 | P68: 2019
A69: Through the Imatra gas metering station (for supply to Finland) | L69: 2.76 | M69: 2.53 | N69: 2.36 | O69: 2.62 | P69: 2.46
A70: Through Ukraine | L70: 67.08 | M70: 82.2 | N70: 93.46 | O70: 86.78 | P70: 89.59
A71: Through Lithuania | L71: 2.07 | M71: 2.21 | N71: 2.43 | O71: 2.63 | P71: 2.45
A72: Though Latvia | L72: 1.34 | M72: 0.42 | N72: 0.06 | O72: 0.16 | P72: 0.11
A73: Through Estonia | L73: 2.4 | M73: 1.72 | N73: 1.24 | O73: 1.44 | P73: 1.51
A74: Through Moldova | L74: 16.72 | M74: 18.46 | N74: 20.22 | O74: 18.07 | P74: 10.23
A75: Through Kazakhstan | L75: 41.77 | M75: 27.67 | N75: 32.69 | O75: 33.23 | P75: 21.64
A77: Major technical characteristics of gas transportation assets of Gazprom Group’s subsidiaries abroad
B78: For the year ended and as at 31 December
H79: 2011 | I79: 2012 | J79: 2013 | K79: 2014 | L79: 2015 | M79: 2016 | N79: 2017 | O79: 2018 | P79: 2019
A80: Belarus (Gas transportation system of OAO Gazprom transgaz Belarus and a part of Yamal — Europe gas pipeline on the territory of Belarus)
A81: Length*, thousand km | H81: 7.9 | I81: 7.9 | J81: 7.9 | K81: 7.9 | L81: 7.9 | M81: 7.9 | N81: 7.9 | O81: 7.9 | P81: 7.9
A82: Compressor stations, units | H82: 10 | I82: 10 | J82: 10 | K82: 10 | L82: 10 | M82: 10 | N82: 10 | O82: 10 | P82: 10
A83: including:
A84: Gas transportation system of OAO Gazprom transgaz Belarus | H84: 5 | I84: 5 | J84: 5 | K84: 5 | L84: 5 | M84: 5 | N84: 5 | O84: 5 | P84: 5
A85: part of Yamal — Europe gas pipeline on the territory of Belarus | H85: 5 | I85: 5 | J85: 5 | K85: 5 | L85: 5 | M85: 5 | N85: 5 | O85: 5 | P85: 5
A86: Gas inflow to gas transportation system, bcm | H86: 64.3 | I86: 64.5 | J86: 69.1 | K86: 65.2 | L86: 64.2 | M86: 60.33 | N86: 61.17 | O86: 62.59 | P86: 60.78
A87: including transit | H87: 44.3 | I87: 44.3 | J87: 48.8 | K87: 45.1 | L87: 45.41 | M87: 41.69 | N87: 42.16 | O87: 42.26 | P87: 40.51
A88: Armenia (ZAO Gazprom Armenia)
A89: Length*, thousand km | H89: 1.9 | I89: 1.9 | J89: 1.8 | K89: 1.7 | L89: 1.7 | M89: 1.7 | N89: 1.7 | O89: 1.7 | P89: 1.7
A90: Compressor stations, units | H90: – | I90: – | J90: – | K90: – | L90: – | M90: – | N90: – | O90: – | P90: –
A91: Gas inflow to gas transportation system, bcm | H91: 2.1 | I91: 2.5 | J91: 2.4 | K91: 2.5 | L91: 2.29 | M91: 2.24 | N91: 2.38 | O91: 2.46 | P91: 2.55
A92: including transit | H92: – | I92: – | J92: – | K92: – | L92: – | M92: – | N92: – | O92: – | P92: –
A93: Kyrgyzstan (OsOO Gazprom Kyrgyzstan**)
A94: Length*, thousand km | H94: x | I94: x | J94: x | K94: 0.7 | L94: 0.7 | M94: 0.7 | N94: 0.8 | O94: 0.8 | P94: 0.8
A95: Compressor stations, units | H95: x | I95: x | J95: x | K95: 1 | L95: 1 | M95: 1 | N95: 1 | O95: 1 | P95: 1
A96: Gas inflow to gas transportation system, bcm | H96: x | I96: x | J96: x | K96: 4.3 | L96: 4.66 | M96: 4.52 | N96: 6.64 | O96: 6.35 | P96: 6.79
A97: including transit | H97: x | I97: x | J97: x | K97: 4 | L97: 4.4 | M97: 4.25 | N97: 6.36 | O97: 6.03 | P97: 6.49
A98: * In single-line measuring.
A99: ** Figures provided since the year when control was taken over by the Group.
A101: Back to Contents

Sheet Gas transportation projects
A1: Main existing PJSC Gazprom’s export gas transportation routes
A2: Gas pipeline | B2: Annual design capacity, bcm | C2: Length, km | D2: Pipe diameter, mm | E2: Countries which and/or the territorial waters of which the pipeline passes
A3: Yamal — Europe | B3: 32.9 | C3: More than 2,000 | D3: 1420 | E3: Russia, Belarus, Poland, Germany
A4: Nord Stream | B4: 55 | C4: 1224 | D4: 1220 | E4: Territorial waters of Russia, Denmark, Germany Exclusive economic zones of Russia, Finland, Sweden, Denmark, Germany
A5: Urengoy — Pomary — Uzhgorod* | B5: 32 | C5: 4451 | D5: 1420 | E5: Russia, Ukraine
A6: Soyuz* | B6: 26 | C6: 2750 | D6: 1420 | E6: Russia, Kazakhstan, Ukraine
A7: Progress* | B7: 28.5 | C7: 3473 | D7: 1420 | E7: Russia, Ukraine
A8: Transbalkanskiy* | B8: 20 | C8: 2750 | D8: 800 – 1,200 | E8: Ukraine, Romania, Bulgaria, Turkey
A9: Blue Stream (offshore part) | B9: 16 | C9: Two pipeline strings 382 km and 389 km long | D9: 600 | E9: Russia, Turkey
A10: Turkstream (offshore part)** | B10: 31.5 | C10: Two pipeline strings 937 km and 939 km long | D10: 813 | E10: Russia, Turkey
A11: Power of Siberia** | B11: Up to 48 | C11: 2,250.9 (Chayandinskoye field – China’s border section) | D11: 1420 | E11: Russia
A12: * Gas pipelines of the Ukrainian corridor.
A13: ** Comissioned in 2019.
A14: Note. As at 31 December 2019.
A16: Gazprom Group’s major gas transportation projects
A17: Name | B17: Purpose | C17: Project highlights
C18: Length | D18: Number / total capacity of compressor stations | E18: Annual capacity | F18: Year of comissioning
A19: Gryazovets — Vyborg pipeline loopings to the second line on Gryasovets — Volkhov section (expansion) | B19: Additional gas supplies to consumers in St. Petersburg and the Leningrad Region | C19: 217.15 km | D19: – | E19: 7.0 bcm | F19: 2017– 2020
A20: Nord Stream 2 | B20: Gas supplies to consumers in Western and Central Europe | C20: Two pipeline strings c. 1,235 km long | D20: – | E20: 55 bcm | F20: 2020*
A21: Trunk gas pipeline (interconnector) Bulgaria’s border — Hungary’s border | B21: Gas supplies to Eastern Europe consumers from the TurkStream pipeline | C21: 402 km | D21: 1 CS / 24 MW | E21: 12.8 bcm of gas | F21: 2020–2021
A22: Murmansk — Volkhov | B22: Gas transportation from the Shtokmanovskoye field to the Russian UGSS | C22: C. 1,365 km (will be updated following the project design results) | D22: Up to 10 CS / 1,225 MW (will be updated following the project design results) | E22: Up to 46 bcm (Subject to the Shtokmanovskoye field development option) | F22: Construction and commissioning will be scheduled after the investment decision is made on the Shtokmanovskoye field.
A23: Bovanenkovo — Ukhta 2 | B23: Gas transportation from the Yamal Peninsula fields | C23: 1 264,45 km | D23: 9 compressor stations / 830 MW | E23: 57.5 bcm | F23: 2014–2021
A24: Ukhta — Torzhok 2 | B24: Additional gas supplies to Russia’s North-West to expand the domestic gas infrastructure and ensure export supplies via Nord Stream 2 | C24: 970 km | D24: 7 compressor stations / 625 MW | E24: 45 bcm | F24: 2014–2020
A25: Power of Siberia | B25: Gas supplies from the Chayandinskoye oil and gas condensate field and the Kovyktinskoye gas condensate field to the gas infrastructure of the Far Eastern Federal District, and gas exports to China market | C25: 3 053,9 km | D25: 9 CS / 1,250 MW | E25: Up to 48 bcm | F25: Phased commissioning in accordance with the obligations under the natural gas sale and purchase agreement.
A26: section Chayandinskoye field — China’s border | C26: 2 250,9 km | D26: 8 CS / 1,186 MW | E26: Up to 48 bcm
A27: section Kovyktinskoye field — Chayandinskoye field | C27: 803 km | D27: 1 CS / 64 MW | E27: 24 bcm (starting from 2025)
A28: Expansion of UGSS transportation capacity in Northwest Russia, Gryazovets — CS Slavyanskaya section | B28: Additional gas supplies to Russia’s North-West and export supplies via the Nord Stream 2 pipeline | C28: 1 203,5 km | D28: 7 CS / 967 MW | E28: 58.4 bcm (stages 1–3), including up to 55 bcm of gas supplies to the Nord Stream 2 gas pipeline | F28: Phased comissioning starting in 2018
A29: Sakhalin — Khabarovsk — Vladivostok (second launch complex) | B29: Additional gas supplies to consumers in the Primorye and Khabarovsk Territories, as well as export supplies | C29: 352,9 km | D29: 4 CS / 272 MW | E29: C. 22 bcm to achieve full capacity (to be adjusted based on design stage results) | F29: Phased commissioning starting from 2021
A30: Bovanenkovo — Ukhta 3 | B30: Gas transportation from the Yamal Peninsula fields | C30: C. 1,260 km (will be updated following the project design results) | D30: 10 CS / 1,486 MW (will be updated following the project design results) | E30: C. 60 bcm | F30: Phased commissioning starting from 2023
A31: Ukhta — Torzhok 3 | B31: Additional gas supplies to northwestern Russia to expand the gas infrastructure to domestic consumers and support export supplies | C31: C. 972 km (will be updated following the project design results) | D31: 6 compressor shops / 708 MW (will be updated following the project design results) | E31: C. 45 bcm | F31: Phased commissioning starting from 2023
A32: * Data as at 31 December 2019. Various alternative options are being explored to complete the construction of the pipeline and put it into operation.
A33: Note. As at 31 December 2019. Timelines for commissioning and ramp-up may be adjusted subject to the energy market environment.
A35: Back to Contents

Sheet Gas storage
A1: Underground Gas Storage
A2: Gazprom’s UGSFs in Russia
B3: As at 31 December
B4: 2005 | C4: 2006 | D4: 2007 | E4: 2008 | F4: 2009 | G4: 2010 | H4: 2011 | I4: 2012 | J4: 2013 | K4: 2014 | L4: 2015 | M4: 2016 | N4: 2017 | O4: 2018 | P4: 2019
A5: Number of UGSFs, units | B5: 24 | C5: 25 | D5: 25 | E5: 25 | F5: 25 | G5: 25 | H5: 25 | I5: 25 | J5: 26 | K5: 26 | L5: 26 | M5: 26 | N5: 26 | O5: 27 | P5: 27
A6: Total active capacity, bcm | B6: 64.25 | C6: 64.65 | D6: 64.94 | E6: 65.2 | F6: 65.2 | G6: 65.41 | H6: 66.7 | I6: 68.16 | J6: 70.41 | K6: 71.1 | L6: 73.56 | M6: 73.62 | N6: 74.93 | O6: 75.01 | P6: 75.01
A7: Number of productive wells at UGSFs, units | B7: 2509 | C7: 2588 | D7: 2618 | E7: 2615 | F7: 2601 | G7: 2564 | H7: 2602 | I7: 2621 | J7: 2689 | K7: 2685 | L7: 2686 | M7: 2681 | N7: 2694 | O7: 2705 | P7: 2711
A9: Gas storage in Russia
B10: Injection season
B11: 2005 | C11: 2006 | D11: 2007 | E11: 2008 | F11: 2009 | G11: 2010 | H11: 2011 | I11: 2012 | J11: 2013 | K11: 2014 | L11: 2015 | M11: 2016 | N11: 2017 | O11: 2018 | P11: 2019
A12: Gas injection into UGSFs, mmcm
A13: Q1 | B13: – | C13: – | D13: 1074.8 | E13: 107.1 | F13: 161.4 | G13: =ROUND(866.627,1) -> 866.6 | H13: – | I13: 357.6 | J13: 55.7 | K13: 189.4 | L13: – | M13: – | N13: 23.2 | O13: 99.8 | P13: 635.7
A14: Q2 | B14: 19513.3 | C14: 21189.2 | D14: 21295.6 | E14: 24370.5 | F14: 3075 | G14: =ROUND(24097.694,1) -> 24097.7 | H14: 21291.8 | I14: 23793.6 | J14: 21407.9 | K14: 14963.8 | L14: 10158.4 | M14: 8468.8 | N14: 17443.9 | O14: 23418.6 | P14: 21177.3
A15: Q3 | B15: 22416.6 | C15: 25659.5 | D15: 19766.1 | E15: 24020.4 | F15: 10116.9 | G15: =ROUND(20680.963,1) -> 20681 | H15: 24248.5 | I15: 18006.8 | J15: 13784.8 | K15: 16790.1 | L15: 14498.1 | M15: 14209.2 | N15: 24434.7 | O15: 23616.1 | P15: 21411.4
A16: Q4 | B16: 4385.1 | C16: 3500.8 | D16: 859.5 | E16: 3150.4 | F16: 2319.1 | G16: =ROUND(2085.394,1) -> 2085.4 | H16: 2657.2 | I16: 1938.7 | J16: 3120.1 | K16: 3191.2 | L16: 2425.3 | M16: 1973.1 | N16: 2275.4 | O16: 2349.9 | P16: 1816.4
A17: Total for the season | B17: 46315 | C17: =SUM(C13:C16) -> 50349.5 | D17: =SUM(D13:D16) -> 42996 | E17: =SUM(E13:E16) -> 51648.4 | F17: =SUM(F13:F16) -> 15672.4 | G17: =SUM(G13:G16) -> 47730.7 | H17: 48197.5 | I17: 44096.7 | J17: 38368.5 | K17: 35134.5 | L17: 27081.8 | M17: 24651.1 | N17: 44177.2 | O17: 49484.4 | P17: 45040.8
B18: Withdrawal season
B19: 2005/2006 | C19: 2006/2007 | D19: 2007/2008 | E19: 2008/2009 | F19: 2009/2010 | G19: 2010/2011 | H19: 2011/2012 | I19: 2012/2013 | J19: 2013/2014 | K19: 2014/2015 | L19: 2015/2016 | M19: 2016/2017 | N19: 2017/2018 | O19: 2018/2019 | P19: 2019/2020
A20: Gas withdrawal from UGSFs, mmcm
A21: Q3 | B21: 185.7 | C21: 4.1 | D21: 89.7 | E21: 107.1 | F21: 155.8 | G21: 135.1 | H21: 300 | I21: 143.9 | J21: 63.2 | K21: 41.9 | L21: 92.8 | M21: 114.2 | N21: 164.4 | O21: 99.8 | P21: 450.5
A22: Q4 | B22: 12873.2 | C22: 12743.4 | D22: 21688.7 | E22: 7634.2 | F22: 18980.5 | G22: 14428.8 | H22: 13664.6 | I22: 14418.3 | J22: 9777 | K22: 8262.5 | L22: 5172.1 | M22: 18834.6 | N22: 17117.2 | O22: 20415.6 | P22: 15874.4
A23: Q1 of the next year | B23: 34936 | C23: 19763.6 | D23: 28347.1 | E23: 8653.9 | F23: 26176.9 | G23: 31740.7 | H23: 29258.1 | I23: 21815.7 | J23: 21662.3 | K23: 16353.2 | L23: 24653.1 | M23: 26175.1 | N23: 31 036,3 | O23: 23702.9 | P23: 15175.8
A24: Q2 of the next year | B24: 518.1 | C24: 116.5 | D24: 18.5 | E24: 2234 | F24: 48.5 | G24: 1366.2 | H24: 481.9 | I24: 1091.9 | J24: 2714.6 | K24: 2653.2 | L24: 1234.2 | M24: 2022.8 | N24: 430.6 | O24: 513.4 | P24: 1107.5
A25: Total for the season | B25: 48513 | C25: =SUM(C21:C24) -> 32627.6 | D25: =SUM(D21:D24) -> 50144 | E25: =SUM(E21:E24) -> 18629.2 | F25: =SUM(F21:F24) -> 45361.7 | G25: =SUM(G21:G24) -> 47670.8 | H25: 43704.5 | I25: 37469.8 | J25: 34217.1 | K25: 27310.8 | L25: 31152.2 | M25: 47146.7 | N25: 48748.5 | O25: 44731.7 | P25: 32608.2
A26: Maximum potential daily output during gas withdrawal season, mmcm per day | B26: 568 | C26: 600 | D26: 608 | E26: 620 | F26: 620 | G26: 620 | H26: 647.7 | I26: 671.1 | J26: 727.8 | K26: 770.4 | L26: 789.9 | M26: 801.3 | N26: 805.3 | O26: 812.5 | P26: 843.3
A28: Gazprom’s gas injection into and withdrawal from UGSFs abroad, mmcm
B29: Injection season, Q1–Q4
B30: 2005 | C30: 2006 | D30: 2007 | E30: 2008 | F30: 2009 | G30: 2010 | H30: 2011 | I30: 2012 | J30: 2013 | K30: 2014 | L30: 2015 | M30: 2016 | N30: 2017 | O30: 2018 | P30: 2019
A31: Gas injection into UGSFs abroad
A32: FSU countries
A33: Total injection (FSU countries) | B33: 1550.9 | C33: 1689.9 | D33: 222.3 | E33: 1389.1 | F33: 658.1 | G33: 1685.6 | H33: 2338.6 | I33: 2667.7 | J33: 2494.7 | K33: 2938.3 | L33: 2507.3 | M33: 2144.3 | N33: 1 274,9 | O33: 1227.8 | P33: 956.5
A34: Far abroad countries*
A35: Austria | B35: 440.4 | C35: 449 | D35: 944.8 | E35: 858.6 | F35: 474.1 | G35: =ROUND(580.758,1) -> 580.8 | H35: 1093.7 | I35: 1407.1 | J35: 1472 | K35: 1303.5 | L35: 709.8 | M35: 683.9 | N35: 2222.5 | O35: 1527.5 | P35: 2124.5
A36: Great Britain | B36: 76.8 | C36: 294.4 | D36: 414.5 | E36: 528.9 | F36: 225.8 | G36: =ROUND(233.672,1) -> 233.7 | H36: 225.2 | I36: 224.3 | J36: 226.5 | K36: 224 | L36: 224.4 | M36: – | N36: – | O36: – | P36: –
A37: Hungary | B37: – | C37: – | D37: – | E37: – | F37: – | G37: – | H37: – | I37: – | J37: – | K37: 699.9 | L37: – | M37: – | N37: 898.4 | O37: 290.2 | P37: 1003
A38: Germany | B38: 374.9 | C38: 1142.7 | D38: 1111 | E38: 1384.8 | F38: 583.6 | G38: =ROUND(705.293,1) -> 705.3 | H38: 155.2 | I38: 2149.5 | J38: 1464.2 | K38: 886.1 | L38: 797.2 | M38: 654.1 | N38: 1840 | O38: 2072.5 | P38: 3639.9
A39: The Netherlands | B39: – | C39: – | D39: – | E39: – | F39: 328 | G39: =ROUND(853.78,1) -> 853.8 | H39: 1582.6 | I39: 1276.7 | J39: 617.3 | K39: 1313.1 | L39: 1176.9 | M39: 1195 | N39: 1782 | O39: 1558.1 | P39: 283.8
A40: Serbia | B40: – | C40: – | D40: – | E40: – | F40: – | G40: – | H40: 279.4 | I40: 336.2 | J40: 93.5 | K40: 118.4 | L40: – | M40: – | N40: 12.6 | O40: 51.1 | P40: 58.6
A41: Slovakia | B41: – | C41: – | D41: – | E41: – | F41: – | G41: – | H41: – | I41: – | J41: – | K41: – | L41: – | M41: – | N41: 738 | O41: 283.6 | P41: 1112.6
A42: France | B42: – | C42: – | D42: – | E42: 273.9 | F42: 250 | G42: =ROUND(298.162,1) -> 298.2 | H42: – | I42: – | J42: – | K42: – | L42: – | M42: – | N42: – | O42: – | P42: –
A43: Czech Republic | B43: – | C43: – | D43: – | E43: – | F43: – | G43: – | H43: – | I43: – | J43: – | K43: – | L43: – | M43: 105.3 | N43: 190.8 | O43: 393.8 | P43: 26.8
A44: Short-term contracts for storage in European UGSFs | B44: – | C44: – | D44: – | E44: – | F44: – | G44: – | H44: – | I44: – | J44: – | K44: – | L44: – | M44: – | N44: 909.9 | O44: 412.9 | P44: –
A45: Total injection (far abroad countries) | B45: =SUM(B35:B43) -> 892.1 | C45: 1886.1 | D45: 2470.3 | E45: 3046.2 | F45: 1861.5 | G45: 2671.8 | H45: 3336.1 | I45: 5393.8 | J45: 3873.5 | K45: 4545 | L45: 2908.3 | M45: =SUM(M35:M44) -> 2638.3 | N45: 8 594,2 | O45: 6589.7 | P45: 8249.2
A46: Total for the season | B46: 2443 | C46: 3576 | D46: 2692.6 | E46: 4435.3 | F46: 2519.6 | G46: 4357.4 | H46: 5674.7 | I46: 8061.5 | J46: 6368.2 | K46: 7483.3 | L46: 5415.6 | M46: =M45+M33 -> 4782.6 | N46: 9869.1 | O46: 7817.5 | P46: 9205.7
A47: * Gas withdrawal of Gazprom group for contracts of OOO Gazprom Export.
B48: Withdrawal season, Q3–Q4 and Q1–Q2 of the next year
B49: 2005/2006 | C49: 2006/2007 | D49: 2007/2008 | E49: 2008/2009 | F49: 2009/2010 | G49: 2010/2011 | H49: 2011/2012 | I49: 2012/2013 | J49: 2013/2014 | K49: 2014/2015 | L49: 2015/2016 | M49: 2016/2017 | N49: 2017/2018 | O49: 2018/2019 | P49: 2019/2020
A50: Gas withdrawal* from UGSFs abroad
A51: FSU countries
A52: Total withdrawal (FSU countries) | B52: 984.1 | C52: 291.1 | D52: 352.3 | E52: 762.8 | F52: 1033.2 | G52: 1679.7 | H52: 2440.4 | I52: 2269.9 | J52: 2198.2 | K52: 2414.7 | L52: 2083.1 | M52: 1997.1 | N52: 1298.7 | O52: 1067.5 | P52: 861.7
A53: Far abroad countries**
A54: Austria | B54: 200 | C54: 200 | D54: 652.8 | E54: 381.9 | F54: =ROUNDDOWN(480.151,1) -> 480.1 | G54: 543.7 | H54: 982.6 | I54: 1534.1 | J54: 1171.6 | K54: 835.8 | L54: 820 | M54: 1480.5 | N54: 2054 | O54: 546.5 | P54: 953.3
A55: Great Britain | B55: – | C55: 371.2 | D55: 422.4 | E55: 227.5 | F55: =ROUND(317.951,1) -> 318 | G55: 435 | H55: 225.2 | I55: 224.3 | J55: 226.5 | K55: 224 | L55: 224.4 | M55: – | N55: – | O55: – | P55: –
A56: Hungary | B56: – | C56: – | D56: – | E56: – | F56: – | G56: – | H56: – | I56: – | J56: – | K56: 699.9 | L56: – | M56: – | N56: 898.4 | O56: 267.7 | P56: 183.4
A57: Germany | B57: 661.4 | C57: 887.4 | D57: 952.2 | E57: 790.1 | F57: =ROUND(731.396,1) -> 731.4 | G57: 481.8 | H57: 716.9 | I57: 2342.2 | J57: 1123.7 | K57: 753.4 | L57: 978.1 | M57: 936.9 | N57: 2117.5 | O57: 1008 | P57: 740.4
A58: The Netherlands | B58: – | C58: – | D58: – | E58: – | F58: – | G58: – | H58: – | I58: – | J58: – | K58: 405.4 | L58: 1129.8 | M58: 1981.3 | N58: 1532.8 | O58: 368.7 | P58: 500.2
A59: Serbia | B59: – | C59: – | D59: – | E59: – | F59: – | G59: – | H59: 34.3 | I59: 145.7 | J59: 67.5 | K59: 0.5 | L59: 12 | M59: 0.5 | N59: 44.5 | O59: 13.7 | P59: 1.2
A60: Slovakia | B60: – | C60: – | D60: – | E60: – | F60: – | G60: – | H60: – | I60: – | J60: – | K60: – | L60: – | M60: – | N60: 673 | O60: 201.7 | P60: 388.7
A61: France | B61: – | C61: – | D61: – | E61: 273.9 | F61: =ROUND(248.515,1) -> 248.5 | G61: 299.7 | H61: – | I61: – | J61: – | K61: – | L61: – | M61: – | N61: – | O61: – | P61: –
A62: Czech Republic | B62: – | C62: – | D62: – | E62: – | F62: – | G62: – | H62: – | I62: – | J62: – | K62: – | L62: – | M62: 104.5 | N62: 183.2 | O62: 147 | P62: 46.6
A63: Short-term contracts for storage in European UGSFs | B63: – | C63: – | D63: – | E63: – | F63: – | G63: – | H63: – | I63: – | J63: – | K63: – | L63: – | M63: – | N63: 974.9 | O63: – | P63: 412.9
A64: Total injection (far abroad countries) | B64: =SUM(B54:B62) -> 861.4 | C64: =SUM(C54:C62) -> 1458.6 | D64: 2027.4 | E64: 1673.4 | F64: 1778 | G64: 1760.2 | H64: 1959 | I64: 4246.3 | J64: 2589.3 | K64: 2919 | L64: 3164.3 | M64: 4503.7 | N64: 8478.3 | O64: 2553.3 | P64: 3226.7
A65: Total for the season | B65: 1845.5 | C65: 1749.7 | D65: 2379.7 | E65: 2436.2 | F65: 2811.2 | G65: 3439.9 | H65: 4399.4 | I65: 6516.2 | J65: 4787.5 | K65: 5333.7 | L65: 5247.4 | M65: 6500.8 | N65: 9777 | O65: 3620.8 | P65: 4088.4
A66: * Excluding volumes sold in UGSFs
A67: ** Gas withdrawal of Gazprom group for contracts of OOO Gazprom Export.
